Transaction Number,Transaction date,Invoice Date,Beneficiary ID,Beneficiary Name,Purpose of Expenditure,Local Authority Department that incurred Expenditure,Amount
12213002,25/07/2018,24/07/2018,3000000,Sage Care Ltd,Adults Home Care,Care and Assessment,536.53
12244873,23/08/2018,21/08/2018,3000000,Sage Care Ltd,Adults Home Care,Care and Assessment,538.22
12274986,26/09/2018,18/09/2018,3000000,Sage Care Ltd,Adults Home Care,Care and Assessment,535.55
12213003,25/07/2018,24/07/2018,3000000,Sage Care Ltd,Adults Home Care,Care and Assessment,3819.33
12244874,23/08/2018,21/08/2018,3000000,Sage Care Ltd,Adults Home Care,Care and Assessment,3786.25
12274987,26/09/2018,18/09/2018,3000000,Sage Care Ltd,Adults Home Care,Care and Assessment,3809.82
12213005,25/07/2018,24/07/2018,3000000,Sage Care Ltd,Adults Home Care,Care and Assessment,2296.78
12244876,23/08/2018,21/08/2018,3000000,Sage Care Ltd,Adults Home Care,Care and Assessment,2237.62
12274989,26/09/2018,18/09/2018,3000000,Sage Care Ltd,Adults Home Care,Care and Assessment,1874.2
12213009,25/07/2018,24/07/2018,3000000,Sage Care Ltd,Adults Home Care,Care and Assessment,680.09
12244881,23/08/2018,21/08/2018,3000000,Sage Care Ltd,Adults Home Care,Care and Assessment,677.86
12213010,25/07/2018,24/07/2018,3000000,Sage Care Ltd,Adults Home Care,Care and Assessment,1485.81
12244882,23/08/2018,21/08/2018,3000000,Sage Care Ltd,Adults Home Care,Care and Assessment,1486.33
12274995,26/09/2018,18/09/2018,3000000,Sage Care Ltd,Adults Home Care,Care and Assessment,1507.53
12213013,25/07/2018,24/07/2018,3000000,Sage Care Ltd,Adults Home Care,Care and Assessment,1431.88
12244885,23/08/2018,21/08/2018,3000000,Sage Care Ltd,Adults Home Care,Care and Assessment,1452.03
12274997,26/09/2018,18/09/2018,3000000,Sage Care Ltd,Adults Home Care,Care and Assessment,1435.21
12213015,25/07/2018,24/07/2018,3000000,Sage Care Ltd,Adults Home Care,Care and Assessment,519.84
12244887,23/08/2018,21/08/2018,3000000,Sage Care Ltd,Adults Home Care,Care and Assessment,529.44
12274999,26/09/2018,18/09/2018,3000000,Sage Care Ltd,Adults Home Care,Care and Assessment,525.64
12213017,25/07/2018,24/07/2018,3000000,Sage Care Ltd,Adults Home Care,Care and Assessment,5516.83
12244889,23/08/2018,21/08/2018,3000000,Sage Care Ltd,Adults Home Care,Care and Assessment,5488.53
12213018,25/07/2018,24/07/2018,3000000,Sage Care Ltd,Adults Home Care,Care and Assessment,741.14
12244890,23/08/2018,21/08/2018,3000000,Sage Care Ltd,Adults Home Care,Care and Assessment,708.57
12275001,26/09/2018,18/09/2018,3000000,Sage Care Ltd,Adults Home Care,Care and Assessment,689.77
12213019,25/07/2018,24/07/2018,3000000,Sage Care Ltd,Adults Home Care,Care and Assessment,860.47
12244891,23/08/2018,21/08/2018,3000000,Sage Care Ltd,Adults Home Care,Care and Assessment,851.46
12275002,26/09/2018,18/09/2018,3000000,Sage Care Ltd,Adults Home Care,Care and Assessment,837.67
12213020,25/07/2018,24/07/2018,3000000,Sage Care Ltd,Adults Home Care,Care and Assessment,2475.62
12244892,23/08/2018,21/08/2018,3000000,Sage Care Ltd,Adults Home Care,Care and Assessment,2401.47
12275003,26/09/2018,18/09/2018,3000000,Sage Care Ltd,Adults Home Care,Care and Assessment,2432.73
12275005,26/09/2018,18/09/2018,3000000,Sage Care Ltd,Adults Home Care,Care and Assessment,569.95
12213023,25/07/2018,24/07/2018,3000000,Sage Care Ltd,Adults Home Care,Care and Assessment,1796.76
12244895,23/08/2018,21/08/2018,3000000,Sage Care Ltd,Adults Home Care,Care and Assessment,1755.48
12275006,26/09/2018,18/09/2018,3000000,Sage Care Ltd,Adults Home Care,Care and Assessment,1796.11
12213026,25/07/2018,24/07/2018,3000000,Sage Care Ltd,Adults Home Care,Care and Assessment,534.99
12244897,23/08/2018,21/08/2018,3000000,Sage Care Ltd,Adults Home Care,Care and Assessment,780.65
12275008,26/09/2018,18/09/2018,3000000,Sage Care Ltd,Adults Home Care,Care and Assessment,509.38
12213028,25/07/2018,24/07/2018,3000000,Sage Care Ltd,Adults Home Care,Care and Assessment,941.11
12244899,23/08/2018,21/08/2018,3000000,Sage Care Ltd,Adults Home Care,Care and Assessment,943.2
12275010,26/09/2018,18/09/2018,3000000,Sage Care Ltd,Adults Home Care,Care and Assessment,946.82
12275011,26/09/2018,18/09/2018,3000000,Sage Care Ltd,Adults Home Care,Care and Assessment,515.4
12213032,25/07/2018,24/07/2018,3000000,Sage Care Ltd,Adults Home Care,Care and Assessment,1891.17
12244902,23/08/2018,21/08/2018,3000000,Sage Care Ltd,Adults Home Care,Care and Assessment,1886.73
12275013,26/09/2018,18/09/2018,3000000,Sage Care Ltd,Adults Home Care,Care and Assessment,1900.05
12244907,23/08/2018,21/08/2018,3000000,Sage Care Ltd,Adults Home Care,Care and Assessment,796.45
12275018,26/09/2018,18/09/2018,3000000,Sage Care Ltd,Adults Home Care,Care and Assessment,1046.36
12213037,25/07/2018,24/07/2018,3000000,Sage Care Ltd,Adults Home Care,Care and Assessment,2280.1
12244908,23/08/2018,21/08/2018,3000000,Sage Care Ltd,Adults Home Care,Care and Assessment,2277.94
12275019,26/09/2018,18/09/2018,3000000,Sage Care Ltd,Adults Home Care,Care and Assessment,2264.14
12213039,25/07/2018,24/07/2018,3000000,Sage Care Ltd,Adults Home Care,Care and Assessment,708.12
12244911,23/08/2018,21/08/2018,3000000,Sage Care Ltd,Adults Home Care,Care and Assessment,960.51
12275022,26/09/2018,18/09/2018,3000000,Sage Care Ltd,Adults Home Care,Care and Assessment,1758.96
12213040,25/07/2018,24/07/2018,3000000,Sage Care Ltd,Adults Home Care,Care and Assessment,1106.29
12244912,23/08/2018,21/08/2018,3000000,Sage Care Ltd,Adults Home Care,Care and Assessment,1035.74
12275023,26/09/2018,18/09/2018,3000000,Sage Care Ltd,Adults Home Care,Care and Assessment,904.67
12213041,25/07/2018,24/07/2018,3000000,Sage Care Ltd,Adults Home Care,Care and Assessment,2169.31
12244913,23/08/2018,21/08/2018,3000000,Sage Care Ltd,Adults Home Care,Care and Assessment,1170.14
12275025,26/09/2018,18/09/2018,3000000,Sage Care Ltd,Adults Home Care,Care and Assessment,1170.46
12213042,25/07/2018,24/07/2018,3000000,Sage Care Ltd,Adults Home Care,Care and Assessment,1222.14
12244914,23/08/2018,21/08/2018,3000000,Sage Care Ltd,Adults Home Care,Care and Assessment,1041.62
12275026,26/09/2018,18/09/2018,3000000,Sage Care Ltd,Adults Home Care,Care and Assessment,1049.98
12213043,25/07/2018,24/07/2018,3000000,Sage Care Ltd,Adults Home Care,Care and Assessment,1352.09
12244915,23/08/2018,21/08/2018,3000000,Sage Care Ltd,Adults Home Care,Care and Assessment,1383.91
12275027,26/09/2018,18/09/2018,3000000,Sage Care Ltd,Adults Home Care,Care and Assessment,1382.85
12213044,25/07/2018,24/07/2018,3000000,Sage Care Ltd,Adults Home Care,Care and Assessment,1021.43
12244916,23/08/2018,21/08/2018,3000000,Sage Care Ltd,Adults Home Care,Care and Assessment,1029.38
12275028,26/09/2018,18/09/2018,3000000,Sage Care Ltd,Adults Home Care,Care and Assessment,1017.5
12213046,25/07/2018,24/07/2018,3000000,Sage Care Ltd,Adults Home Care,Care and Assessment,1030.31
12244918,23/08/2018,21/08/2018,3000000,Sage Care Ltd,Adults Home Care,Care and Assessment,1244.45
12275031,26/09/2018,18/09/2018,3000000,Sage Care Ltd,Adults Home Care,Care and Assessment,1028.56
12213047,25/07/2018,24/07/2018,3000000,Sage Care Ltd,Adults Home Care,Care and Assessment,869.08
12244919,23/08/2018,21/08/2018,3000000,Sage Care Ltd,Adults Home Care,Care and Assessment,869.08
12275032,26/09/2018,18/09/2018,3000000,Sage Care Ltd,Adults Home Care,Care and Assessment,869.63
12275035,26/09/2018,18/09/2018,3000000,Sage Care Ltd,Adults Home Care,Care and Assessment,711.42
12213049,25/07/2018,24/07/2018,3000000,Sage Care Ltd,Adults Home Care,Care and Assessment,626.03
12244923,23/08/2018,21/08/2018,3000000,Sage Care Ltd,Adults Home Care,Care and Assessment,598.7
12275037,26/09/2018,18/09/2018,3000000,Sage Care Ltd,Adults Home Care,Care and Assessment,607.94
12213050,25/07/2018,24/07/2018,3000000,Sage Care Ltd,Adults Home Care,Care and Assessment,761.2
12244924,23/08/2018,21/08/2018,3000000,Sage Care Ltd,Adults Home Care,Care and Assessment,983.66
12275038,26/09/2018,18/09/2018,3000000,Sage Care Ltd,Adults Home Care,Care and Assessment,967.11
12213052,25/07/2018,24/07/2018,3000000,Sage Care Ltd,Adults Home Care,Care and Assessment,1397.38
12244926,23/08/2018,21/08/2018,3000000,Sage Care Ltd,Adults Home Care,Care and Assessment,1403.29
12213053,25/07/2018,24/07/2018,3000000,Sage Care Ltd,Adults Home Care,Community Mental Health Service 2,1015.06
12244927,23/08/2018,21/08/2018,3000000,Sage Care Ltd,Adults Home Care,Community Mental Health Service 2,534.87
12213056,25/07/2018,24/07/2018,3000000,Sage Care Ltd,Adults Home Care,Care and Assessment,963.39
12244930,23/08/2018,21/08/2018,3000000,Sage Care Ltd,Adults Home Care,Care and Assessment,582.27
12213057,25/07/2018,24/07/2018,3000000,Sage Care Ltd,Adults Home Care,Care and Assessment,2213.77
12244931,23/08/2018,21/08/2018,3000000,Sage Care Ltd,Adults Home Care,Care and Assessment,2211.45
12275043,26/09/2018,18/09/2018,3000000,Sage Care Ltd,Adults Home Care,Care and Assessment,2386.8
12213058,25/07/2018,24/07/2018,3000000,Sage Care Ltd,Adults Home Care,Care and Assessment,1880.79
12244932,23/08/2018,21/08/2018,3000000,Sage Care Ltd,Adults Home Care,Care and Assessment,1880.9
12275044,26/09/2018,18/09/2018,3000000,Sage Care Ltd,Adults Home Care,Care and Assessment,1887.2
12213059,25/07/2018,24/07/2018,3000000,Sage Care Ltd,Adults Home Care,Care and Assessment,1790.73
12244933,23/08/2018,21/08/2018,3000000,Sage Care Ltd,Adults Home Care,Care and Assessment,1795.8
12275045,26/09/2018,18/09/2018,3000000,Sage Care Ltd,Adults Home Care,Care and Assessment,1642.72
12213061,25/07/2018,24/07/2018,3000000,Sage Care Ltd,Adults Home Care,Care and Assessment,1808.07
12213062,25/07/2018,24/07/2018,3000000,Sage Care Ltd,Adults Home Care,Care and Assessment,2090.41
12244934,23/08/2018,21/08/2018,3000000,Sage Care Ltd,Adults Home Care,Care and Assessment,2081.91
12275046,26/09/2018,18/09/2018,3000000,Sage Care Ltd,Adults Home Care,Care and Assessment,2077.64
12213063,25/07/2018,24/07/2018,3000000,Sage Care Ltd,Adults Home Care,Care and Assessment,702.43
12244935,23/08/2018,21/08/2018,3000000,Sage Care Ltd,Adults Home Care,Care and Assessment,778.61
12275048,26/09/2018,18/09/2018,3000000,Sage Care Ltd,Adults Home Care,Care and Assessment,988.58
12244936,23/08/2018,21/08/2018,3000000,Sage Care Ltd,Adults Home Care,Care and Assessment,539.6
12275049,26/09/2018,18/09/2018,3000000,Sage Care Ltd,Adults Home Care,Care and Assessment,1031.08
12244937,23/08/2018,21/08/2018,3000000,Sage Care Ltd,Adults Home Care,Care and Assessment,661.14
12275050,26/09/2018,18/09/2018,3000000,Sage Care Ltd,Adults Home Care,Care and Assessment,638.1
12213066,25/07/2018,24/07/2018,3000000,Sage Care Ltd,Adults Home Care,Care and Assessment,3457.72
12244938,23/08/2018,21/08/2018,3000000,Sage Care Ltd,Adults Home Care,Care and Assessment,3470.4
12275051,26/09/2018,18/09/2018,3000000,Sage Care Ltd,Adults Home Care,Care and Assessment,618.32
12213067,25/07/2018,24/07/2018,3000000,Sage Care Ltd,Adults Home Care,Care and Assessment,3797.27
12244939,23/08/2018,21/08/2018,3000000,Sage Care Ltd,Adults Home Care,Care and Assessment,4063.67
12275052,26/09/2018,18/09/2018,3000000,Sage Care Ltd,Adults Home Care,Care and Assessment,4203.45
12213069,25/07/2018,24/07/2018,3000000,Sage Care Ltd,Adults Home Care,Care and Assessment,970.91
12244941,23/08/2018,21/08/2018,3000000,Sage Care Ltd,Adults Home Care,Care and Assessment,971.75
12275054,26/09/2018,18/09/2018,3000000,Sage Care Ltd,Adults Home Care,Care and Assessment,946.96
12213071,25/07/2018,24/07/2018,3000000,Sage Care Ltd,Adults Home Care,Care and Assessment,1910.92
12244943,23/08/2018,21/08/2018,3000000,Sage Care Ltd,Adults Home Care,Care and Assessment,1931.4
12275056,26/09/2018,18/09/2018,3000000,Sage Care Ltd,Adults Home Care,Care and Assessment,1880.28
12213073,25/07/2018,24/07/2018,3000000,Sage Care Ltd,Adults Home Care,Care and Assessment,2587.86
12244945,23/08/2018,21/08/2018,3000000,Sage Care Ltd,Adults Home Care,Care and Assessment,2678.77
12275058,26/09/2018,18/09/2018,3000000,Sage Care Ltd,Adults Home Care,Care and Assessment,1809.81
12275059,26/09/2018,18/09/2018,3000000,Sage Care Ltd,Adults Home Care,Care and Assessment,603.39
12213074,25/07/2018,24/07/2018,3000000,Sage Care Ltd,Adults Home Care,Care and Assessment,2872.22
12244947,23/08/2018,21/08/2018,3000000,Sage Care Ltd,Adults Home Care,Care and Assessment,2892.11
12275060,26/09/2018,18/09/2018,3000000,Sage Care Ltd,Adults Home Care,Care and Assessment,2231.91
12244950,23/08/2018,21/08/2018,3000000,Sage Care Ltd,Adults Home Care,Care and Assessment,557.92
12275063,26/09/2018,18/09/2018,3000000,Sage Care Ltd,Adults Home Care,Care and Assessment,523.86
12213079,25/07/2018,24/07/2018,3000000,Sage Care Ltd,Adults Home Care,Care and Assessment,765.64
12244951,23/08/2018,21/08/2018,3000000,Sage Care Ltd,Adults Home Care,Care and Assessment,753.91
12275064,26/09/2018,18/09/2018,3000000,Sage Care Ltd,Adults Home Care,Care and Assessment,742.94
12213080,25/07/2018,24/07/2018,3000000,Sage Care Ltd,Adults Home Care,Care and Assessment,847.29
12244952,23/08/2018,21/08/2018,3000000,Sage Care Ltd,Adults Home Care,Care and Assessment,857.95
12275065,26/09/2018,18/09/2018,3000000,Sage Care Ltd,Adults Home Care,Care and Assessment,843.91
12213082,25/07/2018,24/07/2018,3000000,Sage Care Ltd,Adults Home Care,Care and Assessment,1922.51
12244953,23/08/2018,21/08/2018,3000000,Sage Care Ltd,Adults Home Care,Care and Assessment,1935.92
12275068,26/09/2018,18/09/2018,3000000,Sage Care Ltd,Adults Home Care,Care and Assessment,1820.09
12213083,25/07/2018,24/07/2018,3000000,Sage Care Ltd,Adults Home Care,Care and Assessment,1625.48
12213084,25/07/2018,24/07/2018,3000000,Sage Care Ltd,Adults Home Care,Care and Assessment,1044.82
12244955,23/08/2018,21/08/2018,3000000,Sage Care Ltd,Adults Home Care,Care and Assessment,989.31
12275069,26/09/2018,18/09/2018,3000000,Sage Care Ltd,Adults Home Care,Care and Assessment,1042.55
12213085,25/07/2018,24/07/2018,3000000,Sage Care Ltd,Adults Home Care,Care and Assessment,1046.86
12244956,23/08/2018,21/08/2018,3000000,Sage Care Ltd,Adults Home Care,Care and Assessment,1031.31
12275070,26/09/2018,18/09/2018,3000000,Sage Care Ltd,Adults Home Care,Care and Assessment,1047.35
12213087,25/07/2018,24/07/2018,3000000,Sage Care Ltd,Adults Home Care,Community Mental Health Service 2,1086.2
12244957,23/08/2018,21/08/2018,3000000,Sage Care Ltd,Adults Home Care,Community Mental Health Service 2,1108.94
12275071,26/09/2018,18/09/2018,3000000,Sage Care Ltd,Adults Home Care,Community Mental Health Service 2,1093.04
12213088,25/07/2018,24/07/2018,3000000,Sage Care Ltd,Adults Home Care,Care and Assessment,3427.19
12244958,23/08/2018,21/08/2018,3000000,Sage Care Ltd,Adults Home Care,Care and Assessment,3459.84
12275072,26/09/2018,18/09/2018,3000000,Sage Care Ltd,Adults Home Care,Care and Assessment,3430.23
12213089,25/07/2018,24/07/2018,3000000,Sage Care Ltd,Adults Home Care,Care and Assessment,1188.43
12244959,23/08/2018,21/08/2018,3000000,Sage Care Ltd,Adults Home Care,Care and Assessment,1168.19
12274958,26/09/2018,18/09/2018,3000000,Sage Care Ltd,Adults Home Care,Care and Assessment,1178.89
12213090,25/07/2018,24/07/2018,3000000,Sage Care Ltd,Adults Home Care,Care and Assessment,704.84
12244960,23/08/2018,21/08/2018,3000000,Sage Care Ltd,Adults Home Care,Care and Assessment,608.56
12274959,26/09/2018,18/09/2018,3000000,Sage Care Ltd,Adults Home Care,Care and Assessment,606.55
12213091,25/07/2018,24/07/2018,3000000,Sage Care Ltd,Adults Home Care,Care and Assessment,3309.69
12244961,23/08/2018,21/08/2018,3000000,Sage Care Ltd,Adults Home Care,Care and Assessment,3347.75
12274960,26/09/2018,18/09/2018,3000000,Sage Care Ltd,Adults Home Care,Care and Assessment,3325.37
12213092,25/07/2018,24/07/2018,3000000,Sage Care Ltd,Adults Home Care,Care and Assessment,1213.37
12244962,23/08/2018,21/08/2018,3000000,Sage Care Ltd,Adults Home Care,Care and Assessment,1213.09
12274961,26/09/2018,18/09/2018,3000000,Sage Care Ltd,Adults Home Care,Care and Assessment,1160.74
12213093,25/07/2018,24/07/2018,3000000,Sage Care Ltd,Adults Home Care,Care and Assessment,1473.33
12244963,23/08/2018,21/08/2018,3000000,Sage Care Ltd,Adults Home Care,Care and Assessment,1159.86
12274962,26/09/2018,18/09/2018,3000000,Sage Care Ltd,Adults Home Care,Care and Assessment,1372.42
12244964,23/08/2018,21/08/2018,3000000,Sage Care Ltd,Adults Home Care,Care and Assessment,1159.95
12213095,25/07/2018,24/07/2018,3000000,Sage Care Ltd,Adults Home Care,Care and Assessment,938.47
12244965,23/08/2018,21/08/2018,3000000,Sage Care Ltd,Adults Home Care,Care and Assessment,941.36
12274964,26/09/2018,18/09/2018,3000000,Sage Care Ltd,Adults Home Care,Care and Assessment,950.78
12213096,25/07/2018,24/07/2018,3000000,Sage Care Ltd,Adults Home Care,Care and Assessment,1046.65
12274965,26/09/2018,18/09/2018,3000000,Sage Care Ltd,Adults Home Care,Care and Assessment,940.66
12213097,25/07/2018,24/07/2018,3000000,Sage Care Ltd,Adults Home Care,Care and Assessment,513.4
12213098,25/07/2018,24/07/2018,3000000,Sage Care Ltd,Adults Home Care,Care and Assessment,1472.83
12244967,23/08/2018,21/08/2018,3000000,Sage Care Ltd,Adults Home Care,Care and Assessment,817.35
12274967,26/09/2018,18/09/2018,3000000,Sage Care Ltd,Adults Home Care,Care and Assessment,893.88
12213100,25/07/2018,24/07/2018,3000000,Sage Care Ltd,Adults Home Care,Care and Assessment,1216.65
12244969,23/08/2018,21/08/2018,3000000,Sage Care Ltd,Adults Home Care,Care and Assessment,1185.22
12274969,26/09/2018,18/09/2018,3000000,Sage Care Ltd,Adults Home Care,Care and Assessment,1175.76
12213103,25/07/2018,24/07/2018,3000000,Sage Care Ltd,Adults Home Care,Care and Assessment,699.81
12244972,23/08/2018,21/08/2018,3000000,Sage Care Ltd,Adults Home Care,Care and Assessment,682.4
12274972,26/09/2018,18/09/2018,3000000,Sage Care Ltd,Adults Home Care,Care and Assessment,685.77
12213104,25/07/2018,24/07/2018,3000000,Sage Care Ltd,Adults Home Care,Care and Assessment,705.73
12244973,23/08/2018,21/08/2018,3000000,Sage Care Ltd,Adults Home Care,Care and Assessment,709.43
12274974,26/09/2018,18/09/2018,3000000,Sage Care Ltd,Adults Home Care,Care and Assessment,639.08
12213105,25/07/2018,24/07/2018,3000000,Sage Care Ltd,Adults Home Care,Care and Assessment,992.25
12244974,23/08/2018,21/08/2018,3000000,Sage Care Ltd,Adults Home Care,Care and Assessment,925.58
12274975,26/09/2018,18/09/2018,3000000,Sage Care Ltd,Adults Home Care,Care and Assessment,1014.65
12213106,25/07/2018,24/07/2018,3000000,Sage Care Ltd,Adults Home Care,Care and Assessment,1187.01
12244975,23/08/2018,21/08/2018,3000000,Sage Care Ltd,Adults Home Care,Care and Assessment,1190.83
12274976,26/09/2018,18/09/2018,3000000,Sage Care Ltd,Adults Home Care,Care and Assessment,1177.52
12213107,25/07/2018,24/07/2018,3000000,Sage Care Ltd,Adults Home Care,Care and Assessment,831.06
12244976,23/08/2018,21/08/2018,3000000,Sage Care Ltd,Adults Home Care,Care and Assessment,834.96
12274977,26/09/2018,18/09/2018,3000000,Sage Care Ltd,Adults Home Care,Care and Assessment,819.34
12213109,25/07/2018,24/07/2018,3000000,Sage Care Ltd,Adults Home Care,Care and Assessment,2159.54
12244978,23/08/2018,21/08/2018,3000000,Sage Care Ltd,Adults Home Care,Care and Assessment,1720.63
12274979,26/09/2018,18/09/2018,3000000,Sage Care Ltd,Adults Home Care,Care and Assessment,1436.46
12213110,25/07/2018,24/07/2018,3000000,Sage Care Ltd,Adults Home Care,Care and Assessment,583.65
12244979,23/08/2018,21/08/2018,3000000,Sage Care Ltd,Adults Home Care,Care and Assessment,816.7
12244981,23/08/2018,21/08/2018,3000000,Sage Care Ltd,Adults Home Care,Care and Assessment,781.33
12274981,26/09/2018,18/09/2018,3000000,Sage Care Ltd,Adults Home Care,Care and Assessment,778.8
12274983,26/09/2018,18/09/2018,3000000,Sage Care Ltd,Adults Home Care,Care and Assessment,1622.62
3463323,10/08/2018,31/05/2018,3000002,Gva Grimley Ltd,Education (Hired & Contr - Educ),HRA Managed Property,3895
3474296,29/08/2018,30/11/2017,3000002,Gva Grimley Ltd,Education (Hired & Contr - Educ),Investment Property,7000
3461710,24/07/2018,28/12/2017,3000002,Gva Grimley Ltd,Education (Hired & Contr - Educ),Investment Property,4932.1
3461711,24/07/2018,28/12/2017,3000002,Gva Grimley Ltd,Education (Hired & Contr - Educ),HRA Managed Property,1360
3460926,20/07/2018,26/02/2018,3000002,Gva Grimley Ltd,Education (Hired & Contr - Educ),HRA Managed Property,2860
3474577,05/09/2018,27/02/2018,3000002,Gva Grimley Ltd,Education (Hired & Contr - Educ),HRA Managed Property,2002.12
3474578,05/09/2018,27/02/2018,3000002,Gva Grimley Ltd,Education (Hired & Contr - Educ),HRA Managed Property,848.1
3463858,30/07/2018,30/04/2018,3000002,Gva Grimley Ltd,Management (Hired & Contr - Consultancy),Investment Property,40162.5
3442080,18/07/2018,27/04/2018,3000002,Gva Grimley Ltd,Valuation Fees,HRA Managed Property,3272.5
3466178,08/08/2018,31/05/2018,3000002,Gva Grimley Ltd,Management (Hired & Contr - Consultancy),Investment Property,40162.5
3459687,27/07/2018,11/05/2018,3000002,Gva Grimley Ltd,Education (Hired & Contr - Educ),HRA Managed Property,6500
3481523,19/09/2018,15/05/2018,3000002,Gva Grimley Ltd,Education (Hired & Contr - Educ),Operational Property,3460
3458050,30/07/2018,29/05/2018,3000002,Gva Grimley Ltd,Valuation Fees,HRA Managed Property,3904.8
3466179,08/08/2018,30/06/2018,3000002,Gva Grimley Ltd,Management (Hired & Contr - Consultancy),Investment Property,40162.5
3474583,19/09/2018,12/06/2018,3000002,Gva Grimley Ltd,Management (Hired & Contr - Consultancy),HRA Managed Property,1725
3463860,31/07/2018,30/06/2018,3000002,Gva Grimley Ltd,Management (Hired & Contr - Consultancy),Investment Property,1875
3483749,27/09/2018,25/06/2018,3000002,Gva Grimley Ltd,Education (Hired & Contr - Educ),HRA Managed Property,1750
3459688,18/07/2018,28/06/2018,3000002,Gva Grimley Ltd,Management (Hired & Contr - Consultancy),Investment Property,28568.79
3463324,17/08/2018,25/07/2018,3000002,Gva Grimley Ltd,Education (Hired & Contr - Educ),HRA Managed Property,1500
3463173,01/08/2018,25/07/2018,3000002,Gva Grimley Ltd,Architects,Property Projects,4100
3464169,03/08/2018,27/07/2018,3000002,Gva Grimley Ltd,Valuation Fees,Operational Property,29205
3474780,25/09/2018,27/07/2018,3000002,Gva Grimley Ltd,Management (Hired & Contr - Consultancy),HRA Managed Property,1925
3474781,25/09/2018,27/07/2018,3000002,Gva Grimley Ltd,Management (Hired & Contr - Consultancy),HRA Managed Property,1849
3466180,09/08/2018,30/07/2018,3000002,Gva Grimley Ltd,Surveyors Building,Housing Regeneration,23250
3464721,07/08/2018,31/07/2018,3000002,Gva Grimley Ltd,Management (Hired & Contr - Consultancy),Investment Property,4933.64
3464719,07/08/2018,31/07/2018,3000002,Gva Grimley Ltd,Management (Hired & Contr - Consultancy),Investment Property,5366.55
3464722,07/08/2018,31/07/2018,3000002,Gva Grimley Ltd,Management (Hired & Contr - Consultancy),Investment Property,25348.39
3478360,17/09/2018,31/08/2018,3000002,Gva Grimley Ltd,Education (Hired & Contr - Educ),HRA Managed Property,40162.5
3469869,16/08/2018,08/08/2018,3000002,Gva Grimley Ltd,Education (Hired & Contr - Educ),HRA Managed Property,800
3469361,20/08/2018,13/08/2018,3000002,Gva Grimley Ltd,Refurbishment,Operational Property,3000
3469362,20/08/2018,13/08/2018,3000002,Gva Grimley Ltd,Refurbishment,Operational Property,3000
3470469,29/08/2018,13/08/2018,3000002,Gva Grimley Ltd,Education (Hired & Contr - Educ),HRA Managed Property,2250
3477347,20/09/2018,13/08/2018,3000002,Gva Grimley Ltd,Management (Hired & Contr - Consultancy),HRA Managed Property,640
3474579,06/09/2018,29/08/2018,3000002,Gva Grimley Ltd,Architects,Property Projects,2453.9
3478361,25/09/2018,31/08/2018,3000002,Gva Grimley Ltd,Education (Hired & Contr - Educ),HRA Managed Property,1359.02
3480213,19/09/2018,12/09/2018,3000002,Gva Grimley Ltd,Refurbishment,Operational Property,3000
3455321,03/08/2018,05/07/2018,3000004,First In Service Ltd,Repairs (Equip Catering),Contracts and Commercial Development,6351.95
3436496,19/09/2018,24/05/2018,3000014,Frankham Consultancy Group Ltd,Professional Fees (non-Legal),HRA City West Homes,694.14
3439310,19/09/2018,31/05/2018,3000014,Frankham Consultancy Group Ltd,Consultants/Consultation,HRA City West Homes,780
3474297,19/09/2018,22/08/2018,3000014,Frankham Consultancy Group Ltd,Consultants/Consultation,HRA City West Homes,4767.5
3463862,19/09/2018,01/12/2017,3000014,Frankham Consultancy Group Ltd,Consultants/Consultation,HRA City West Homes,7700
3463861,19/09/2018,13/12/2017,3000014,Frankham Consultancy Group Ltd,Consultants/Consultation,HRA City West Homes,5500
3463863,19/09/2018,31/01/2018,3000014,Frankham Consultancy Group Ltd,Consultants/Consultation,HRA City West Homes,8800
3448408,02/07/2018,11/06/2018,3000015,Capita Business Services Ltd,Council Tax & Business Rates (Hired & Contr - Fin'l Services),Revenue and Benefits,2000
3451842,02/07/2018,11/06/2018,3000015,Capita Business Services Ltd,Legal Services (Legal Fees),Revenue and Benefits,20733
3451541,02/07/2018,11/06/2018,3000015,Capita Business Services Ltd,Council Tax & Business Rates (Hired & Contr - Fin'l Services),Revenue and Benefits,265397.5
3454622,23/07/2018,02/07/2018,3000015,Capita Business Services Ltd,Financial Servs: Not Elsewhere Classified (Hired & Contr - Fin'l Services),Revenue and Benefits,532663
3454623,23/07/2018,02/07/2018,3000015,Capita Business Services Ltd,Council Tax & Business Rates (Hired & Contr - Fin'l Services),Revenue and Benefits,3504
3454621,23/07/2018,02/07/2018,3000015,Capita Business Services Ltd,Financial Servs: Not Elsewhere Classified (Hired & Contr - Fin'l Services),Revenue and Benefits,26606.89
3455797,25/07/2018,04/07/2018,3000015,Capita Business Services Ltd,Council Tax & Business Rates (Hired & Contr - Fin'l Services),Revenue and Benefits,265397.5
3455798,25/07/2018,04/07/2018,3000015,Capita Business Services Ltd,Legal Services (Legal Fees),Revenue and Benefits,13453
3472075,22/08/2018,20/07/2018,3000015,Capita Business Services Ltd,Financial Servs: Not Elsewhere Classified (Hired & Contr - Fin'l Services),Revenue and Benefits,3791.38
3464170,17/08/2018,27/07/2018,3000015,Capita Business Services Ltd,Postage and Couriers,Revenue and Benefits,1388.5
3472880,23/08/2018,02/08/2018,3000015,Capita Business Services Ltd,Council Tax & Business Rates (Hired & Contr - Fin'l Services),Revenue and Benefits,1168
3474866,30/08/2018,02/08/2018,3000015,Capita Business Services Ltd,Financial Servs: Not Elsewhere Classified (Hired & Contr - Fin'l Services),Revenue and Benefits,532663
3474867,04/09/2018,14/08/2018,3000015,Capita Business Services Ltd,Council Tax & Business Rates (Hired & Contr - Fin'l Services),Revenue and Benefits,265397.5
3474856,04/09/2018,14/08/2018,3000015,Capita Business Services Ltd,Legal Services (Legal Fees),Revenue and Benefits,5835
3478363,11/09/2018,21/08/2018,3000015,Capita Business Services Ltd,Financial Servs: Not Elsewhere Classified (Hired & Contr - Fin'l Services),Revenue and Benefits,17738
3478364,11/09/2018,21/08/2018,3000015,Capita Business Services Ltd,Financial Servs: Not Elsewhere Classified (Hired & Contr - Fin'l Services),Revenue and Benefits,140626
3480491,25/09/2018,04/09/2018,3000015,Capita Business Services Ltd,Council Tax & Business Rates (Hired & Contr - Fin'l Services),Revenue and Benefits,1168
3480490,25/09/2018,04/09/2018,3000015,Capita Business Services Ltd,Financial Servs: Not Elsewhere Classified (Hired & Contr - Fin'l Services),Revenue and Benefits,532663
3484085,28/09/2018,06/09/2018,3000015,Capita Business Services Ltd,Council Tax & Business Rates (Hired & Contr - Fin'l Services),Revenue and Benefits,265397.5
3449165,12/07/2018,20/05/2018,3000015,Capita Business Services Ltd,Training & Conferences,Organisational Development,39606.95
3460772,27/07/2018,08/07/2018,3000015,Capita Business Services Ltd,Training & Conferences,Organisational Development,2292.63
3460773,27/07/2018,08/07/2018,3000015,Capita Business Services Ltd,Training & Conferences,Organisational Development,10051.81
3467298,10/08/2018,22/07/2018,3000015,Capita Business Services Ltd,Training & Conferences,Organisational Development,27461.9
3470921,21/08/2018,31/07/2018,3000015,Capita Business Services Ltd,Training & Conferences,Organisational Development,31299.9
3470922,21/08/2018,31/07/2018,3000015,Capita Business Services Ltd,Training & Conferences,Organisational Development,11043.34
3467787,24/08/2018,05/08/2018,3000015,Capita Business Services Ltd,Training & Conferences,Organisational Development,13109.8
3474299,07/09/2018,19/08/2018,3000015,Capita Business Services Ltd,Training & Conferences,Organisational Development,4444
3476977,21/09/2018,31/08/2018,3000015,Capita Business Services Ltd,Training & Conferences,Organisational Development,713.22
3453072,27/07/2018,29/06/2018,3000022,Penna Plc,Recruitment & Promotional,Organisational Development,3748
12206417,20/07/2018,16/07/2018,3000024,Effectable Construction Services Ltd,Building Construction Materials Planned (R&M -Plan),HRA City West Homes,7322.52
12206417,20/07/2018,16/07/2018,3000024,Effectable Construction Services Ltd,Building Construction Materials Planned (R&M -Plan),HRA City West Homes,6594.28
12206417,20/07/2018,16/07/2018,3000024,Effectable Construction Services Ltd,Building Construction Materials Planned (R&M -Plan),HRA City West Homes,6152.77
12206417,20/07/2018,16/07/2018,3000024,Effectable Construction Services Ltd,Building Construction Materials Reactive (R&M - React),HRA City West Homes,1077.73
12206417,20/07/2018,16/07/2018,3000024,Effectable Construction Services Ltd,Building Construction Materials Reactive (R&M - React),HRA City West Homes,2621.19
12206417,20/07/2018,16/07/2018,3000024,Effectable Construction Services Ltd,Building Construction Materials Reactive (R&M - React),HRA City West Homes,4672.47
12206417,20/07/2018,16/07/2018,3000024,Effectable Construction Services Ltd,Building Construction Materials Planned (R&M -Plan),HRA City West Homes,4204.96
12206417,20/07/2018,16/07/2018,3000024,Effectable Construction Services Ltd,Building Construction Materials Reactive (R&M - React),HRA City West Homes,6152.77
12206417,20/07/2018,16/07/2018,3000024,Effectable Construction Services Ltd,Building Construction Materials Planned (R&M -Plan),HRA City West Homes,6152.77
12206417,20/07/2018,16/07/2018,3000024,Effectable Construction Services Ltd,Building Construction Materials Reactive (R&M - React),HRA City West Homes,579.6
12206417,20/07/2018,16/07/2018,3000024,Effectable Construction Services Ltd,Building Construction Materials Planned (R&M -Plan),HRA City West Homes,620.85
12206417,20/07/2018,16/07/2018,3000024,Effectable Construction Services Ltd,Building Construction Materials Reactive (R&M - React),HRA City West Homes,2715.07
12206417,20/07/2018,16/07/2018,3000024,Effectable Construction Services Ltd,Building Construction Materials Reactive (R&M - React),HRA City West Homes,700.22
12206417,20/07/2018,16/07/2018,3000024,Effectable Construction Services Ltd,Building Construction Materials Planned (R&M -Plan),HRA City West Homes,6594.28
12206417,20/07/2018,16/07/2018,3000024,Effectable Construction Services Ltd,Building Construction Materials Planned (R&M -Plan),HRA City West Homes,6594.28
12206417,20/07/2018,16/07/2018,3000024,Effectable Construction Services Ltd,Building Construction Materials Reactive (R&M - React),HRA City West Homes,6999.54
12206417,20/07/2018,16/07/2018,3000024,Effectable Construction Services Ltd,Building Construction Materials Reactive (R&M - React),HRA City West Homes,3120.92
12214178,25/07/2018,17/07/2018,3000024,Effectable Construction Services Ltd,Contractors,HRA City West Homes,6594.28
12214178,25/07/2018,17/07/2018,3000024,Effectable Construction Services Ltd,Building Construction Materials Planned (R&M -Plan),HRA City West Homes,6152.77
12214178,25/07/2018,17/07/2018,3000024,Effectable Construction Services Ltd,Building Construction Materials Planned (R&M -Plan),HRA City West Homes,6152.77
12214178,25/07/2018,17/07/2018,3000024,Effectable Construction Services Ltd,Contractors,HRA City West Homes,6594.28
12214178,25/07/2018,17/07/2018,3000024,Effectable Construction Services Ltd,Contractors,HRA City West Homes,8996.52
12214178,25/07/2018,17/07/2018,3000024,Effectable Construction Services Ltd,Contractors,HRA City West Homes,2423.3
12214178,25/07/2018,17/07/2018,3000024,Effectable Construction Services Ltd,Building Construction Materials Planned (R&M -Plan),HRA City West Homes,6152.77
12214178,25/07/2018,17/07/2018,3000024,Effectable Construction Services Ltd,Building Construction Materials Reactive (R&M - React),HRA City West Homes,546.84
12214178,25/07/2018,17/07/2018,3000024,Effectable Construction Services Ltd,Contractors,HRA City West Homes,6594.28
12214178,25/07/2018,17/07/2018,3000024,Effectable Construction Services Ltd,Contractors,HRA City West Homes,6594.28
12214178,25/07/2018,17/07/2018,3000024,Effectable Construction Services Ltd,Building Construction Materials Planned (R&M -Plan),HRA City West Homes,7119.96
12214178,25/07/2018,17/07/2018,3000024,Effectable Construction Services Ltd,Building Construction Materials Planned (R&M -Plan),HRA City West Homes,6152.77
12214178,25/07/2018,17/07/2018,3000024,Effectable Construction Services Ltd,Building Construction Materials Reactive (R&M - React),HRA City West Homes,900.56
12214178,25/07/2018,17/07/2018,3000024,Effectable Construction Services Ltd,Contractors,HRA City West Homes,6594.28
12214178,25/07/2018,17/07/2018,3000024,Effectable Construction Services Ltd,Contractors,HRA City West Homes,6976.01
12214178,25/07/2018,17/07/2018,3000024,Effectable Construction Services Ltd,Building Construction Materials Planned (R&M -Plan),Temporary Accommodation,28944.85
12214178,25/07/2018,17/07/2018,3000024,Effectable Construction Services Ltd,Contractors,HRA City West Homes,6785.14
12214178,25/07/2018,17/07/2018,3000024,Effectable Construction Services Ltd,Building Construction Materials Reactive (R&M - React),HRA City West Homes,708.12
12214178,25/07/2018,17/07/2018,3000024,Effectable Construction Services Ltd,Contractors,HRA City West Homes,6152.77
12214178,25/07/2018,17/07/2018,3000024,Effectable Construction Services Ltd,Building Construction Materials Planned (R&M -Plan),HRA City West Homes,6152.77
12214178,25/07/2018,17/07/2018,3000024,Effectable Construction Services Ltd,Building Construction Materials Planned (R&M -Plan),HRA City West Homes,6152.77
12214178,25/07/2018,17/07/2018,3000024,Effectable Construction Services Ltd,Building Construction Materials Reactive (R&M - React),HRA City West Homes,672.9
12214178,25/07/2018,17/07/2018,3000024,Effectable Construction Services Ltd,Building Construction Materials Reactive (R&M - React),HRA City West Homes,579.32
12214178,25/07/2018,17/07/2018,3000024,Effectable Construction Services Ltd,Building Construction Materials Planned (R&M -Plan),HRA City West Homes,6612.87
12214178,25/07/2018,17/07/2018,3000024,Effectable Construction Services Ltd,Building Construction Materials Reactive (R&M - React),HRA City West Homes,687.57
12214178,25/07/2018,17/07/2018,3000024,Effectable Construction Services Ltd,Building Construction Materials Reactive (R&M - React),HRA City West Homes,743.84
12234892,15/08/2018,19/07/2018,3000024,Effectable Construction Services Ltd,Contractors,HRA City West Homes,6152.77
12234892,15/08/2018,19/07/2018,3000024,Effectable Construction Services Ltd,Contractors,HRA City West Homes,6152.77
12234892,15/08/2018,19/07/2018,3000024,Effectable Construction Services Ltd,Building Construction Materials Planned (R&M -Plan),HRA City West Homes,1330.58
12234892,15/08/2018,19/07/2018,3000024,Effectable Construction Services Ltd,Contractors,HRA City West Homes,6152.77
12234892,15/08/2018,19/07/2018,3000024,Effectable Construction Services Ltd,Contractors,HRA City West Homes,6152.77
12234892,15/08/2018,19/07/2018,3000024,Effectable Construction Services Ltd,Contractors,HRA City West Homes,6268.25
12234892,15/08/2018,19/07/2018,3000024,Effectable Construction Services Ltd,Contractors,HRA City West Homes,6152.77
12234892,15/08/2018,19/07/2018,3000024,Effectable Construction Services Ltd,Contractors,HRA City West Homes,6594.28
12234892,15/08/2018,19/07/2018,3000024,Effectable Construction Services Ltd,Contractors,HRA City West Homes,6594.28
12234892,15/08/2018,19/07/2018,3000024,Effectable Construction Services Ltd,Contractors,HRA City West Homes,6881.01
12234892,15/08/2018,19/07/2018,3000024,Effectable Construction Services Ltd,Contractors,HRA City West Homes,10361.76
12234892,15/08/2018,19/07/2018,3000024,Effectable Construction Services Ltd,Contractors,HRA City West Homes,6881.01
12234892,15/08/2018,19/07/2018,3000024,Effectable Construction Services Ltd,Contractors,HRA City West Homes,6152.77
12234892,15/08/2018,19/07/2018,3000024,Effectable Construction Services Ltd,Contractors,HRA City West Homes,8271.7
12234892,15/08/2018,19/07/2018,3000024,Effectable Construction Services Ltd,Contractors,HRA City West Homes,2607
12234892,15/08/2018,19/07/2018,3000024,Effectable Construction Services Ltd,Contractors,HRA City West Homes,6152.77
12234892,15/08/2018,19/07/2018,3000024,Effectable Construction Services Ltd,Contractors,HRA City West Homes,6594.28
12234892,15/08/2018,19/07/2018,3000024,Effectable Construction Services Ltd,Contractors,HRA City West Homes,6594.28
12234892,15/08/2018,19/07/2018,3000024,Effectable Construction Services Ltd,Contractors,HRA City West Homes,6594.28
12236530,16/08/2018,10/08/2018,3000024,Effectable Construction Services Ltd,Building Construction Materials Planned (R&M -Plan),HRA City West Homes,6152.77
12236530,16/08/2018,10/08/2018,3000024,Effectable Construction Services Ltd,Contractors,HRA City West Homes,6510.63
12236530,16/08/2018,10/08/2018,3000024,Effectable Construction Services Ltd,Building Construction Materials Planned (R&M -Plan),HRA City West Homes,6152.77
12236530,16/08/2018,10/08/2018,3000024,Effectable Construction Services Ltd,Building Construction Materials Reactive (R&M - React),HRA City West Homes,1019.39
12236530,16/08/2018,10/08/2018,3000024,Effectable Construction Services Ltd,Building Construction Materials Reactive (R&M - React),HRA City West Homes,3562.4
12236530,16/08/2018,10/08/2018,3000024,Effectable Construction Services Ltd,Contractors,HRA City West Homes,2423.3
12236530,16/08/2018,10/08/2018,3000024,Effectable Construction Services Ltd,Contractors,HRA City West Homes,9667.99
12236530,16/08/2018,10/08/2018,3000024,Effectable Construction Services Ltd,Building Construction Materials Planned (R&M -Plan),City West Homes 2,6152.77
12236530,16/08/2018,10/08/2018,3000024,Effectable Construction Services Ltd,Building Construction Materials Planned (R&M -Plan),HRA City West Homes,6152.77
12236530,16/08/2018,10/08/2018,3000024,Effectable Construction Services Ltd,Building Construction Materials Reactive (R&M - React),HRA City West Homes,691.72
12236530,16/08/2018,10/08/2018,3000024,Effectable Construction Services Ltd,Building Construction Materials Planned (R&M -Plan),HRA City West Homes,6152.77
12236530,16/08/2018,10/08/2018,3000024,Effectable Construction Services Ltd,Building Construction Materials Planned (R&M -Plan),HRA City West Homes,3517.89
12236530,16/08/2018,10/08/2018,3000024,Effectable Construction Services Ltd,Contractors,HRA City West Homes,14283.72
12236530,16/08/2018,10/08/2018,3000024,Effectable Construction Services Ltd,Building Construction Materials Planned (R&M -Plan),HRA City West Homes,1837.05
12236530,16/08/2018,10/08/2018,3000024,Effectable Construction Services Ltd,Building Construction Materials Planned (R&M -Plan),HRA City West Homes,1164.85
12236530,16/08/2018,10/08/2018,3000024,Effectable Construction Services Ltd,Building Construction Materials Reactive (R&M - React),HRA City West Homes,819.82
12236530,16/08/2018,10/08/2018,3000024,Effectable Construction Services Ltd,Building Construction Materials Reactive (R&M - React),HRA City West Homes,567.68
12236530,16/08/2018,10/08/2018,3000024,Effectable Construction Services Ltd,Building Construction Materials Reactive (R&M - React),HRA City West Homes,512.95
12236530,16/08/2018,10/08/2018,3000024,Effectable Construction Services Ltd,Contractors,HRA City West Homes,7145.25
12236530,16/08/2018,10/08/2018,3000024,Effectable Construction Services Ltd,Contractors,HRA City West Homes,6594.28
12236530,16/08/2018,10/08/2018,3000024,Effectable Construction Services Ltd,Building Construction Materials Planned (R&M -Plan),HRA City West Homes,549.68
12236530,16/08/2018,10/08/2018,3000024,Effectable Construction Services Ltd,Building Construction Materials Reactive (R&M - React),City West Homes 3,1007.31
12236530,16/08/2018,10/08/2018,3000024,Effectable Construction Services Ltd,Building Construction Materials Reactive (R&M - React),HRA City West Homes,962.96
12236530,16/08/2018,10/08/2018,3000024,Effectable Construction Services Ltd,Contractors,HRA City West Homes,4126.36
12236530,16/08/2018,10/08/2018,3000024,Effectable Construction Services Ltd,Contractors,HRA City West Homes,3181.07
12236530,16/08/2018,10/08/2018,3000024,Effectable Construction Services Ltd,Contractors,HRA City West Homes,7322.52
12236530,16/08/2018,10/08/2018,3000024,Effectable Construction Services Ltd,Building Construction Materials Planned (R&M -Plan),HRA City West Homes,3076.38
12236530,16/08/2018,10/08/2018,3000024,Effectable Construction Services Ltd,Building Construction Materials Reactive (R&M - React),HRA City West Homes,508.43
12236530,16/08/2018,10/08/2018,3000024,Effectable Construction Services Ltd,Building Construction Materials Reactive (R&M - React),HRA City West Homes,589.32
12236530,16/08/2018,10/08/2018,3000024,Effectable Construction Services Ltd,Contractors,HRA City West Homes,6594.28
12236530,16/08/2018,10/08/2018,3000024,Effectable Construction Services Ltd,Building Construction Materials Planned (R&M -Plan),HRA City West Homes,6152.77
12236530,16/08/2018,10/08/2018,3000024,Effectable Construction Services Ltd,Building Construction Materials Planned (R&M -Plan),HRA City West Homes,3406.91
12236530,16/08/2018,10/08/2018,3000024,Effectable Construction Services Ltd,Building Construction Materials Reactive (R&M - React),HRA City West Homes,989.92
3447497,11/07/2018,19/04/2018,3000027,British Gas,Electricity -E16,Barrow Hill Junior School,1240.47
3461694,14/08/2018,10/07/2018,3000027,British Gas,Gas (Energy),City West Homes 2,60864.95
3483375,25/09/2018,10/09/2018,3000027,British Gas,Gas (Energy),City West Homes 2,54919.1
3449168,13/07/2018,15/06/2018,3000029,Secol Limited,Library Materials - Conservation,Innovation and Development,674.05
3459690,24/07/2018,17/07/2018,3000031,Gatenby Sanderson Ltd,Recruitment & Assessment,Director of Children's Services,7750
3457740,17/07/2018,10/07/2018,3000031,Gatenby Sanderson Ltd,Recruitment & Assessment,Director of Children's Services,2400
3478365,11/09/2018,24/07/2018,3000031,Gatenby Sanderson Ltd,Training & Conferences,Digital Transformation,519.8
3467616,14/08/2018,07/08/2018,3000031,Gatenby Sanderson Ltd,Recruitment & Assessment,City Treasurer,9000
3480214,26/09/2018,12/09/2018,3000031,Gatenby Sanderson Ltd,Recruitment & Assessment,City Treasurer,12290
3461133,01/08/2018,18/07/2018,3000036,Deloitte Llp ,Hired and Contracted Services,Tri-Borough Treasury and Pensions,18000
3444348,11/07/2018,11/06/2018,3000049,Health Education Partnership Limited,Public Health (Hired & Contr - Healthcare),Public Health Department,6675
3458516,10/08/2018,13/07/2018,3000049,Health Education Partnership Limited,Public Health (Hired & Contr - Healthcare),Public Health Department,6675
3465628,31/08/2018,02/08/2018,3000049,Health Education Partnership Limited,Public Health (Hired & Contr - Healthcare),Public Health Department,6675
3402649,20/07/2018,26/02/2018,3000051,BT Global Services,Equipment (VPE C4000),ICT Operations,6418.75
3474289,29/08/2018,07/03/2018,3000051,BT Global Services,Hired and Contracted Services,Managed Services Framework ICF,2679.42
3462994,27/07/2018,06/04/2018,3000051,BT Global Services,Hired and Contracted Services,Managed Services Framework ICF,954.87
3452926,25/07/2018,29/05/2018,3000051,BT Global Services,Hired and Contracted Services,Managed Services Framework ICF,4638.87
3438870,24/07/2018,29/05/2018,3000051,BT Global Services,Equipment (VPE C4000),ICT Operations,27775.6
3462812,26/07/2018,15/06/2018,3000051,BT Global Services,Hired and Contracted Services,Managed Services Framework ICF,107245.62
3462995,27/07/2018,13/06/2018,3000051,BT Global Services,Hired and Contracted Services,Managed Services Framework ICF,4343.88
3451034,03/08/2018,25/06/2018,3000051,BT Global Services,Hired and Contracted Services,ICT Operations,166295.7
3451035,03/08/2018,26/06/2018,3000051,BT Global Services,Hired and Contracted Services,ICT Operations,39553.23
3451036,24/07/2018,26/06/2018,3000051,BT Global Services,Consultancy (Hired & Contr - Consultancy),Head of Enterprise IT Governance,2685
3452047,25/07/2018,27/06/2018,3000051,BT Global Services,IT Software Purchase,Hospital Teams,2871.24
3452048,25/07/2018,27/06/2018,3000051,BT Global Services,Contractors,ICT Operations,18880
3452049,25/07/2018,27/06/2018,3000051,BT Global Services,Contractors,ICT Operations,8620
3452050,25/07/2018,27/06/2018,3000051,BT Global Services,Contractors,ICT Operations,36500
3452039,25/07/2018,27/06/2018,3000051,BT Global Services,Managed service contract (BT),ICT Operations,9010
3483853,26/09/2018,27/06/2018,3000051,BT Global Services,Mobile (Telephony),Homelesness,13278
3452202,25/07/2018,27/06/2018,3000051,BT Global Services,Managed service contract (BT),Head of IT Business Solutions,4654.25
3456822,07/08/2018,10/07/2018,3000051,BT Global Services,Hired and Contracted Services,Managed Services Framework ICF,101323.14
3459647,13/08/2018,16/07/2018,3000051,BT Global Services,Hired and Contracted Services,Managed Services Framework ICF,4372.74
3462996,22/08/2018,25/07/2018,3000051,BT Global Services,Contractors,ICT Operations,12290
3462997,22/08/2018,25/07/2018,3000051,BT Global Services,Managed service contract (BT),ICT Operations,3950
3462998,22/08/2018,25/07/2018,3000051,BT Global Services,Contractors,ICT Operations,2380
3463094,22/08/2018,25/07/2018,3000051,BT Global Services,IT Hardware Purchase,Service Improvement and Transformation (Parking),12976.48
3463549,23/08/2018,26/07/2018,3000051,BT Global Services,Contractors,ICT Operations,3820
3463550,07/09/2018,26/07/2018,3000051,BT Global Services,Hired and Contracted Services,ICT Operations,39583.95
3463551,23/08/2018,26/07/2018,3000051,BT Global Services,Mobile (Telephony),ICT Head of Workplace Technology,23721.86
3463552,07/09/2018,26/07/2018,3000051,BT Global Services,Hired and Contracted Services,ICT Operations,175650.8
3463541,23/08/2018,26/07/2018,3000051,BT Global Services,Contractors,ICT Operations,5370
3463914,24/08/2018,27/07/2018,3000051,BT Global Services,Contractors,ICT Operations,4620
3463915,24/08/2018,27/07/2018,3000051,BT Global Services,Contractors,ICT Operations,3120
3463916,24/08/2018,27/07/2018,3000051,BT Global Services,Contractors,ICT Operations,33125.76
3467467,04/09/2018,07/08/2018,3000051,BT Global Services,Hired and Contracted Services,Managed Services Framework ICF,101923.84
3469878,11/09/2018,14/08/2018,3000051,BT Global Services,Hired and Contracted Services,Managed Services Framework ICF,19082.43
3474292,25/09/2018,28/08/2018,3000051,BT Global Services,Hired and Contracted Services,ICT Operations,163869.94
3474293,25/09/2018,28/08/2018,3000051,BT Global Services,Hired and Contracted Services,ICT Operations,39547.1
3474294,25/09/2018,28/08/2018,3000051,BT Global Services,Managed service contract (BT),ICT Operations,1505.88
3474283,25/09/2018,28/08/2018,3000051,BT Global Services,Contractors,ICT Operations,28816.22
3474284,25/09/2018,28/08/2018,3000051,BT Global Services,Contractors,ICT Operations,24590
3474851,26/09/2018,29/08/2018,3000051,BT Global Services,Contractors,ICT Operations,2200
3474859,26/09/2018,29/08/2018,3000051,BT Global Services,Contractors,ICT Operations,7820
3474860,26/09/2018,29/08/2018,3000051,BT Global Services,Contractors,ICT Operations,8805
3474861,26/09/2018,29/08/2018,3000051,BT Global Services,Contractors,ICT Operations,22390
3474850,26/09/2018,29/08/2018,3000051,BT Global Services,Managed service contract (BT),ICT Operations,5440.65
3474969,26/09/2018,29/08/2018,3000051,BT Global Services,Managed service contract (BT),ICT Operations,6905.78
3474970,26/09/2018,29/08/2018,3000051,BT Global Services,Contractors,ICT Operations,7935
3441857,03/07/2018,05/06/2018,3000051,BT Global Services,Design and development,Highways Infrastructure and Public Realm,209185.03
3442071,04/07/2018,06/06/2018,3000051,BT Global Services,Design and development,Highways Infrastructure and Public Realm,2920.3
3445832,11/07/2018,13/06/2018,3000051,BT Global Services,Design and development,Highways Infrastructure and Public Realm,40582.9
3447498,16/07/2018,18/06/2018,3000051,BT Global Services,Design and development,Highways Infrastructure and Public Realm,6514.32
3452040,25/07/2018,27/06/2018,3000051,BT Global Services,Design and development,Highways Infrastructure and Public Realm,3041.67
3454032,31/07/2018,03/07/2018,3000051,BT Global Services,Design and development,Highways Infrastructure and Public Realm,9766.69
3454031,31/07/2018,03/07/2018,3000051,BT Global Services,Design and development,Highways Infrastructure and Public Realm,770937.35
3455323,02/08/2018,05/07/2018,3000051,BT Global Services,Design and development,Highways Infrastructure and Public Realm,18919.19
3469892,15/08/2018,14/08/2018,3000051,BT Global Services,Design and development,Highways Infrastructure and Public Realm,18517.09
3455789,31/07/2018,03/07/2018,3000055,Thames Water Utilities Ltd (A/C 90478703 Developer Services & Infrastructure),Professional Fees (non-Legal),Housing Regeneration,628200
3462404,15/08/2018,18/07/2018,3000055,Thames Water Utilities Ltd (A/C 90478703 Developer Services & Infrastructure),Design and development,Highways Infrastructure and Public Realm,7712.19
3448409,17/07/2018,19/06/2018,3000055,Thames Water Utilities Ltd (A/C 90478703 Developer Services & Infrastructure),Design and development,Highways Infrastructure and Public Realm,1385
3464315,08/08/2018,19/06/2018,3000059,Breyer Group Plc,Contractors,HRA City West Homes,240165.69
12205995,19/07/2018,12/07/2018,3000061,Hestia Housing & Support,Adults Residential Placements,Community Mental Health Service 2,1722
12205995,19/07/2018,12/07/2018,3000061,Hestia Housing & Support,Adults Continuing Health Care Funded Placement,Community Mental Health Service 2,1722
12235433,15/08/2018,07/08/2018,3000061,Hestia Housing & Support,Adults Residential Placements,Community Mental Health Service 2,1722
12235433,15/08/2018,07/08/2018,3000061,Hestia Housing & Support,Adults Continuing Health Care Funded Placement,Community Mental Health Service 2,1722
12260858,11/09/2018,04/09/2018,3000061,Hestia Housing & Support,Adults Residential Placements,Community Mental Health Service 2,1722
12260858,11/09/2018,04/09/2018,3000061,Hestia Housing & Support,Adults Continuing Health Care Funded Placement,Community Mental Health Service 2,1722
3463864,23/08/2018,26/07/2018,3000062,Peabody Trust,Hired and Contracted Services,Supporting People,65473
3474007,29/08/2018,21/03/2018,3000063,Groundwork London,Grants,Employment and Skills,32630
3466709,07/09/2018,30/05/2018,3000063,Groundwork London,Hired and Contracted Services,Policy and Strategy,27487
3450764,23/07/2018,25/06/2018,3000063,Groundwork London,Training & Conferences,Place Shaping,3890
3459649,06/08/2018,09/07/2018,3000063,Groundwork London,Hired and Contracted Services,WAES Curriculum,4940.5
3459695,13/08/2018,16/07/2018,3000066,Personal detail - redacted,Consultancy (Hired & Contr - Consultancy),School Standards,585
3460929,16/08/2018,19/07/2018,3000066,Personal detail - redacted,Consultancy (Hired & Contr - Consultancy),School Standards,780
3457746,07/08/2018,10/07/2018,3000067,Blenheim Cdp,Public Health (Hired & Contr - Healthcare),Substance Misuse/Offender Health Commissioning,23626.5
3457747,07/08/2018,10/07/2018,3000067,Blenheim Cdp,Public Health (Hired & Contr - Healthcare),Substance Misuse/Offender Health Commissioning,13432.75
3458608,17/07/2018,15/05/2018,3000070,Windowflowers Ltd,Maintenance (Ground Mtce),Waste and Parks,51546
3458610,17/07/2018,15/05/2018,3000070,Windowflowers Ltd,Maintenance (Ground Mtce),Waste and Parks,36421
3479144,12/09/2018,26/06/2018,3000070,Windowflowers Ltd,Strategic Planning (Hired & Contr - Consultancy),Cabinet Secretariat and Member Services,3542
3479145,12/09/2018,26/06/2018,3000070,Windowflowers Ltd,Strategic Planning (Hired & Contr - Consultancy),Cabinet Secretariat and Member Services,5544
3479146,12/09/2018,26/06/2018,3000070,Windowflowers Ltd,Strategic Planning (Hired & Contr - Consultancy),Cabinet Secretariat and Member Services,3542
3479280,12/09/2018,26/06/2018,3000070,Windowflowers Ltd,Strategic Planning (Hired & Contr - Consultancy),Cabinet Secretariat and Member Services,1694
3480683,19/09/2018,01/07/2018,3000070,Windowflowers Ltd,Strategic Planning (Hired & Contr - Consultancy),Cabinet Secretariat and Member Services,2156
3464729,01/08/2018,01/07/2018,3000070,Windowflowers Ltd,Maintenance (Ground Mtce),Waste and Parks,5357.06
3465933,06/08/2018,01/07/2018,3000070,Windowflowers Ltd,Strategic Planning (Hired & Contr - Consultancy),Cabinet Secretariat and Member Services,8316
3465934,06/08/2018,01/07/2018,3000070,Windowflowers Ltd,Strategic Planning (Hired & Contr - Consultancy),Cabinet Secretariat and Member Services,738
3465935,06/08/2018,01/07/2018,3000070,Windowflowers Ltd,Strategic Planning (Hired & Contr - Consultancy),Cabinet Secretariat and Member Services,1617
3465936,06/08/2018,01/07/2018,3000070,Windowflowers Ltd,Strategic Planning (Hired & Contr - Consultancy),Cabinet Secretariat and Member Services,18249
3465938,14/08/2018,01/07/2018,3000070,Windowflowers Ltd,Hired and Contracted Services,Waste and Parks,916
3473835,03/09/2018,01/08/2018,3000070,Windowflowers Ltd,Strategic Planning (Hired & Contr - Consultancy),Cabinet Secretariat and Member Services,5698
3473836,03/09/2018,01/08/2018,3000070,Windowflowers Ltd,Strategic Planning (Hired & Contr - Consultancy),Cabinet Secretariat and Member Services,2310
3473833,03/09/2018,01/08/2018,3000070,Windowflowers Ltd,Strategic Planning (Hired & Contr - Consultancy),Cabinet Secretariat and Member Services,3311
3473834,03/09/2018,01/08/2018,3000070,Windowflowers Ltd,Strategic Planning (Hired & Contr - Consultancy),Cabinet Secretariat and Member Services,616
3480215,17/09/2018,01/08/2018,3000070,Windowflowers Ltd,Strategic Planning (Hired & Contr - Consultancy),Cabinet Secretariat and Member Services,677
3480215,17/09/2018,01/08/2018,3000070,Windowflowers Ltd,Strategic Planning (Hired & Contr - Consultancy),Cabinet Secretariat and Member Services,677
12265689,17/09/2018,14/09/2018,3000073,St.Christopher'S Fellowship,Placements,Looked After Children and Leaving Care,14671.43
12265695,17/09/2018,14/09/2018,3000073,St.Christopher'S Fellowship,Placements,Child Protection,626.35
3474008,21/09/2018,24/08/2018,3000079,Action on Disabilty,Advice & Counselling Services (Hired & Contr - Social CommCare),Head of Prevention,16000
3466182,07/08/2018,08/03/2018,3000082,LABC,Subscriptions,Building Control,2646.09
3453624,27/07/2018,30/06/2018,3000083,SDK Environmental Ltd,Maintenance (Ground Mtce),Waste and Parks,5470
3465619,28/08/2018,31/07/2018,3000083,SDK Environmental Ltd,Maintenance (Ground Mtce),Waste and Parks,5470
3475750,28/09/2018,31/08/2018,3000083,SDK Environmental Ltd,Maintenance (Ground Mtce),Waste and Parks,6854.25
3458611,06/08/2018,09/07/2018,3000086,Personal detail - redacted,Consultancy (Hired & Contr - Consultancy),School Standards,1600
3455173,13/07/2018,31/05/2018,3000087,Medequip Assistive Technology Ltd,Assistive equipment and Technology,Head of Prevention,120015.39
3455175,06/07/2018,31/05/2018,3000087,Medequip Assistive Technology Ltd,Assistive equipment and Technology,Head of Prevention,10500
3454046,06/07/2018,30/06/2018,3000087,Medequip Assistive Technology Ltd,Assistive equipment and Technology,Head of Prevention,106424.49
3466183,07/08/2018,31/07/2018,3000087,Medequip Assistive Technology Ltd,Assistive equipment and Technology,Head of Prevention,155282.57
3476813,07/09/2018,31/08/2018,3000087,Medequip Assistive Technology Ltd,Assistive equipment and Technology,Head of Prevention,180552.84
3450292,20/07/2018,22/06/2018,3000088,Insight Direct (Uk) Ltd,Software (IT Software Purch),Place Shaping,889.86
12264230,14/09/2018,31/05/2018,3000092,Pepper Pot Day Centre,Day Opportunities,Care and Assessment,600
12264228,14/09/2018,31/05/2018,3000092,Pepper Pot Day Centre,Day Opportunities,Care and Assessment,900
12250365,31/08/2018,30/06/2018,3000092,Pepper Pot Day Centre,Day Opportunities,Care and Assessment,765
12278466,28/09/2018,31/07/2018,3000092,Pepper Pot Day Centre,Day Opportunities,Care and Assessment,520
12278467,28/09/2018,31/08/2018,3000092,Pepper Pot Day Centre,Day Opportunities,Care and Assessment,560
12278483,28/09/2018,31/08/2018,3000092,Pepper Pot Day Centre,Day Opportunities,Care and Assessment,855
3446281,12/07/2018,14/06/2018,3000095,Kensington And Chelsea Social Council,Public Health (Hired & Contr - Healthcare),Sexual Health,2649.5
3458614,03/08/2018,07/07/2018,3000097,Eleanor Martlew Associates,Consultancy (Hired & Contr - Consultancy),School Standards,1000
3458616,03/08/2018,07/07/2018,3000097,Eleanor Martlew Associates,Consultancy (Hired & Contr - Consultancy),School Standards,1500
12197942,13/07/2018,20/06/2018,3000102,Yarrow Housing Ltd,Adults Continuing Health Care Funded Placement,Care and Assessment,9421.32
12197987,13/07/2018,20/06/2018,3000102,Yarrow Housing Ltd,Adults Residential Placements,Care and Assessment,9269.24
12198023,13/07/2018,20/06/2018,3000102,Yarrow Housing Ltd,Adults Residential Placements,Care and Assessment,15846.4
12198033,13/07/2018,20/06/2018,3000102,Yarrow Housing Ltd,Adults Continuing Health Care Funded Placement,Care and Assessment,9269.24
12206255,19/07/2018,12/07/2018,3000102,Yarrow Housing Ltd,Adults Supported Living,Care and Assessment,2985.52
12205884,19/07/2018,12/07/2018,3000102,Yarrow Housing Ltd,Adults Home Care,Care and Assessment,843.08
12205949,19/07/2018,12/07/2018,3000102,Yarrow Housing Ltd,Adults Supported Living,Care and Assessment,5210.52
12205967,19/07/2018,12/07/2018,3000102,Yarrow Housing Ltd,Adults Supported Living,Care and Assessment,3881.52
12205968,19/07/2018,12/07/2018,3000102,Yarrow Housing Ltd,Adults Supported Living,Care and Assessment,3387.52
12205969,19/07/2018,12/07/2018,3000102,Yarrow Housing Ltd,Adults Supported Living,Care and Assessment,4204
12206032,19/07/2018,12/07/2018,3000102,Yarrow Housing Ltd,Adults Supported Living,Care and Assessment,7297.56
12206033,19/07/2018,12/07/2018,3000102,Yarrow Housing Ltd,Adults Supported Living,Care and Assessment,1408.68
12206201,19/07/2018,12/07/2018,3000102,Yarrow Housing Ltd,Adults Residential Placements,Care and Assessment,8301.92
12206206,19/07/2018,12/07/2018,3000102,Yarrow Housing Ltd,Adults Supported Living,Care and Assessment,6646.68
12205810,19/07/2018,12/07/2018,3000102,Yarrow Housing Ltd,Adults Supported Living,Care and Assessment,5563
12235198,15/08/2018,07/08/2018,3000102,Yarrow Housing Ltd,Adults Supported Living,Care and Assessment,2985.52
12235324,15/08/2018,07/08/2018,3000102,Yarrow Housing Ltd,Adults Home Care,Care and Assessment,843.08
12235387,15/08/2018,07/08/2018,3000102,Yarrow Housing Ltd,Adults Supported Living,Care and Assessment,5210.52
12235405,15/08/2018,07/08/2018,3000102,Yarrow Housing Ltd,Adults Supported Living,Care and Assessment,3881.52
12235406,15/08/2018,07/08/2018,3000102,Yarrow Housing Ltd,Adults Supported Living,Care and Assessment,3387.52
12235407,15/08/2018,07/08/2018,3000102,Yarrow Housing Ltd,Adults Supported Living,Care and Assessment,4204
12235469,15/08/2018,07/08/2018,3000102,Yarrow Housing Ltd,Adults Supported Living,Care and Assessment,7297.56
12235000,15/08/2018,07/08/2018,3000102,Yarrow Housing Ltd,Adults Residential Placements,Care and Assessment,8301.92
12235004,15/08/2018,07/08/2018,3000102,Yarrow Housing Ltd,Adults Supported Living,Care and Assessment,6646.68
12235074,15/08/2018,07/08/2018,3000102,Yarrow Housing Ltd,Adults Supported Living,Care and Assessment,5563
12235075,15/08/2018,07/08/2018,3000102,Yarrow Housing Ltd,Adults Supported Living,Community Mental Health Service 2,1056.51
12250066,31/08/2018,16/08/2018,3000102,Yarrow Housing Ltd,Adults Continuing Health Care Funded Placement,Care and Assessment,18842.64
12250083,31/08/2018,16/08/2018,3000102,Yarrow Housing Ltd,Adults Residential Placements,Care and Assessment,31692.8
12250087,31/08/2018,16/08/2018,3000102,Yarrow Housing Ltd,Adults Continuing Health Care Funded Placement,Care and Assessment,18538.48
12261083,11/09/2018,04/09/2018,3000102,Yarrow Housing Ltd,Adults Supported Living,Care and Assessment,2985.52
12260746,11/09/2018,04/09/2018,3000102,Yarrow Housing Ltd,Adults Home Care,Care and Assessment,843.08
12260812,11/09/2018,04/09/2018,3000102,Yarrow Housing Ltd,Adults Supported Living,Care and Assessment,5210.52
12260830,11/09/2018,04/09/2018,3000102,Yarrow Housing Ltd,Adults Supported Living,Care and Assessment,3881.52
12260831,11/09/2018,04/09/2018,3000102,Yarrow Housing Ltd,Adults Supported Living,Care and Assessment,3387.52
12260832,11/09/2018,04/09/2018,3000102,Yarrow Housing Ltd,Adults Supported Living,Care and Assessment,4204
12260896,11/09/2018,04/09/2018,3000102,Yarrow Housing Ltd,Adults Supported Living,Care and Assessment,7297.56
12261059,11/09/2018,04/09/2018,3000102,Yarrow Housing Ltd,Adults Residential Placements,Care and Assessment,8301.92
12261063,11/09/2018,04/09/2018,3000102,Yarrow Housing Ltd,Adults Supported Living,Care and Assessment,6646.68
12260647,11/09/2018,04/09/2018,3000102,Yarrow Housing Ltd,Adults Supported Living,Care and Assessment,5563
12260648,11/09/2018,04/09/2018,3000102,Yarrow Housing Ltd,Adults Supported Living,Community Mental Health Service 2,1408.68
12278496,28/09/2018,20/09/2018,3000102,Yarrow Housing Ltd,Adults Continuing Health Care Funded Placement,Care and Assessment,9421.32
12278488,28/09/2018,26/09/2018,3000102,Yarrow Housing Ltd,Adults Continuing Health Care Funded Placement,Care and Assessment,27476.67
12278581,28/09/2018,20/09/2018,3000102,Yarrow Housing Ltd,Adults Residential Placements,Care and Assessment,15846.4
12278590,28/09/2018,20/09/2018,3000102,Yarrow Housing Ltd,Adults Continuing Health Care Funded Placement,Care and Assessment,9269.24
3455176,10/07/2018,30/04/2018,3000104,Carter Jonas Llp,Consultancy (Hired & Contr - Consultancy),HRA Managed Property,3315
3458055,17/07/2018,31/01/2018,3000106,Shepherds Bush Housing Association Ltd,Temporary Accommodation,Temporary Accommodation,7716.27
3458054,17/07/2018,14/05/2018,3000106,Shepherds Bush Housing Association Ltd,Temporary Accommodation,Temporary Accommodation,5173.5
3452205,04/07/2018,27/06/2018,3000106,Shepherds Bush Housing Association Ltd,Temporary Accommodation,Temporary Accommodation,5345.95
3470277,16/08/2018,11/07/2018,3000106,Shepherds Bush Housing Association Ltd,Fees General,Temporary Accommodation,2438
3470278,30/08/2018,11/07/2018,3000106,Shepherds Bush Housing Association Ltd,Temporary Accommodation,Temporary Accommodation,5173.5
3470279,20/08/2018,13/08/2018,3000106,Shepherds Bush Housing Association Ltd,Temporary Accommodation,Temporary Accommodation,6988.95
3460234,17/08/2018,18/07/2018,3000113,Opportunity For All,Public Health (Hired & Contr - Healthcare),Public Health Department,4989.5
12191622,05/07/2018,30/11/2017,3000115,Westminster Society,Placements,LAC and Specialist Services,1564
12191623,05/07/2018,15/02/2018,3000115,Westminster Society,Placements,LAC and Specialist Services,680
12202504,17/07/2018,11/03/2018,3000115,Westminster Society,Placements,LAC and Specialist Services,816
12191619,05/07/2018,11/03/2018,3000115,Westminster Society,Placements,LAC and Specialist Services,544
12264048,13/09/2018,31/03/2018,3000115,Westminster Society,Placements,LAC and Specialist Services,561
12225871,07/08/2018,30/04/2018,3000115,Westminster Society,Day Opportunities,Care and Assessment,517.5
12193482,09/07/2018,31/05/2018,3000115,Westminster Society,Day Opportunities,Care and Assessment,803.26
3452670,06/07/2018,01/07/2018,3000115,Westminster Society,Community Other Short Term Care,Adult Social Care Commissioning,84070.12
3456833,20/07/2018,31/05/2018,3000115,Westminster Society,Community Other Short Term Care,Adult Social Care Commissioning,3182.76
3456834,20/07/2018,30/06/2018,3000115,Westminster Society,Community Other Short Term Care,Adult Social Care Commissioning,5422.48
12206543,20/07/2018,30/06/2018,3000115,Westminster Society,Day Opportunities,Care and Assessment,1190
3463818,31/07/2018,30/06/2018,3000115,Westminster Society,Fees General,Care and Assessment,9060.87
3463920,08/08/2018,01/08/2018,3000115,Westminster Society,Community Other Short Term Care,Adult Social Care Commissioning,84070.12
3466866,07/08/2018,31/07/2018,3000115,Westminster Society,Hired and Contracted Services,SEN and Disabilities,828
3467619,14/08/2018,07/08/2018,3000115,Westminster Society,Community Other Short Term Care,Adult Social Care Commissioning,50680.84
3467620,29/08/2018,07/08/2018,3000115,Westminster Society,Community Other Short Term Care,Adult Social Care Commissioning,50680.84
3467794,09/08/2018,30/06/2018,3000115,Westminster Society,Element 3 - Top-up Funding,Special Educational Needs,3984.37
3473264,20/09/2018,31/07/2018,3000115,Westminster Society,Community Other Short Term Care,Adult Social Care Commissioning,3654.28
3476126,25/09/2018,01/09/2018,3000115,Westminster Society,Community Other Short Term Care,Adult Social Care Commissioning,84070.12
3481257,21/09/2018,31/07/2018,3000115,Westminster Society,Fees General,Care and Assessment,8257.14
3481258,21/09/2018,31/07/2018,3000115,Westminster Society,Fees General,Care and Assessment,5974.86
3477899,14/09/2018,31/07/2018,3000115,Westminster Society,Element 3 - Top-up Funding,Special Educational Needs,2698.64
3481259,21/09/2018,31/08/2018,3000115,Westminster Society,Fees General,Care and Assessment,6612.21
3481701,20/09/2018,01/08/2018,3000115,Westminster Society,Element 3 - Top-up Funding,Special Educational Needs,1654
3483112,25/09/2018,31/08/2018,3000115,Westminster Society,Community Other Short Term Care,Adult Social Care Commissioning,8605.24
12201948,16/07/2018,31/05/2017,3000115,Westminster Society,Day Opportunities,Care and Assessment,1035
12201954,16/07/2018,31/05/2017,3000115,Westminster Society,Day Opportunities,Care and Assessment,690
12205108,19/07/2018,01/04/2018,3000115,Westminster Society,Day Opportunities,Care and Assessment,1700
12189474,04/07/2018,31/01/2018,3000115,Westminster Society,Day Opportunities,Care and Assessment,527
12189471,04/07/2018,31/03/2018,3000115,Westminster Society,Day Opportunities,Care and Assessment,544
12189423,04/07/2018,30/04/2018,3000115,Westminster Society,Day Opportunities,Care and Assessment,2156.25
12205107,19/07/2018,01/04/2018,3000115,Westminster Society,Day Opportunities,Care and Assessment,7225
12206537,20/07/2018,31/05/2018,3000115,Westminster Society,Day Opportunities,Care and Assessment,1725
12206538,20/07/2018,31/05/2018,3000115,Westminster Society,Day Opportunities,Care and Assessment,2542.19
12205104,19/07/2018,30/06/2018,3000115,Westminster Society,Day Opportunities,Care and Assessment,517.5
12206535,20/07/2018,30/06/2018,3000115,Westminster Society,Day Opportunities,Care and Assessment,2156.25
12264257,14/09/2018,30/04/2018,3000115,Westminster Society,Day Opportunities,Care and Assessment,2805
12225870,07/08/2018,30/06/2018,3000115,Westminster Society,Day Opportunities,Care and Assessment,1138.69
12271741,24/09/2018,31/07/2018,3000115,Westminster Society,Day Opportunities,Care and Assessment,564.93
12252163,04/09/2018,29/07/2018,3000115,Westminster Society,Day Opportunities,Care and Assessment,544
12252155,04/09/2018,29/07/2018,3000115,Westminster Society,Day Opportunities,Care and Assessment,1088
12252154,04/09/2018,29/07/2018,3000115,Westminster Society,Day Opportunities,Care and Assessment,1700
12252143,04/09/2018,29/07/2018,3000115,Westminster Society,Day Opportunities,Care and Assessment,1275
12262740,13/09/2018,31/08/2018,3000115,Westminster Society,Day Opportunities,Care and Assessment,2974.7
12187390,02/07/2018,25/02/2018,3000115,Westminster Society,Day Opportunities,Care and Assessment,2822
12189424,04/07/2018,30/04/2018,3000115,Westminster Society,Day Opportunities,Care and Assessment,3094
12225874,07/08/2018,31/05/2018,3000115,Westminster Society,Day Opportunities,Care and Assessment,3230
12264258,14/09/2018,17/06/2018,3000115,Westminster Society,Day Opportunities,Care and Assessment,3366
12246244,28/08/2018,31/07/2018,3000115,Westminster Society,Day Opportunities,Care and Assessment,3366
12271789,24/09/2018,30/06/2018,3000115,Westminster Society,Day Opportunities,Care and Assessment,1275
12225821,07/08/2018,31/12/2017,3000115,Westminster Society,Day Opportunities,Care and Assessment,510
12271748,24/09/2018,30/06/2018,3000115,Westminster Society,Day Opportunities,Care and Assessment,510
12264237,14/09/2018,29/07/2018,3000115,Westminster Society,Day Opportunities,Care and Assessment,510
12225850,07/08/2018,31/12/2017,3000115,Westminster Society,Day Opportunities,Care and Assessment,510
12271749,24/09/2018,30/06/2018,3000115,Westminster Society,Day Opportunities,Care and Assessment,510
12264238,14/09/2018,29/07/2018,3000115,Westminster Society,Day Opportunities,Care and Assessment,510
12187393,02/07/2018,25/02/2018,3000115,Westminster Society,Day Opportunities,Care and Assessment,1768
12189430,04/07/2018,30/04/2018,3000115,Westminster Society,Day Opportunities,Care and Assessment,1904
12225875,07/08/2018,31/05/2018,3000115,Westminster Society,Day Opportunities,Care and Assessment,2040
12264275,14/09/2018,17/06/2018,3000115,Westminster Society,Day Opportunities,Care and Assessment,2040
12252156,04/09/2018,15/07/2018,3000115,Westminster Society,Day Opportunities,Care and Assessment,2040
12187391,02/07/2018,25/02/2018,3000115,Westminster Society,Day Opportunities,Care and Assessment,1360
12189431,04/07/2018,30/04/2018,3000115,Westminster Society,Day Opportunities,Care and Assessment,1360
12225876,07/08/2018,31/05/2018,3000115,Westminster Society,Day Opportunities,Care and Assessment,1360
12264259,14/09/2018,17/06/2018,3000115,Westminster Society,Day Opportunities,Care and Assessment,1360
12246245,28/08/2018,31/07/2018,3000115,Westminster Society,Day Opportunities,Care and Assessment,1360
12187382,02/07/2018,25/02/2018,3000115,Westminster Society,Day Opportunities,Care and Assessment,544
12225862,07/08/2018,30/04/2018,3000115,Westminster Society,Day Opportunities,Care and Assessment,544
12189482,04/07/2018,31/05/2018,3000115,Westminster Society,Day Opportunities,Care and Assessment,544
12271790,24/09/2018,30/06/2018,3000115,Westminster Society,Day Opportunities,Care and Assessment,680
12252146,04/09/2018,29/07/2018,3000115,Westminster Society,Day Opportunities,Care and Assessment,680
12204163,18/07/2018,13/07/2018,3000115,Westminster Society,Adults Supported Living,Care and Assessment,3418.3
12204164,18/07/2018,13/07/2018,3000115,Westminster Society,Adults Supported Living,Care and Assessment,2976.8
12204165,18/07/2018,13/07/2018,3000115,Westminster Society,Adults Supported Living,Care and Assessment,3325.5
12204166,18/07/2018,13/07/2018,3000115,Westminster Society,Adults Extra Care,Care and Assessment,634
12204167,18/07/2018,13/07/2018,3000115,Westminster Society,Adults Supported Living,Care and Assessment,7037.44
12204168,18/07/2018,13/07/2018,3000115,Westminster Society,Adults Supported Living,Care and Assessment,1700.29
12204170,18/07/2018,13/07/2018,3000115,Westminster Society,Adults Supported Living,Care and Assessment,22076.25
12204172,18/07/2018,13/07/2018,3000115,Westminster Society,Adults Supported Living,Care and Assessment,3374.2
12204173,18/07/2018,13/07/2018,3000115,Westminster Society,Adults Extra Care,Care and Assessment,3471.2
12204174,18/07/2018,13/07/2018,3000115,Westminster Society,Adults Extra Care,Care and Assessment,4400.92
12204176,18/07/2018,13/07/2018,3000115,Westminster Society,Adults Supported Living,Care and Assessment,2870.34
12204177,18/07/2018,13/07/2018,3000115,Westminster Society,Adults Supported Living,Care and Assessment,9129.6
12204178,18/07/2018,13/07/2018,3000115,Westminster Society,Adults Residential Placements,Care and Assessment,2650
12204178,18/07/2018,13/07/2018,3000115,Westminster Society,Adults Extra Care,Care and Assessment,5955.76
12204179,18/07/2018,13/07/2018,3000115,Westminster Society,Adults Extra Care,Care and Assessment,6399.56
12204179,18/07/2018,13/07/2018,3000115,Westminster Society,Adults Residential Placements,Care and Assessment,700
12204181,18/07/2018,13/07/2018,3000115,Westminster Society,Adults Extra Care,Care and Assessment,3788.2
12204182,18/07/2018,13/07/2018,3000115,Westminster Society,Adults Extra Care,Care and Assessment,4168.6
12204183,18/07/2018,13/07/2018,3000115,Westminster Society,Adults Supported Living,Care and Assessment,68838
12204184,18/07/2018,13/07/2018,3000115,Westminster Society,Adults Supported Living,Care and Assessment,3469.32
12204185,18/07/2018,13/07/2018,3000115,Westminster Society,Adults Supported Living,Care and Assessment,2169.6
12204186,18/07/2018,13/07/2018,3000115,Westminster Society,Adults Supported Living,Care and Assessment,3019.79
12204187,18/07/2018,13/07/2018,3000115,Westminster Society,Adults Extra Care,Care and Assessment,4153.64
12204188,18/07/2018,13/07/2018,3000115,Westminster Society,Adults Supported Living,Care and Assessment,1375.69
12204189,18/07/2018,13/07/2018,3000115,Westminster Society,Adults Supported Living,Care and Assessment,1450.65
12204190,18/07/2018,13/07/2018,3000115,Westminster Society,Adults Extra Care,Care and Assessment,6270.28
12204190,18/07/2018,13/07/2018,3000115,Westminster Society,Adults Residential Placements,Care and Assessment,700
12204191,18/07/2018,13/07/2018,3000115,Westminster Society,Adults Extra Care,Care and Assessment,12562.8
12204191,18/07/2018,13/07/2018,3000115,Westminster Society,Adults Residential Placements,Care and Assessment,700
12204192,18/07/2018,13/07/2018,3000115,Westminster Society,Adults Supported Living,Care and Assessment,5603.3
12204193,18/07/2018,13/07/2018,3000115,Westminster Society,Adults Supported Living,Care and Assessment,1618.16
12204194,18/07/2018,13/07/2018,3000115,Westminster Society,Adults Short Term Residential Care,Adult Social Care Commissioning,3300.64
12204197,18/07/2018,13/07/2018,3000115,Westminster Society,Adults Supported Living,Care and Assessment,5372
12204198,18/07/2018,13/07/2018,3000115,Westminster Society,Adults Supported Living,Care and Assessment,4691.68
12204199,18/07/2018,13/07/2018,3000115,Westminster Society,Adults Supported Living,Care and Assessment,2740.2
12204200,18/07/2018,13/07/2018,3000115,Westminster Society,Adults Extra Care,Care and Assessment,5890.8
12204201,18/07/2018,13/07/2018,3000115,Westminster Society,Adults Extra Care,Care and Assessment,7057.36
12204202,18/07/2018,13/07/2018,3000115,Westminster Society,Adults Extra Care,Care and Assessment,4802.6
12204203,18/07/2018,13/07/2018,3000115,Westminster Society,Adults Extra Care,Care and Assessment,5595.12
12204204,18/07/2018,13/07/2018,3000115,Westminster Society,Adults Supported Living,Care and Assessment,10105.8
12204205,18/07/2018,13/07/2018,3000115,Westminster Society,Adults Supported Living,Care and Assessment,1644.91
12204206,18/07/2018,13/07/2018,3000115,Westminster Society,Adults Supported Living,Care and Assessment,3331.12
12204207,18/07/2018,13/07/2018,3000115,Westminster Society,Adults Supported Living,Care and Assessment,2116.3
12204208,18/07/2018,13/07/2018,3000115,Westminster Society,Adults Supported Living,Care and Assessment,2621.27
12204209,18/07/2018,13/07/2018,3000115,Westminster Society,Adults Supported Living,Care and Assessment,2272.57
12204210,18/07/2018,13/07/2018,3000115,Westminster Society,Adults Supported Living,Care and Assessment,691.66
12204211,18/07/2018,13/07/2018,3000115,Westminster Society,Adults Supported Living,Care and Assessment,8368.8
12204213,18/07/2018,13/07/2018,3000115,Westminster Society,Adults Supported Living,Care and Assessment,4663.66
12204214,18/07/2018,13/07/2018,3000115,Westminster Society,Adults Extra Care,Care and Assessment,4802.6
12204215,18/07/2018,13/07/2018,3000115,Westminster Society,Adults Extra Care,Care and Assessment,6270.28
12204215,18/07/2018,13/07/2018,3000115,Westminster Society,Adults Residential Placements,Care and Assessment,700
12204216,18/07/2018,13/07/2018,3000115,Westminster Society,Adults Extra Care,Care and Assessment,4445.28
12204217,18/07/2018,13/07/2018,3000115,Westminster Society,Adults Extra Care,Care and Assessment,6391.68
12204218,18/07/2018,13/07/2018,3000115,Westminster Society,Adults Supported Living,Care and Assessment,3119.41
12204219,18/07/2018,13/07/2018,3000115,Westminster Society,Adults Supported Living,Care and Assessment,2179.77
12204220,18/07/2018,13/07/2018,3000115,Westminster Society,Adults Supported Living,Care and Assessment,2271
12204221,18/07/2018,13/07/2018,3000115,Westminster Society,Adults Extra Care,Care and Assessment,3090.8
12204222,18/07/2018,13/07/2018,3000115,Westminster Society,Adults Extra Care,Care and Assessment,7388.04
12204223,18/07/2018,13/07/2018,3000115,Westminster Society,Adults Extra Care,Care and Assessment,8713.08
12204223,18/07/2018,13/07/2018,3000115,Westminster Society,Adults Residential Placements,Care and Assessment,700
12204224,18/07/2018,13/07/2018,3000115,Westminster Society,Adults Extra Care,Care and Assessment,5725.96
12204225,18/07/2018,13/07/2018,3000115,Westminster Society,Adults Supported Living,Care and Assessment,3169.23
12204226,18/07/2018,13/07/2018,3000115,Westminster Society,Adults Supported Living,Care and Assessment,1880.89
12204227,18/07/2018,13/07/2018,3000115,Westminster Society,Adults Supported Living,Care and Assessment,2714.69
12204228,18/07/2018,13/07/2018,3000115,Westminster Society,Adults Supported Living,Care and Assessment,12426.4
12204230,18/07/2018,13/07/2018,3000115,Westminster Society,Adults Residential Placements,Care and Assessment,2650
12204230,18/07/2018,13/07/2018,3000115,Westminster Society,Adults Extra Care,Care and Assessment,5955.76
12204231,18/07/2018,13/07/2018,3000115,Westminster Society,Adults Supported Living,Care and Assessment,42210
12204233,18/07/2018,13/07/2018,3000115,Westminster Society,Adults Supported Living,Care and Assessment,1700.29
12204234,18/07/2018,13/07/2018,3000115,Westminster Society,Adults Supported Living,Care and Assessment,9016.8
12204235,18/07/2018,13/07/2018,3000115,Westminster Society,Adults Supported Living,Care and Assessment,2282.4
12204236,18/07/2018,13/07/2018,3000115,Westminster Society,Adults Supported Living,Care and Assessment,3169.23
12204237,18/07/2018,13/07/2018,3000115,Westminster Society,Adults Supported Living,Care and Assessment,4493.8
12204238,18/07/2018,13/07/2018,3000115,Westminster Society,Adults Supported Living,Care and Assessment,877.77
12204239,18/07/2018,13/07/2018,3000115,Westminster Society,Adults Residential Placements,Care and Assessment,700
12204239,18/07/2018,13/07/2018,3000115,Westminster Society,Adults Extra Care,Care and Assessment,9659.6
12204240,18/07/2018,13/07/2018,3000115,Westminster Society,Adults Extra Care,Care and Assessment,4699.04
12204240,18/07/2018,13/07/2018,3000115,Westminster Society,Adults Residential Placements,Care and Assessment,700
12204242,18/07/2018,13/07/2018,3000115,Westminster Society,Adults Supported Living,Care and Assessment,2172.94
12204243,18/07/2018,13/07/2018,3000115,Westminster Society,Adults Supported Living,Care and Assessment,2471.83
12204244,18/07/2018,13/07/2018,3000115,Westminster Society,Adults Extra Care,Care and Assessment,3534.6
12204245,18/07/2018,13/07/2018,3000115,Westminster Society,Adults Supported Living,Care and Assessment,2803.6
12204246,18/07/2018,13/07/2018,3000115,Westminster Society,Adults Supported Living,Care and Assessment,3184
12204247,18/07/2018,13/07/2018,3000115,Westminster Society,Adults Extra Care,Care and Assessment,2999.76
12204248,18/07/2018,13/07/2018,3000115,Westminster Society,Adults Extra Care,Care and Assessment,3221.68
12204249,18/07/2018,13/07/2018,3000115,Westminster Society,Adults Residential Placements,Care and Assessment,700
12204249,18/07/2018,13/07/2018,3000115,Westminster Society,Adults Extra Care,Care and Assessment,5513.24
12204250,18/07/2018,13/07/2018,3000115,Westminster Society,Adults Extra Care,Care and Assessment,5323.04
12204250,18/07/2018,13/07/2018,3000115,Westminster Society,Adults Residential Placements,Care and Assessment,700
12204251,18/07/2018,13/07/2018,3000115,Westminster Society,Adults Extra Care,Care and Assessment,8269.28
12204251,18/07/2018,13/07/2018,3000115,Westminster Society,Adults Continuing Health Care Funded Placement,Care and Assessment,1646.72
12204252,18/07/2018,13/07/2018,3000115,Westminster Society,Adults Extra Care,Care and Assessment,6551.16
12204252,18/07/2018,13/07/2018,3000115,Westminster Society,Adults Residential Placements,Care and Assessment,700
12204253,18/07/2018,13/07/2018,3000115,Westminster Society,Adults Continuing Health Care Funded Placement,Care and Assessment,1646.72
12204254,18/07/2018,13/07/2018,3000115,Westminster Society,Adults Extra Care,Care and Assessment,4261.44
12204255,18/07/2018,13/07/2018,3000115,Westminster Society,Adults Extra Care,Care and Assessment,3729.28
12204256,18/07/2018,13/07/2018,3000115,Westminster Society,Adults Supported Living,Care and Assessment,1880.89
12204257,18/07/2018,13/07/2018,3000115,Westminster Society,Adults Supported Living,Care and Assessment,7719.59
12204258,18/07/2018,13/07/2018,3000115,Westminster Society,Adults Supported Living,Care and Assessment,5777.67
12204259,18/07/2018,13/07/2018,3000115,Westminster Society,Nursing Care Contributions,Care and Assessment,1386.9
12204260,18/07/2018,13/07/2018,3000115,Westminster Society,Adults Extra Care,Care and Assessment,4802.6
12204261,18/07/2018,13/07/2018,3000115,Westminster Society,Adults Supported Living,Care and Assessment,4507.83
12204262,18/07/2018,13/07/2018,3000115,Westminster Society,Adults Supported Living,Care and Assessment,685.89
12204263,18/07/2018,13/07/2018,3000115,Westminster Society,Adults Supported Living,Care and Assessment,2550
12204265,18/07/2018,13/07/2018,3000115,Westminster Society,Adults Supported Living,Care and Assessment,4691.68
12204266,18/07/2018,13/07/2018,3000115,Westminster Society,Adults Supported Living,Care and Assessment,2968.29
12204267,18/07/2018,13/07/2018,3000115,Westminster Society,Adults Extra Care,Care and Assessment,3285.08
12204268,18/07/2018,13/07/2018,3000115,Westminster Society,Adults Extra Care,Care and Assessment,4992.8
12204269,18/07/2018,13/07/2018,3000115,Westminster Society,Adults Extra Care,Care and Assessment,6270.28
12204269,18/07/2018,13/07/2018,3000115,Westminster Society,Adults Residential Placements,Care and Assessment,700
12236356,16/08/2018,10/08/2018,3000115,Westminster Society,Adults Supported Living,Care and Assessment,1382.35
12236358,16/08/2018,10/08/2018,3000115,Westminster Society,Adults Supported Living,Care and Assessment,3374.2
12236359,16/08/2018,10/08/2018,3000115,Westminster Society,Adults Supported Living,Care and Assessment,6657
12236360,16/08/2018,10/08/2018,3000115,Westminster Society,Adults Supported Living,Care and Assessment,4274.2
12236361,16/08/2018,10/08/2018,3000115,Westminster Society,Adults Supported Living,Care and Assessment,7177.05
12236362,16/08/2018,10/08/2018,3000115,Westminster Society,Adults Supported Living,Care and Assessment,3737.6
12236363,16/08/2018,10/08/2018,3000115,Westminster Society,Adults Extra Care,Care and Assessment,3471.2
12236364,16/08/2018,10/08/2018,3000115,Westminster Society,Adults Extra Care,Care and Assessment,634
12236365,16/08/2018,10/08/2018,3000115,Westminster Society,Adults Extra Care,Care and Assessment,4400.92
12236366,16/08/2018,10/08/2018,3000115,Westminster Society,Adults Supported Living,Care and Assessment,14577
12236367,16/08/2018,10/08/2018,3000115,Westminster Society,Adults Supported Living,Care and Assessment,1793.31
12236368,16/08/2018,10/08/2018,3000115,Westminster Society,Adults Supported Living,Care and Assessment,2169.6
12236369,16/08/2018,10/08/2018,3000115,Westminster Society,Adults Supported Living,Care and Assessment,3469.32
12236370,16/08/2018,10/08/2018,3000115,Westminster Society,Adults Supported Living,Care and Assessment,7029.8
12236371,16/08/2018,10/08/2018,3000115,Westminster Society,Adults Supported Living,Care and Assessment,1957.8
12236372,16/08/2018,10/08/2018,3000115,Westminster Society,Adults Supported Living,Care and Assessment,1769.92
12236373,16/08/2018,10/08/2018,3000115,Westminster Society,Adults Short Term Residential Care,Adult Social Care Commissioning,3300.64
12236374,16/08/2018,10/08/2018,3000115,Westminster Society,Adults Short Term Residential Care,Adult Social Care Commissioning,6519.37
12236375,16/08/2018,10/08/2018,3000115,Westminster Society,Adults Supported Living,Care and Assessment,3576.8
12236376,16/08/2018,10/08/2018,3000115,Westminster Society,Adults Supported Living,Care and Assessment,2211.4
12236377,16/08/2018,10/08/2018,3000115,Westminster Society,Adults Supported Living,Care and Assessment,3767
12236378,16/08/2018,10/08/2018,3000115,Westminster Society,Adults Extra Care,Care and Assessment,4168.6
12236379,16/08/2018,10/08/2018,3000115,Westminster Society,Adults Extra Care,Care and Assessment,3788.2
12236380,16/08/2018,10/08/2018,3000115,Westminster Society,Adults Residential Placements,Care and Assessment,700
12236380,16/08/2018,10/08/2018,3000115,Westminster Society,Adults Extra Care,Care and Assessment,5955.76
12236381,16/08/2018,10/08/2018,3000115,Westminster Society,Adults Extra Care,Care and Assessment,6270.28
12236381,16/08/2018,10/08/2018,3000115,Westminster Society,Adults Residential Placements,Care and Assessment,700
12236382,16/08/2018,10/08/2018,3000115,Westminster Society,Adults Continuing Health Care Funded Placement,Care and Assessment,63471.97
12236383,16/08/2018,10/08/2018,3000115,Westminster Society,Adults Extra Care,Care and Assessment,4153.64
12236386,16/08/2018,10/08/2018,3000115,Westminster Society,Adults Supported Living,Care and Assessment,921.58
12236387,16/08/2018,10/08/2018,3000115,Westminster Society,Adults Supported Living,Care and Assessment,27775.2
12236388,16/08/2018,10/08/2018,3000115,Westminster Society,Adults Supported Living,Care and Assessment,2740.2
12236389,16/08/2018,10/08/2018,3000115,Westminster Society,Adults Supported Living,Care and Assessment,2591.8
12236390,16/08/2018,10/08/2018,3000115,Westminster Society,Adults Supported Living,Care and Assessment,4163.24
12236391,16/08/2018,10/08/2018,3000115,Westminster Society,Adults Supported Living,Care and Assessment,2017.16
12236392,16/08/2018,10/08/2018,3000115,Westminster Society,Adults Short Term Residential Care,Adult Social Care Commissioning,4630.17
12236394,16/08/2018,10/08/2018,3000115,Westminster Society,Adults Supported Living,Care and Assessment,2215.93
12236395,16/08/2018,10/08/2018,3000115,Westminster Society,Adults Extra Care,Care and Assessment,4802.6
12236396,16/08/2018,10/08/2018,3000115,Westminster Society,Adults Extra Care,Care and Assessment,5890.8
12236397,16/08/2018,10/08/2018,3000115,Westminster Society,Adults Extra Care,Care and Assessment,7057.36
12236399,16/08/2018,10/08/2018,3000115,Westminster Society,Adults Supported Living,Care and Assessment,1643.87
12236400,16/08/2018,10/08/2018,3000115,Westminster Society,Adults Supported Living,Care and Assessment,3259.8
12236401,16/08/2018,10/08/2018,3000115,Westminster Society,Adults Supported Living,Care and Assessment,2816
12236402,16/08/2018,10/08/2018,3000115,Westminster Society,Adults Supported Living,Care and Assessment,3638.52
12236403,16/08/2018,10/08/2018,3000115,Westminster Society,Adults Supported Living,Care and Assessment,5859.2
12236404,16/08/2018,10/08/2018,3000115,Westminster Society,Adults Extra Care,Care and Assessment,4802.6
12236405,16/08/2018,10/08/2018,3000115,Westminster Society,Adults Residential Placements,Care and Assessment,700
12236405,16/08/2018,10/08/2018,3000115,Westminster Society,Adults Extra Care,Care and Assessment,6270.28
12236406,16/08/2018,10/08/2018,3000115,Westminster Society,Adults Extra Care,Care and Assessment,4445.28
12236407,16/08/2018,10/08/2018,3000115,Westminster Society,Adults Extra Care,Care and Assessment,6391.68
12236408,16/08/2018,10/08/2018,3000115,Westminster Society,Adults Supported Living,Care and Assessment,1514
12236409,16/08/2018,10/08/2018,3000115,Westminster Society,Adults Short Term Residential Care,Adult Social Care Commissioning,8524.36
12236410,16/08/2018,10/08/2018,3000115,Westminster Society,Adults Supported Living,Care and Assessment,2723.2
12236411,16/08/2018,10/08/2018,3000115,Westminster Society,Adults Supported Living,Care and Assessment,3893.8
12236412,16/08/2018,10/08/2018,3000115,Westminster Society,Adults Extra Care,Care and Assessment,3090.8
12236413,16/08/2018,10/08/2018,3000115,Westminster Society,Adults Extra Care,Care and Assessment,7388.04
12236414,16/08/2018,10/08/2018,3000115,Westminster Society,Adults Extra Care,Care and Assessment,5725.96
12236415,16/08/2018,10/08/2018,3000115,Westminster Society,Adults Supported Living,Care and Assessment,9346.5
12236418,16/08/2018,10/08/2018,3000115,Westminster Society,Adults Supported Living,Care and Assessment,2440.9
12236419,16/08/2018,10/08/2018,3000115,Westminster Society,Adults Supported Living,Care and Assessment,697.4
12236420,16/08/2018,10/08/2018,3000115,Westminster Society,Adults Supported Living,Care and Assessment,9016.8
12236421,16/08/2018,10/08/2018,3000115,Westminster Society,Adults Supported Living,Care and Assessment,1040.8
12236422,16/08/2018,10/08/2018,3000115,Westminster Society,Adults Supported Living,Care and Assessment,3957.2
12236423,16/08/2018,10/08/2018,3000115,Westminster Society,Adults Supported Living,Care and Assessment,2342.8
12236424,16/08/2018,10/08/2018,3000115,Westminster Society,Adults Supported Living,Care and Assessment,4493.8
12236425,16/08/2018,10/08/2018,3000115,Westminster Society,Adults Supported Living,Care and Assessment,3957.2
12236427,16/08/2018,10/08/2018,3000115,Westminster Society,Adults Residential Placements,Care and Assessment,700
12236427,16/08/2018,10/08/2018,3000115,Westminster Society,Adults Extra Care,Care and Assessment,9035.6
12236428,16/08/2018,10/08/2018,3000115,Westminster Society,Adults Extra Care,Care and Assessment,4699.04
12236428,16/08/2018,10/08/2018,3000115,Westminster Society,Adults Residential Placements,Care and Assessment,700
12236429,16/08/2018,10/08/2018,3000115,Westminster Society,Adults Extra Care,Care and Assessment,5955.76
12236429,16/08/2018,10/08/2018,3000115,Westminster Society,Adults Residential Placements,Care and Assessment,700
12236430,16/08/2018,10/08/2018,3000115,Westminster Society,Adults Supported Living,Care and Assessment,2803.6
12236431,16/08/2018,10/08/2018,3000115,Westminster Society,Adults Supported Living,Care and Assessment,3184
12236432,16/08/2018,10/08/2018,3000115,Westminster Society,Adults Supported Living,Care and Assessment,3069.6
12236433,16/08/2018,10/08/2018,3000115,Westminster Society,Adults Supported Living,Care and Assessment,2689.2
12236434,16/08/2018,10/08/2018,3000115,Westminster Society,Adults Extra Care,Care and Assessment,3534.6
12236435,16/08/2018,10/08/2018,3000115,Westminster Society,Adults Residential Placements,Care and Assessment,700
12236435,16/08/2018,10/08/2018,3000115,Westminster Society,Adults Extra Care,Care and Assessment,4889.24
12236436,16/08/2018,10/08/2018,3000115,Westminster Society,Adults Extra Care,Care and Assessment,4699.04
12236436,16/08/2018,10/08/2018,3000115,Westminster Society,Adults Residential Placements,Care and Assessment,700
12236437,16/08/2018,10/08/2018,3000115,Westminster Society,Adults Extra Care,Care and Assessment,8269.28
12236437,16/08/2018,10/08/2018,3000115,Westminster Society,Adults Continuing Health Care Funded Placement,Care and Assessment,1646.72
12236438,16/08/2018,10/08/2018,3000115,Westminster Society,Adults Extra Care,Care and Assessment,6551.16
12236438,16/08/2018,10/08/2018,3000115,Westminster Society,Adults Residential Placements,Care and Assessment,700
12236439,16/08/2018,10/08/2018,3000115,Westminster Society,Adults Continuing Health Care Funded Placement,Care and Assessment,1646.72
12236440,16/08/2018,10/08/2018,3000115,Westminster Society,Adults Extra Care,Care and Assessment,4261.44
12236441,16/08/2018,10/08/2018,3000115,Westminster Society,Adults Extra Care,Care and Assessment,3729.28
12236442,16/08/2018,10/08/2018,3000115,Westminster Society,Adults Extra Care,Care and Assessment,3221.68
12236443,16/08/2018,10/08/2018,3000115,Westminster Society,Adults Extra Care,Care and Assessment,2999.76
12236444,16/08/2018,10/08/2018,3000115,Westminster Society,Adults Supported Living,Care and Assessment,1046.1
12236446,16/08/2018,10/08/2018,3000115,Westminster Society,Adults Supported Living,Care and Assessment,747.21
12236448,16/08/2018,10/08/2018,3000115,Westminster Society,Adults Supported Living,Care and Assessment,921.58
12236449,16/08/2018,10/08/2018,3000115,Westminster Society,Adults Supported Living,Care and Assessment,2550
12236450,16/08/2018,10/08/2018,3000115,Westminster Society,Adults Supported Living,Care and Assessment,7251.72
12236451,16/08/2018,10/08/2018,3000115,Westminster Society,Adults Supported Living,Care and Assessment,9417.8
12236452,16/08/2018,10/08/2018,3000115,Westminster Society,Adults Supported Living,Care and Assessment,2342.8
12236453,16/08/2018,10/08/2018,3000115,Westminster Society,Adults Extra Care,Care and Assessment,4992.8
12236454,16/08/2018,10/08/2018,3000115,Westminster Society,Adults Extra Care,Care and Assessment,4802.6
12236455,16/08/2018,10/08/2018,3000115,Westminster Society,Adults Extra Care,Care and Assessment,6270.28
12236455,16/08/2018,10/08/2018,3000115,Westminster Society,Adults Residential Placements,Care and Assessment,700
12236456,16/08/2018,10/08/2018,3000115,Westminster Society,Adults Extra Care,Care and Assessment,3285.08
12264468,14/09/2018,10/09/2018,3000115,Westminster Society,Adults Supported Living,Care and Assessment,4274.2
12264469,14/09/2018,10/09/2018,3000115,Westminster Society,Adults Supported Living,Care and Assessment,3737.6
12264470,14/09/2018,10/09/2018,3000115,Westminster Society,Adults Supported Living,Care and Assessment,4688.6
12264471,14/09/2018,10/09/2018,3000115,Westminster Society,Adults Extra Care,Care and Assessment,634
12264472,14/09/2018,10/09/2018,3000115,Westminster Society,Adults Supported Living,Care and Assessment,1759.36
12264473,14/09/2018,10/09/2018,3000115,Westminster Society,Adults Supported Living,Care and Assessment,634
12264474,14/09/2018,10/09/2018,3000115,Westminster Society,Adults Supported Living,Care and Assessment,6657
12264475,14/09/2018,10/09/2018,3000115,Westminster Society,Adults Supported Living,Care and Assessment,3374.2
12264476,14/09/2018,10/09/2018,3000115,Westminster Society,Adults Extra Care,Care and Assessment,3471.2
12264477,14/09/2018,10/09/2018,3000115,Westminster Society,Adults Continuing Health Care Funded Placement,Care and Assessment,46795.09
12264478,14/09/2018,10/09/2018,3000115,Westminster Society,Adults Extra Care,Care and Assessment,4400.92
12264479,14/09/2018,10/09/2018,3000115,Westminster Society,Adults Supported Living,Care and Assessment,3576.8
12264480,14/09/2018,10/09/2018,3000115,Westminster Society,Adults Supported Living,Care and Assessment,2282.4
12264481,14/09/2018,10/09/2018,3000115,Westminster Society,Adults Residential Placements,Care and Assessment,700
12264481,14/09/2018,10/09/2018,3000115,Westminster Society,Adults Extra Care,Care and Assessment,5955.76
12264482,14/09/2018,10/09/2018,3000115,Westminster Society,Adults Extra Care,Care and Assessment,1355.24
12264483,14/09/2018,10/09/2018,3000115,Westminster Society,Adults Extra Care,Care and Assessment,3788.2
12264484,14/09/2018,10/09/2018,3000115,Westminster Society,Adults Extra Care,Care and Assessment,4168.6
12264485,14/09/2018,10/09/2018,3000115,Westminster Society,Adults Supported Living,Care and Assessment,17430
12264486,14/09/2018,10/09/2018,3000115,Westminster Society,Adults Supported Living,Care and Assessment,3469.32
12264487,14/09/2018,10/09/2018,3000115,Westminster Society,Adults Supported Living,Care and Assessment,2169.6
12264488,14/09/2018,10/09/2018,3000115,Westminster Society,Adults Supported Living,Care and Assessment,3767
12264489,14/09/2018,10/09/2018,3000115,Westminster Society,Adults Extra Care,Care and Assessment,6439.22
12264490,14/09/2018,10/09/2018,3000115,Westminster Society,Adults Supported Living,Care and Assessment,2211.4
12264491,14/09/2018,10/09/2018,3000115,Westminster Society,Adults Supported Living,Care and Assessment,1769.92
12264492,14/09/2018,10/09/2018,3000115,Westminster Society,Adults Extra Care,Care and Assessment,6270.28
12264492,14/09/2018,10/09/2018,3000115,Westminster Society,Adults Residential Placements,Care and Assessment,700
12264493,14/09/2018,10/09/2018,3000115,Westminster Society,Adults Continuing Health Care Funded Placement,Care and Assessment,13262.8
12264494,14/09/2018,10/09/2018,3000115,Westminster Society,Adults Supported Living,Care and Assessment,7029.8
12264495,14/09/2018,10/09/2018,3000115,Westminster Society,Adults Supported Living,Care and Assessment,1957.8
12264496,14/09/2018,10/09/2018,3000115,Westminster Society,Adults Short Term Residential Care,Adult Social Care Commissioning,3300.64
12264498,14/09/2018,10/09/2018,3000115,Westminster Society,Adults Supported Living,Care and Assessment,1172.92
12264499,14/09/2018,10/09/2018,3000115,Westminster Society,Adults Supported Living,Care and Assessment,1268
12264500,14/09/2018,10/09/2018,3000115,Westminster Society,Adults Supported Living,Care and Assessment,2740.2
12264501,14/09/2018,10/09/2018,3000115,Westminster Society,Adults Extra Care,Care and Assessment,5890.8
12264502,14/09/2018,10/09/2018,3000115,Westminster Society,Adults Extra Care,Care and Assessment,7057.36
12264503,14/09/2018,10/09/2018,3000115,Westminster Society,Adults Supported Living,Care and Assessment,5595.12
12264504,14/09/2018,10/09/2018,3000115,Westminster Society,Adults Extra Care,Care and Assessment,4802.6
12264505,14/09/2018,10/09/2018,3000115,Westminster Society,Adults Supported Living,Care and Assessment,2718.6
12264506,14/09/2018,10/09/2018,3000115,Westminster Society,Adults Supported Living,Care and Assessment,2017.16
12264507,14/09/2018,10/09/2018,3000115,Westminster Society,Adults Supported Living,Care and Assessment,4163.24
12264508,14/09/2018,10/09/2018,3000115,Westminster Society,Adults Supported Living,Care and Assessment,2591.8
12264509,14/09/2018,10/09/2018,3000115,Westminster Society,Adults Supported Living,Care and Assessment,3259.8
12264510,14/09/2018,10/09/2018,3000115,Westminster Society,Adults Supported Living,Care and Assessment,2816
12264511,14/09/2018,10/09/2018,3000115,Westminster Society,Adults Supported Living,Care and Assessment,507.2
12264512,14/09/2018,10/09/2018,3000115,Westminster Society,Adults Supported Living,Care and Assessment,2092.2
12264513,14/09/2018,10/09/2018,3000115,Westminster Society,Adults Supported Living,Care and Assessment,5859.2
12264514,14/09/2018,10/09/2018,3000115,Westminster Society,Adults Supported Living,Care and Assessment,4851.36
12264515,14/09/2018,10/09/2018,3000115,Westminster Society,Adults Extra Care,Care and Assessment,4802.6
12264516,14/09/2018,10/09/2018,3000115,Westminster Society,Adults Residential Placements,Care and Assessment,700
12264516,14/09/2018,10/09/2018,3000115,Westminster Society,Adults Extra Care,Care and Assessment,6270.28
12264517,14/09/2018,10/09/2018,3000115,Westminster Society,Adults Extra Care,Care and Assessment,4445.28
12264518,14/09/2018,10/09/2018,3000115,Westminster Society,Adults Extra Care,Care and Assessment,6391.68
12264519,14/09/2018,10/09/2018,3000115,Westminster Society,Adults Supported Living,Care and Assessment,3893.8
12264520,14/09/2018,10/09/2018,3000115,Westminster Society,Adults Supported Living,Care and Assessment,2723.2
12264521,14/09/2018,10/09/2018,3000115,Westminster Society,Adults Supported Living,Care and Assessment,1514
12264522,14/09/2018,10/09/2018,3000115,Westminster Society,Adults Extra Care,Care and Assessment,3090.8
12264524,14/09/2018,10/09/2018,3000115,Westminster Society,Adults Continuing Health Care Funded Placement,Care and Assessment,117330.81
12264525,14/09/2018,10/09/2018,3000115,Westminster Society,Adults Extra Care,Care and Assessment,5725.96
12264526,14/09/2018,10/09/2018,3000115,Westminster Society,Adults Supported Living,Care and Assessment,3957.2
12264527,14/09/2018,10/09/2018,3000115,Westminster Society,Adults Supported Living,Care and Assessment,2342.8
12264528,14/09/2018,10/09/2018,3000115,Westminster Society,Adults Supported Living,Care and Assessment,887.6
12264529,14/09/2018,10/09/2018,3000115,Westminster Society,Adults Supported Living,Care and Assessment,3106.6
12264530,14/09/2018,10/09/2018,3000115,Westminster Society,Adults Residential Placements,Care and Assessment,700
12264530,14/09/2018,10/09/2018,3000115,Westminster Society,Adults Extra Care,Care and Assessment,5955.76
12264531,14/09/2018,10/09/2018,3000115,Westminster Society,Adults Supported Living,Care and Assessment,10773
12264532,14/09/2018,10/09/2018,3000115,Westminster Society,Adults Supported Living,Care and Assessment,634
12264533,14/09/2018,10/09/2018,3000115,Westminster Society,Adults Supported Living,Care and Assessment,9016.8
12264534,14/09/2018,10/09/2018,3000115,Westminster Society,Adults Supported Living,Care and Assessment,570.6
12264535,14/09/2018,10/09/2018,3000115,Westminster Society,Adults Supported Living,Care and Assessment,3957.2
12264536,14/09/2018,10/09/2018,3000115,Westminster Society,Adults Supported Living,Care and Assessment,4493.8
12264537,14/09/2018,10/09/2018,3000115,Westminster Society,Adults Supported Living,Care and Assessment,1040.8
12264538,14/09/2018,10/09/2018,3000115,Westminster Society,Adults Extra Care,Care and Assessment,9035.6
12264538,14/09/2018,10/09/2018,3000115,Westminster Society,Adults Residential Placements,Care and Assessment,700
12264539,14/09/2018,10/09/2018,3000115,Westminster Society,Adults Extra Care,Care and Assessment,4699.04
12264539,14/09/2018,10/09/2018,3000115,Westminster Society,Adults Residential Placements,Care and Assessment,700
12264540,14/09/2018,10/09/2018,3000115,Westminster Society,Adults Supported Living,Care and Assessment,2689.2
12264541,14/09/2018,10/09/2018,3000115,Westminster Society,Adults Supported Living,Care and Assessment,3069.6
12264542,14/09/2018,10/09/2018,3000115,Westminster Society,Adults Extra Care,Care and Assessment,3534.6
12264543,14/09/2018,10/09/2018,3000115,Westminster Society,Adults Supported Living,Care and Assessment,2803.6
12264544,14/09/2018,10/09/2018,3000115,Westminster Society,Adults Supported Living,Care and Assessment,3184
12264545,14/09/2018,10/09/2018,3000115,Westminster Society,Adults Extra Care,Care and Assessment,2999.76
12264546,14/09/2018,10/09/2018,3000115,Westminster Society,Adults Extra Care,Care and Assessment,5305.96
12264547,14/09/2018,10/09/2018,3000115,Westminster Society,Adults Residential Placements,Care and Assessment,700
12264547,14/09/2018,10/09/2018,3000115,Westminster Society,Adults Extra Care,Care and Assessment,4889.24
12264548,14/09/2018,10/09/2018,3000115,Westminster Society,Adults Residential Placements,Care and Assessment,700
12264548,14/09/2018,10/09/2018,3000115,Westminster Society,Adults Extra Care,Care and Assessment,4699.04
12264549,14/09/2018,10/09/2018,3000115,Westminster Society,Adults Continuing Health Care Funded Placement,Care and Assessment,43954.15
12264550,14/09/2018,10/09/2018,3000115,Westminster Society,Adults Extra Care,Care and Assessment,6551.16
12264550,14/09/2018,10/09/2018,3000115,Westminster Society,Adults Residential Placements,Care and Assessment,700
12264552,14/09/2018,10/09/2018,3000115,Westminster Society,Adults Extra Care,Care and Assessment,4261.44
12264553,14/09/2018,10/09/2018,3000115,Westminster Society,Adults Extra Care,Care and Assessment,3729.28
12264554,14/09/2018,10/09/2018,3000115,Westminster Society,Adults Supported Living,Care and Assessment,2342.8
12264555,14/09/2018,10/09/2018,3000115,Westminster Society,Adults Supported Living,Care and Assessment,9417.8
12264556,14/09/2018,10/09/2018,3000115,Westminster Society,Adults Supported Living,Care and Assessment,7251.72
12264557,14/09/2018,10/09/2018,3000115,Westminster Society,Adults Extra Care,Care and Assessment,4802.6
12264558,14/09/2018,10/09/2018,3000115,Westminster Society,Adults Supported Living,Care and Assessment,1331.4
12264560,14/09/2018,10/09/2018,3000115,Westminster Society,Adults Supported Living,Care and Assessment,2550
12264562,14/09/2018,10/09/2018,3000115,Westminster Society,Adults Supported Living,Care and Assessment,1172.92
12264563,14/09/2018,10/09/2018,3000115,Westminster Society,Adults Supported Living,Care and Assessment,951
12264564,14/09/2018,10/09/2018,3000115,Westminster Society,Adults Extra Care,Care and Assessment,3285.08
12264565,14/09/2018,10/09/2018,3000115,Westminster Society,Adults Extra Care,Care and Assessment,4992.8
12264566,14/09/2018,10/09/2018,3000115,Westminster Society,Adults Residential Placements,Care and Assessment,700
12264566,14/09/2018,10/09/2018,3000115,Westminster Society,Adults Extra Care,Care and Assessment,6270.28
12206564,20/07/2018,31/10/2017,3000115,Westminster Society,Day Opportunities,Care and Assessment,510
12206582,20/07/2018,31/10/2017,3000115,Westminster Society,Day Opportunities,Care and Assessment,510
12206600,20/07/2018,31/10/2017,3000115,Westminster Society,Day Opportunities,Care and Assessment,510
12271751,24/09/2018,30/06/2018,3000115,Westminster Society,Day Opportunities,Care and Assessment,510
12264240,14/09/2018,29/07/2018,3000115,Westminster Society,Day Opportunities,Care and Assessment,510
12187397,02/07/2018,25/02/2018,3000115,Westminster Society,Day Opportunities,Care and Assessment,2040
12189436,04/07/2018,30/04/2018,3000115,Westminster Society,Day Opportunities,Care and Assessment,1360
12225881,07/08/2018,31/05/2018,3000115,Westminster Society,Day Opportunities,Care and Assessment,1360
12264262,14/09/2018,17/06/2018,3000115,Westminster Society,Day Opportunities,Care and Assessment,1360
12246248,28/08/2018,31/07/2018,3000115,Westminster Society,Day Opportunities,Care and Assessment,1360
12187383,02/07/2018,25/02/2018,3000115,Westminster Society,Day Opportunities,Care and Assessment,680
12225863,07/08/2018,30/04/2018,3000115,Westminster Society,Day Opportunities,Care and Assessment,680
12189483,04/07/2018,31/05/2018,3000115,Westminster Society,Day Opportunities,Care and Assessment,680
12271791,24/09/2018,30/06/2018,3000115,Westminster Society,Day Opportunities,Care and Assessment,850
12252147,04/09/2018,29/07/2018,3000115,Westminster Society,Day Opportunities,Care and Assessment,850
12225832,07/08/2018,31/12/2017,3000115,Westminster Society,Day Opportunities,Care and Assessment,510
12271752,24/09/2018,30/06/2018,3000115,Westminster Society,Day Opportunities,Care and Assessment,510
12264241,14/09/2018,29/07/2018,3000115,Westminster Society,Day Opportunities,Care and Assessment,510
12206565,20/07/2018,31/10/2017,3000115,Westminster Society,Day Opportunities,Care and Assessment,510
12206583,20/07/2018,31/10/2017,3000115,Westminster Society,Day Opportunities,Care and Assessment,510
12206601,20/07/2018,31/10/2017,3000115,Westminster Society,Day Opportunities,Care and Assessment,510
12271754,24/09/2018,30/06/2018,3000115,Westminster Society,Day Opportunities,Care and Assessment,510
12264243,14/09/2018,29/07/2018,3000115,Westminster Society,Day Opportunities,Care and Assessment,510
12264244,14/09/2018,29/07/2018,3000115,Westminster Society,Day Opportunities,Care and Assessment,510
12225844,07/08/2018,31/12/2017,3000115,Westminster Society,Day Opportunities,Care and Assessment,510
12271755,24/09/2018,30/06/2018,3000115,Westminster Society,Day Opportunities,Care and Assessment,510
12264245,14/09/2018,29/07/2018,3000115,Westminster Society,Day Opportunities,Care and Assessment,510
3473071,23/08/2018,22/08/2018,3000115,Westminster Society,2 Year Old's Funding,Strategic Commissioning,7605
3473024,23/08/2018,22/08/2018,3000115,Westminster Society,Early Years,Strategic Commissioning,7488
3473129,23/08/2018,22/08/2018,3000115,Westminster Society,Early Years,Strategic Commissioning,1285.5
12225837,07/08/2018,28/01/2018,3000115,Westminster Society,Day Opportunities,Care and Assessment,1215.5
12189443,04/07/2018,30/04/2018,3000115,Westminster Society,Day Opportunities,Care and Assessment,1105
12225872,07/08/2018,31/05/2018,3000115,Westminster Society,Day Opportunities,Care and Assessment,1326
12264279,14/09/2018,17/06/2018,3000115,Westminster Society,Day Opportunities,Care and Assessment,1105
12252160,04/09/2018,15/07/2018,3000115,Westminster Society,Day Opportunities,Care and Assessment,1275
12187353,02/07/2018,25/02/2018,3000115,Westminster Society,Day Opportunities,Care and Assessment,1224
12187401,02/07/2018,25/02/2018,3000115,Westminster Society,Day Opportunities,Care and Assessment,1700
12189444,04/07/2018,30/04/2018,3000115,Westminster Society,Day Opportunities,Care and Assessment,1700
12187403,02/07/2018,25/02/2018,3000115,Westminster Society,Day Opportunities,Care and Assessment,1700
12189445,04/07/2018,30/04/2018,3000115,Westminster Society,Day Opportunities,Care and Assessment,1700
12225886,07/08/2018,31/05/2018,3000115,Westminster Society,Day Opportunities,Care and Assessment,1700
12264280,14/09/2018,17/06/2018,3000115,Westminster Society,Day Opportunities,Care and Assessment,1615
12187404,02/07/2018,25/02/2018,3000115,Westminster Society,Day Opportunities,Care and Assessment,680
12189446,04/07/2018,30/04/2018,3000115,Westminster Society,Day Opportunities,Care and Assessment,680
12225887,07/08/2018,31/05/2018,3000115,Westminster Society,Day Opportunities,Care and Assessment,680
12264281,14/09/2018,17/06/2018,3000115,Westminster Society,Day Opportunities,Care and Assessment,680
12252161,04/09/2018,15/07/2018,3000115,Westminster Society,Day Opportunities,Care and Assessment,680
12206568,20/07/2018,31/10/2017,3000115,Westminster Society,Day Opportunities,Care and Assessment,510
12206586,20/07/2018,31/10/2017,3000115,Westminster Society,Day Opportunities,Care and Assessment,510
12206604,20/07/2018,31/10/2017,3000115,Westminster Society,Day Opportunities,Care and Assessment,510
12271757,24/09/2018,30/06/2018,3000115,Westminster Society,Day Opportunities,Care and Assessment,510
12264247,14/09/2018,29/07/2018,3000115,Westminster Society,Day Opportunities,Care and Assessment,510
12201278,16/07/2018,31/03/2018,3000115,Westminster Society,Adults Home Care,Community Mental Health Service 2,816
12246251,28/08/2018,31/07/2018,3000115,Westminster Society,Day Opportunities,Care and Assessment,816
12225889,07/08/2018,31/05/2018,3000115,Westminster Society,Day Opportunities,Care and Assessment,680
12264265,14/09/2018,17/06/2018,3000115,Westminster Society,Day Opportunities,Care and Assessment,680
12246252,28/08/2018,31/07/2018,3000115,Westminster Society,Day Opportunities,Care and Assessment,680
12264227,14/09/2018,30/04/2018,3000115,Westminster Society,Day Opportunities,Care and Assessment,1088
12264226,14/09/2018,30/04/2018,3000115,Westminster Society,Day Opportunities,Care and Assessment,544
12264225,14/09/2018,30/04/2018,3000115,Westminster Society,Day Opportunities,Care and Assessment,544
12264283,14/09/2018,17/06/2018,3000115,Westminster Society,Day Opportunities,Care and Assessment,1088
12225890,07/08/2018,31/05/2018,3000115,Westminster Society,Day Opportunities,Care and Assessment,1700
12264284,14/09/2018,17/06/2018,3000115,Westminster Society,Day Opportunities,Care and Assessment,1700
12187407,02/07/2018,25/02/2018,3000115,Westminster Society,Day Opportunities,Care and Assessment,816
12189449,04/07/2018,30/04/2018,3000115,Westminster Society,Day Opportunities,Care and Assessment,816
12225892,07/08/2018,31/05/2018,3000115,Westminster Society,Day Opportunities,Care and Assessment,816
12264267,14/09/2018,17/06/2018,3000115,Westminster Society,Day Opportunities,Care and Assessment,816
12246254,28/08/2018,31/07/2018,3000115,Westminster Society,Day Opportunities,Care and Assessment,816
12225851,07/08/2018,31/12/2017,3000115,Westminster Society,Day Opportunities,Care and Assessment,510
12271759,24/09/2018,30/06/2018,3000115,Westminster Society,Day Opportunities,Care and Assessment,510
12264249,14/09/2018,29/07/2018,3000115,Westminster Society,Day Opportunities,Care and Assessment,510
12271760,24/09/2018,30/06/2018,3000115,Westminster Society,Day Opportunities,Care and Assessment,510
12264250,14/09/2018,29/07/2018,3000115,Westminster Society,Day Opportunities,Care and Assessment,510
12225859,07/08/2018,31/12/2017,3000115,Westminster Society,Day Opportunities,Care and Assessment,510
12271761,24/09/2018,30/06/2018,3000115,Westminster Society,Day Opportunities,Care and Assessment,510
12264251,14/09/2018,29/07/2018,3000115,Westminster Society,Day Opportunities,Care and Assessment,510
12187384,02/07/2018,25/02/2018,3000115,Westminster Society,Day Opportunities,Care and Assessment,1190
12225864,07/08/2018,30/04/2018,3000115,Westminster Society,Day Opportunities,Care and Assessment,1190
12189484,04/07/2018,31/05/2018,3000115,Westminster Society,Day Opportunities,Care and Assessment,1190
12271792,24/09/2018,30/06/2018,3000115,Westminster Society,Day Opportunities,Care and Assessment,1487.5
12252148,04/09/2018,29/07/2018,3000115,Westminster Society,Day Opportunities,Care and Assessment,1487.5
12225855,07/08/2018,31/10/2017,3000115,Westminster Society,Day Opportunities,Care and Assessment,612
12187374,02/07/2018,25/02/2018,3000115,Westminster Society,Day Opportunities,Care and Assessment,612
12271762,24/09/2018,30/06/2018,3000115,Westminster Society,Day Opportunities,Care and Assessment,510
12264252,14/09/2018,29/07/2018,3000115,Westminster Society,Day Opportunities,Care and Assessment,510
12264253,14/09/2018,29/07/2018,3000115,Westminster Society,Day Opportunities,Care and Assessment,510
12271763,24/09/2018,30/06/2018,3000115,Westminster Society,Day Opportunities,Care and Assessment,510
12264254,14/09/2018,29/07/2018,3000115,Westminster Society,Day Opportunities,Care and Assessment,510
12271764,24/09/2018,30/06/2018,3000115,Westminster Society,Day Opportunities,Care and Assessment,510
12264255,14/09/2018,29/07/2018,3000115,Westminster Society,Day Opportunities,Care and Assessment,510
12206566,20/07/2018,31/10/2017,3000115,Westminster Society,Day Opportunities,Care and Assessment,1020
12206579,20/07/2018,31/10/2017,3000115,Westminster Society,Day Opportunities,Care and Assessment,816
12206584,20/07/2018,31/10/2017,3000115,Westminster Society,Day Opportunities,Care and Assessment,1020
12206595,20/07/2018,31/10/2017,3000115,Westminster Society,Day Opportunities,Care and Assessment,816
12206559,20/07/2018,31/10/2017,3000115,Westminster Society,Day Opportunities,Care and Assessment,816
12206602,20/07/2018,31/10/2017,3000115,Westminster Society,Day Opportunities,Care and Assessment,1020
12187378,02/07/2018,25/02/2018,3000115,Westminster Society,Day Opportunities,Care and Assessment,816
12242295,22/08/2018,21/05/2018,3000115,Westminster Society,Day Opportunities,Care and Assessment,816
12271765,24/09/2018,30/06/2018,3000115,Westminster Society,Day Opportunities,Care and Assessment,1020
12264256,14/09/2018,29/07/2018,3000115,Westminster Society,Day Opportunities,Care and Assessment,1020
12271786,24/09/2018,26/08/2018,3000115,Westminster Society,Day Opportunities,Care and Assessment,816
12189457,04/07/2018,30/04/2018,3000115,Westminster Society,Day Opportunities,Care and Assessment,510
12225885,07/08/2018,31/05/2018,3000115,Westminster Society,Day Opportunities,Care and Assessment,510
12252164,04/09/2018,15/07/2018,3000115,Westminster Society,Day Opportunities,Care and Assessment,510
12187409,02/07/2018,25/02/2018,3000115,Westminster Society,Day Opportunities,Care and Assessment,1700
12189460,04/07/2018,30/04/2018,3000115,Westminster Society,Day Opportunities,Care and Assessment,1700
12225895,07/08/2018,31/05/2018,3000115,Westminster Society,Day Opportunities,Care and Assessment,1700
12264286,14/09/2018,17/06/2018,3000115,Westminster Society,Day Opportunities,Care and Assessment,1598
12252165,04/09/2018,15/07/2018,3000115,Westminster Society,Day Opportunities,Care and Assessment,1700
12187412,02/07/2018,25/02/2018,3000115,Westminster Society,Day Opportunities,Care and Assessment,714
12187385,02/07/2018,25/02/2018,3000115,Westminster Society,Day Opportunities,Care and Assessment,952
12225865,07/08/2018,30/04/2018,3000115,Westminster Society,Day Opportunities,Care and Assessment,952
12189485,04/07/2018,31/05/2018,3000115,Westminster Society,Day Opportunities,Care and Assessment,952
12271793,24/09/2018,30/06/2018,3000115,Westminster Society,Day Opportunities,Care and Assessment,1190
12252149,04/09/2018,29/07/2018,3000115,Westminster Society,Day Opportunities,Care and Assessment,1190
12187386,02/07/2018,25/02/2018,3000115,Westminster Society,Day Opportunities,Care and Assessment,748
12225866,07/08/2018,30/04/2018,3000115,Westminster Society,Day Opportunities,Care and Assessment,748
12189486,04/07/2018,31/05/2018,3000115,Westminster Society,Day Opportunities,Care and Assessment,748
12271794,24/09/2018,30/06/2018,3000115,Westminster Society,Day Opportunities,Care and Assessment,935
12252150,04/09/2018,29/07/2018,3000115,Westminster Society,Day Opportunities,Care and Assessment,935
12187387,02/07/2018,25/02/2018,3000115,Westminster Society,Day Opportunities,Care and Assessment,612
12225867,07/08/2018,30/04/2018,3000115,Westminster Society,Day Opportunities,Care and Assessment,612
12189487,04/07/2018,31/05/2018,3000115,Westminster Society,Day Opportunities,Care and Assessment,612
12271795,24/09/2018,30/06/2018,3000115,Westminster Society,Day Opportunities,Care and Assessment,765
12252151,04/09/2018,29/07/2018,3000115,Westminster Society,Day Opportunities,Care and Assessment,765
12225868,07/08/2018,30/04/2018,3000115,Westminster Society,Day Opportunities,Care and Assessment,544
12189488,04/07/2018,31/05/2018,3000115,Westminster Society,Day Opportunities,Care and Assessment,544
12271796,24/09/2018,30/06/2018,3000115,Westminster Society,Day Opportunities,Care and Assessment,680
12252152,04/09/2018,29/07/2018,3000115,Westminster Society,Day Opportunities,Care and Assessment,680
12187414,02/07/2018,25/02/2018,3000115,Westminster Society,Day Opportunities,Care and Assessment,1020
12189466,04/07/2018,30/04/2018,3000115,Westminster Society,Day Opportunities,Care and Assessment,1020
12225900,07/08/2018,31/05/2018,3000115,Westminster Society,Day Opportunities,Care and Assessment,1020
12264274,14/09/2018,17/06/2018,3000115,Westminster Society,Day Opportunities,Care and Assessment,1020
12246261,28/08/2018,31/07/2018,3000115,Westminster Society,Day Opportunities,Care and Assessment,1020
12187415,02/07/2018,25/02/2018,3000115,Westminster Society,Day Opportunities,Care and Assessment,3213
12189467,04/07/2018,30/04/2018,3000115,Westminster Society,Day Opportunities,Care and Assessment,3332
12225901,07/08/2018,31/05/2018,3000115,Westminster Society,Day Opportunities,Care and Assessment,3332
12264287,14/09/2018,17/06/2018,3000115,Westminster Society,Day Opportunities,Care and Assessment,3332
12252166,04/09/2018,15/07/2018,3000115,Westminster Society,Day Opportunities,Care and Assessment,3332
12187416,02/07/2018,25/02/2018,3000115,Westminster Society,Day Opportunities,Care and Assessment,612
12189468,04/07/2018,30/04/2018,3000115,Westminster Society,Day Opportunities,Care and Assessment,612
12225902,07/08/2018,31/05/2018,3000115,Westminster Society,Day Opportunities,Care and Assessment,612
12264288,14/09/2018,17/06/2018,3000115,Westminster Society,Day Opportunities,Care and Assessment,612
12252167,04/09/2018,15/07/2018,3000115,Westminster Society,Day Opportunities,Care and Assessment,612
3460759,17/08/2018,19/07/2018,3000123,Killgerm Chemicals Ltd,Commercial (Equip Dom Goods),PP&L - City Operations,1156.62
3464730,30/08/2018,31/07/2018,3000123,Killgerm Chemicals Ltd,Commercial (Equip Dom Goods),PP&L - City Operations,1363.2
3475171,28/09/2018,30/08/2018,3000123,Killgerm Chemicals Ltd,Commercial (Equip Dom Goods),PP&L - City Operations,1361.12
3452933,03/07/2018,19/03/2018,3000127,Bates Office Services Ltd,Office Furniture (Equip Furn),WAES Human Resources,790.8
3439313,12/07/2018,31/05/2018,3000127,Bates Office Services Ltd,Stationery: Not Elsewhere Classified (Stationery),Director of Family Services - WCC,663.77
3444724,11/07/2018,11/06/2018,3000127,Bates Office Services Ltd,Stationery: Not Elsewhere Classified (Stationery),Inner West London Coroner Consortium,775.15
3448786,20/07/2018,20/06/2018,3000127,Bates Office Services Ltd,Hired and Contracted Services,PPC Directorate Development,897.92
3451490,26/07/2018,26/06/2018,3000127,Bates Office Services Ltd,Printing (Printing),Parking,580
3456853,09/08/2018,10/07/2018,3000127,Bates Office Services Ltd,Stationery: Not Elsewhere Classified (Stationery),Director of Family Services - WCC,822.27
3465943,16/08/2018,17/07/2018,3000127,Bates Office Services Ltd,Office Furniture (Equip Furn),WAES Human Resources,651.4
3460931,17/08/2018,19/07/2018,3000127,Bates Office Services Ltd,Domestic Goods (Equip Dom Goods),PP&L - Central,774.53
3462374,22/08/2018,23/07/2018,3000127,Bates Office Services Ltd,Stationery: Not Elsewhere Classified (Stationery),Development Management,563.4
3467305,05/09/2018,06/08/2018,3000127,Bates Office Services Ltd,Printing (Printing),Parking,661.03
3469369,12/09/2018,13/08/2018,3000127,Bates Office Services Ltd,Stationery: Not Elsewhere Classified (Stationery),Director of Family Services - WCC,695.89
3457756,10/08/2018,11/07/2018,3000130,Mayor's Office for Policing and Crime C/o Met Police,DBS Police Checks,Housing General,8375
12196269,10/07/2018,20/06/2018,3000142,Bs Project Services Ltd,Placements,LAC and Specialist Services,1216.36
12196267,10/07/2018,27/06/2018,3000142,Bs Project Services Ltd,Placements,LAC and Specialist Services,698.76
12196266,10/07/2018,27/06/2018,3000142,Bs Project Services Ltd,Placements,LAC and Specialist Services,1449.28
12207889,23/07/2018,04/07/2018,3000142,Bs Project Services Ltd,Placements,SEN and Disabilities,983.44
12236457,16/08/2018,04/07/2018,3000142,Bs Project Services Ltd,Placements,SEN and Disabilities,2666.16
12202502,17/07/2018,11/07/2018,3000142,Bs Project Services Ltd,Placements,SEN and Disabilities,811.08
12202501,17/07/2018,11/07/2018,3000142,Bs Project Services Ltd,Placements,SEN and Disabilities,1630.44
12202514,17/07/2018,11/07/2018,3000142,Bs Project Services Ltd,Placements,SEN and Disabilities,1216.62
12202509,17/07/2018,11/07/2018,3000142,Bs Project Services Ltd,Placements,SEN and Disabilities,811.08
12215776,26/07/2018,18/07/2018,3000142,Bs Project Services Ltd,Placements,SEN and Disabilities,931.68
12215769,26/07/2018,18/07/2018,3000142,Bs Project Services Ltd,Placements,SEN and Disabilities,750.52
12218379,31/07/2018,25/07/2018,3000142,Bs Project Services Ltd,Placements,SEN and Disabilities,1544.48
12218400,31/07/2018,25/07/2018,3000142,Bs Project Services Ltd,Placements,SEN and Disabilities,1544.48
12258992,10/09/2018,01/08/2018,3000142,Bs Project Services Ltd,Placements,SEN and Disabilities,1585.36
12258975,10/09/2018,01/08/2018,3000142,Bs Project Services Ltd,Placements,SEN and Disabilities,1585.36
12258999,10/09/2018,08/08/2018,3000142,Bs Project Services Ltd,Placements,SEN and Disabilities,1585.36
12258976,10/09/2018,08/08/2018,3000142,Bs Project Services Ltd,Placements,SEN and Disabilities,1609.73
12264038,13/09/2018,05/09/2018,3000142,Bs Project Services Ltd,Placements,SEN and Disabilities,1401.39
12262199,12/09/2018,05/09/2018,3000142,Bs Project Services Ltd,Placements,SEN and Disabilities,1198.62
12215770,26/07/2018,18/07/2018,3000142,Bs Project Services Ltd,Placements,SEN and Disabilities,1216.36
12191630,05/07/2018,01/11/2017,3000142,Bs Project Services Ltd,Placements,LAC and Specialist Services,608.31
12191616,05/07/2018,27/12/2017,3000142,Bs Project Services Ltd,Placements,LAC and Specialist Services,811.08
12191631,05/07/2018,03/01/2018,3000142,Bs Project Services Ltd,Placements,LAC and Specialist Services,1216.62
12191617,05/07/2018,04/04/2018,3000142,Bs Project Services Ltd,Placements,LAC and Specialist Services,811.08
12206207,19/07/2018,12/07/2018,3000143,Beau Sejour Residential Care Home Ltd,Adults Residential Placements,Care and Assessment,6400.36
12235005,15/08/2018,07/08/2018,3000143,Beau Sejour Residential Care Home Ltd,Adults Residential Placements,Care and Assessment,6400.36
12261064,11/09/2018,04/09/2018,3000143,Beau Sejour Residential Care Home Ltd,Adults Residential Placements,Care and Assessment,6400.36
3437595,01/08/2018,01/06/2018,3000155,Hertfordshire Partnership Nhs Foundation,Hired and Contracted Services,Adult Social Care Commissioning,26816.25
3454506,31/07/2018,01/07/2018,3000155,Hertfordshire Partnership Nhs Foundation,Hired and Contracted Services,Adult Social Care Commissioning,26816.25
3453284,31/07/2018,26/06/2018,3000155,Hertfordshire Partnership Nhs Foundation,Hired and Contracted Services,Adult Social Care Commissioning,26816.25
3453075,31/07/2018,26/06/2018,3000155,Hertfordshire Partnership Nhs Foundation,Hired and Contracted Services,Adult Social Care Commissioning,26816.25
3463825,31/08/2018,01/08/2018,3000155,Hertfordshire Partnership Nhs Foundation,Hired and Contracted Services,Adult Social Care Commissioning,26816.25
12206095,19/07/2018,12/07/2018,3000157,Candour Care Services (Broadview) Ltd,Adults Residential Placements,Care and Assessment,7434.92
12235128,15/08/2018,07/08/2018,3000157,Candour Care Services (Broadview) Ltd,Adults Residential Placements,Care and Assessment,7434.92
12260960,11/09/2018,04/09/2018,3000157,Candour Care Services (Broadview) Ltd,Adults Residential Placements,Care and Assessment,7434.92
12260614,11/09/2018,04/09/2018,3000162,Quantum Care Ltd,Adults Residential Placements,Care and Assessment,49300
3482704,25/09/2018,28/08/2018,3000175,Browne Jacobson Llp,Insurance - Loss Adjustors,Revenue and Benefits,514
3461246,25/07/2018,09/07/2018,3000185,Mazars Llp,Hired and Contracted Services,Cross River Partnership,2875
3467307,05/09/2018,06/08/2018,3000185,Mazars Llp,IT Software Purchase,Strategic Finance,993
12205641,19/07/2018,17/07/2018,3000201,Foster Care Associates Ltd,Fees,Looked After Children and Leaving Care,3410.87
12205711,19/07/2018,17/07/2018,3000201,Foster Care Associates Ltd,Fees,Looked After Children and Leaving Care,1806.43
12205712,19/07/2018,17/07/2018,3000201,Foster Care Associates Ltd,Fees,Looked After Children and Leaving Care,3283.2
12215786,26/07/2018,26/07/2018,3000201,Foster Care Associates Ltd,Fees,Looked After Children and Leaving Care,798
12235531,15/08/2018,14/08/2018,3000201,Foster Care Associates Ltd,Fees,Looked After Children and Leaving Care,3524.57
12235643,15/08/2018,14/08/2018,3000201,Foster Care Associates Ltd,Fees,Looked After Children and Leaving Care,3392.64
12265524,17/09/2018,14/09/2018,3000201,Foster Care Associates Ltd,Fees,Looked After Children and Leaving Care,3524.57
12265644,17/09/2018,14/09/2018,3000201,Foster Care Associates Ltd,Fees,Looked After Children and Leaving Care,3392.64
12205880,19/07/2018,12/07/2018,3000203,Vision Homes Association,Adults Residential Placements,Care and Assessment,7760
12235320,15/08/2018,07/08/2018,3000203,Vision Homes Association,Adults Residential Placements,Care and Assessment,7760
12260742,11/09/2018,04/09/2018,3000203,Vision Homes Association,Adults Residential Placements,Care and Assessment,7760
12207888,23/07/2018,24/05/2018,3000206,Kids,Placements,SEN and Disabilities,590
12207891,23/07/2018,25/05/2018,3000206,Kids,Placements,SEN and Disabilities,565
12202499,17/07/2018,25/05/2018,3000206,Kids,Placements,SEN and Disabilities,791
12202500,17/07/2018,29/05/2018,3000206,Kids,Placements,SEN and Disabilities,565
3471899,23/08/2018,14/06/2018,3000206,Kids,Education (Hired & Contr - Educ),Special Educational Needs,30921
3471900,23/08/2018,02/07/2018,3000206,Kids,Education (Hired & Contr - Educ),Special Educational Needs,30921
12215773,26/07/2018,17/07/2018,3000206,Kids,Placements,SEN and Disabilities,708
3464622,29/08/2018,30/07/2018,3000206,Kids,Activities and Events,Special Educational Needs,10500
12206360,19/07/2018,12/07/2018,3000207,Blackwells (Hereford) Ltd,Adults Residential Placements,Care and Assessment,7178.6
12235068,15/08/2018,07/08/2018,3000207,Blackwells (Hereford) Ltd,Nursing Care Contributions,Care and Assessment,1141
12235068,15/08/2018,07/08/2018,3000207,Blackwells (Hereford) Ltd,Adults Residential Placements,Care and Assessment,4614.81
3462393,22/08/2018,23/07/2018,3000211,Cloudsend Cic,Adults Home Care,Care and Assessment,800
3462392,22/08/2018,23/07/2018,3000211,Cloudsend Cic,Adults Home Care,Care and Assessment,500
12206248,19/07/2018,12/07/2018,3000220,Solo Care Group Ltd,Adults Residential Placements,Care and Assessment,5809.96
12235193,15/08/2018,07/08/2018,3000220,Solo Care Group Ltd,Adults Residential Placements,Care and Assessment,5809.96
12261078,11/09/2018,04/09/2018,3000220,Solo Care Group Ltd,Adults Residential Placements,Care and Assessment,5809.96
3466773,29/08/2018,10/03/2017,3000239,Bertram Library Services,Library Books (Equip Educ),Innovation and Development,762.66
3466774,29/08/2018,10/03/2017,3000239,Bertram Library Services,Library Books (Equip Educ),Innovation and Development,852.29
3466769,29/08/2018,03/03/2017,3000239,Bertram Library Services,Library Books (Equip Educ),Innovation and Development,865.76
3466752,29/08/2018,17/02/2017,3000239,Bertram Library Services,Library Books (Equip Educ),Innovation and Development,981.11
3466757,29/08/2018,23/02/2017,3000239,Bertram Library Services,Library Books (Equip Educ),Innovation and Development,896.53
3466753,29/08/2018,17/02/2017,3000239,Bertram Library Services,Library Books (Equip Educ),Innovation and Development,1111.23
3466727,29/08/2018,10/04/2017,3000239,Bertram Library Services,Library Books (Equip Educ),Innovation and Development,1486.47
3466743,29/08/2018,18/05/2017,3000239,Bertram Library Services,Library Books (Equip Educ),Innovation and Development,579.47
3466725,29/08/2018,01/08/2017,3000239,Bertram Library Services,Library Books (Equip Educ),Innovation and Development,770.64
3481227,27/09/2018,18/08/2017,3000239,Bertram Library Services,School Books (Equip Educ),Innovation and Development,801.29
3464380,29/08/2018,01/09/2017,3000239,Bertram Library Services,Library Books (Equip Educ),Innovation and Development,981.9
3464386,29/08/2018,05/09/2017,3000239,Bertram Library Services,Library Books (Equip Educ),Innovation and Development,545.52
3464385,29/08/2018,04/09/2017,3000239,Bertram Library Services,Library Books (Equip Educ),Innovation and Development,872.68
3481210,21/09/2018,10/11/2017,3000239,Bertram Library Services,School Books (Equip Educ),Innovation and Development,829.77
3481023,27/09/2018,10/11/2017,3000239,Bertram Library Services,School Books (Equip Educ),Innovation and Development,973.31
3463098,30/07/2018,04/01/2018,3000239,Bertram Library Services,Library Books (Equip Educ),Innovation and Development,658.58
3463087,30/07/2018,15/01/2018,3000239,Bertram Library Services,Library Books (Equip Educ),Innovation and Development,521.88
12205782,19/07/2018,12/07/2018,3000243,Oak Lodge Residential Home,Adults Continuing Health Care Funded Placement,Community Mental Health Service 2,900
12205782,19/07/2018,12/07/2018,3000243,Oak Lodge Residential Home,Adults Residential Placements,Community Mental Health Service 2,900
12235252,15/08/2018,07/08/2018,3000243,Oak Lodge Residential Home,Adults Continuing Health Care Funded Placement,Community Mental Health Service 2,900
12235252,15/08/2018,07/08/2018,3000243,Oak Lodge Residential Home,Adults Residential Placements,Community Mental Health Service 2,900
12260620,11/09/2018,04/09/2018,3000243,Oak Lodge Residential Home,Adults Continuing Health Care Funded Placement,Community Mental Health Service 2,900
12260620,11/09/2018,04/09/2018,3000243,Oak Lodge Residential Home,Adults Residential Placements,Community Mental Health Service 2,900
3454118,27/07/2018,29/06/2018,3000259,Silversands Ltd,Training & Conferences,Organisational Development,3680
3465228,30/08/2018,31/07/2018,3000259,Silversands Ltd,Training & Conferences,Organisational Development,1890
3452192,13/07/2018,27/06/2018,3000278,Bt Business Direct,Supplies (Equip Educ),WAES Business Services,696.89
3453285,13/07/2018,29/06/2018,3000278,Bt Business Direct,Supplies (Equip Educ),WAES Business Services,570
3457758,25/07/2018,11/07/2018,3000278,Bt Business Direct,Consumables (IT Hardware Purch),WAES Business Services,20300
3461387,03/08/2018,20/07/2018,3000278,Bt Business Direct,Consumables (IT Hardware Purch),WAES Business Services,2380
3466795,17/08/2018,03/08/2018,3000278,Bt Business Direct,Equipment (Equip Health),WAES Human Resources,1404
3454651,27/07/2018,29/06/2018,3000280,Change Grow Live,Public Health (Hired & Contr - Healthcare),Substance Misuse/Offender Health Commissioning,90053.5
3465082,29/08/2018,30/07/2018,3000280,Change Grow Live,Public Health (Hired & Contr - Healthcare),Substance Misuse/Offender Health Commissioning,90053.5
3473819,21/09/2018,23/08/2018,3000280,Change Grow Live,Public Health (Hired & Contr - Healthcare),Substance Misuse/Offender Health Commissioning,90053.51
3448391,19/07/2018,19/06/2018,3000301,Computer Imprintable Label Systems Ltd,Printing (Printing),Parking,9419
3473822,21/09/2018,23/08/2018,3000301,Computer Imprintable Label Systems Ltd,Printing (Printing),Parking,9419
12205826,19/07/2018,12/07/2018,3000317,Disabilities Trust,Adults Residential Placements,Care and Assessment,3004.48
12235090,15/08/2018,07/08/2018,3000317,Disabilities Trust,Adults Residential Placements,Care and Assessment,3004.48
12260664,11/09/2018,04/09/2018,3000317,Disabilities Trust,Adults Residential Placements,Care and Assessment,3004.48
3476474,28/09/2018,31/08/2018,3000319,Posturite (Uk) Ltd,"Vehicles, Furniture and equipment",HRA City West Homes,3171
3442523,06/07/2018,07/06/2018,3000325,Norman Mark Training,Specialist Training,Early Help,1190
12205852,19/07/2018,12/07/2018,3000327,The Grace Eyre Foundation,Adults Supported Living,Care and Assessment,8480.43
12205918,19/07/2018,12/07/2018,3000327,The Grace Eyre Foundation,Adults Supported Living,Care and Assessment,3534.4
12235355,15/08/2018,07/08/2018,3000327,The Grace Eyre Foundation,Adults Supported Living,Care and Assessment,3534.4
12260782,11/09/2018,04/09/2018,3000327,The Grace Eyre Foundation,Adults Supported Living,Care and Assessment,3534.4
12260716,11/09/2018,04/09/2018,3000327,The Grace Eyre Foundation,Adults Supported Living,Care and Assessment,1178.57
3457760,31/07/2018,01/07/2018,3000327,The Grace Eyre Foundation,Hired and Contracted Services,Adult Social Care Commissioning,1610.35
3465958,31/08/2018,01/08/2018,3000327,The Grace Eyre Foundation,Hired and Contracted Services,Adult Social Care Commissioning,1610.35
12205991,19/07/2018,12/07/2018,3000331,Foster Care Agency Ltd,Adults Supported Living,Care and Assessment,4116
12235429,15/08/2018,07/08/2018,3000331,Foster Care Agency Ltd,Adults Supported Living,Care and Assessment,4116
12260854,11/09/2018,04/09/2018,3000331,Foster Care Agency Ltd,Adults Supported Living,Care and Assessment,4116
3462515,06/08/2018,30/04/2018,3000336,Judge & Priestley,Legal Services: Not Elsewhere Classified (Legal Fees),City West Homes 2,573
3469583,16/08/2018,11/06/2018,3000336,Judge & Priestley,Legal Services: Not Elsewhere Classified (Legal Fees),City West Homes 2,582
3448064,16/07/2018,18/06/2018,3000336,Judge & Priestley,Legal Services: Not Elsewhere Classified (Legal Fees),City West Homes 2,540
3460228,13/08/2018,16/07/2018,3000336,Judge & Priestley,Legal Services: Not Elsewhere Classified (Legal Fees),City West Homes 2,795.5
3462809,20/08/2018,23/07/2018,3000336,Judge & Priestley,Legal Services: Not Elsewhere Classified (Legal Fees),City West Homes 2,500
3462808,20/08/2018,23/07/2018,3000336,Judge & Priestley,Legal Services: Not Elsewhere Classified (Legal Fees),City West Homes 2,561
3469373,03/09/2018,06/08/2018,3000336,Judge & Priestley,Legal Services: Not Elsewhere Classified (Legal Fees),City West Homes 2,1019
3470114,10/09/2018,13/08/2018,3000336,Judge & Priestley,Legal Services: Not Elsewhere Classified (Legal Fees),City West Homes 2,1200
3455791,18/07/2018,30/04/2018,3000336,Judge & Priestley,Legal Services: Not Elsewhere Classified (Legal Fees),City West Homes 2,825
3442525,02/07/2018,30/05/2018,3000336,Judge & Priestley,Legal Services: Not Elsewhere Classified (Legal Fees),City West Homes 2,2920.6
3454655,25/07/2018,27/06/2018,3000336,Judge & Priestley,Legal Services: Not Elsewhere Classified (Legal Fees),City West Homes 2,2400
3482591,26/09/2018,29/08/2018,3000336,Judge & Priestley,Legal Services: Not Elsewhere Classified (Legal Fees),City West Homes 2,3076.6
3482590,26/09/2018,29/08/2018,3000336,Judge & Priestley,Legal Services: Not Elsewhere Classified (Legal Fees),City West Homes 2,500
3452660,03/07/2018,21/05/2018,3000343,London Borough Of Bromley,LAC Contact,Child Protection,2575
3474273,29/08/2018,24/07/2018,3000343,London Borough Of Bromley,LAC Contact,Child Protection,1900
3454122,11/07/2018,30/06/2018,3000361,Mitie Property Services (Uk) Ltd - South,Contractors,HRA City West Homes,1030.14
3463187,13/08/2018,01/05/2018,3000362,Real Asset Managemant Ltd,Hired and Contracted Services,Corporate Finance,1258.2
3469249,30/08/2018,31/07/2018,3000362,Real Asset Managemant Ltd,Consultancy: Not Elsewhere Classified (Hired & Contr - Consultancy),Corporate Finance,1369.39
12205600,19/07/2018,17/07/2018,3000364,Safehouses Ltd,Fees,Looked After Children and Leaving Care,3679.5
12205754,19/07/2018,17/07/2018,3000364,Safehouses Ltd,Fees,Looked After Children and Leaving Care,3251.14
12235622,15/08/2018,14/08/2018,3000364,Safehouses Ltd,Fees,Looked After Children and Leaving Care,3802.15
12235691,15/08/2018,14/08/2018,3000364,Safehouses Ltd,Fees,Looked After Children and Leaving Care,3359.51
12265622,17/09/2018,14/09/2018,3000364,Safehouses Ltd,Fees,Looked After Children and Leaving Care,3802.15
12265708,17/09/2018,14/09/2018,3000364,Safehouses Ltd,Fees,Looked After Children and Leaving Care,3359.52
12205979,19/07/2018,12/07/2018,3000384,Campania,Adults Residential Placements,Care and Assessment,2307.68
12206055,19/07/2018,12/07/2018,3000384,Campania,Adults Residential Placements,Community Mental Health Service 2,2600
12206290,19/07/2018,12/07/2018,3000384,Campania,Adults Residential Placements,Care and Assessment,2741
12235417,15/08/2018,07/08/2018,3000384,Campania,Adults Residential Placements,Care and Assessment,2307.68
12235492,15/08/2018,07/08/2018,3000384,Campania,Adults Residential Placements,Community Mental Health Service 2,2600
12235029,15/08/2018,07/08/2018,3000384,Campania,Adults Residential Placements,Care and Assessment,2741
12260842,11/09/2018,04/09/2018,3000384,Campania,Adults Residential Placements,Care and Assessment,2307.68
12260919,11/09/2018,04/09/2018,3000384,Campania,Adults Residential Placements,Community Mental Health Service 2,2600
12261124,11/09/2018,04/09/2018,3000384,Campania,Adults Residential Placements,Care and Assessment,2741
3458090,27/07/2018,30/06/2018,3000385,Mercia Care Homes Ltd,Public Health (Hired & Contr - Healthcare),Substance Misuse/Offender Health Commissioning,3166.8
3470457,04/09/2018,31/07/2018,3000385,Mercia Care Homes Ltd,Public Health (Hired & Contr - Healthcare),Substance Misuse/Offender Health Commissioning,1168.68
3461683,20/08/2018,21/07/2018,3000386,Westcliffe House Ltd,Public Health (Hired & Contr - Healthcare),Substance Misuse/Offender Health Commissioning,2707.2
3450353,23/07/2018,23/06/2018,3000386,Westcliffe House Ltd,Public Health (Hired & Contr - Healthcare),Substance Misuse/Offender Health Commissioning,2707.2
3461682,20/08/2018,21/07/2018,3000386,Westcliffe House Ltd,Public Health (Hired & Contr - Healthcare),Substance Misuse/Offender Health Commissioning,2707.2
3477207,17/09/2018,18/08/2018,3000386,Westcliffe House Ltd,Public Health (Hired & Contr - Healthcare),Substance Misuse/Offender Health Commissioning,2707.2
3477208,17/09/2018,18/08/2018,3000386,Westcliffe House Ltd,Public Health (Hired & Contr - Healthcare),Substance Misuse/Offender Health Commissioning,2707.2
12278464,28/09/2018,30/06/2018,3000395,Nas Services Limited,Day Opportunities,Care and Assessment,2027.52
12278477,28/09/2018,18/07/2018,3000395,Nas Services Limited,Day Opportunities,Care and Assessment,2027.52
12278475,28/09/2018,15/08/2018,3000395,Nas Services Limited,Day Opportunities,Care and Assessment,2027.52
12225911,07/08/2018,22/05/2018,3000395,Nas Services Limited,Day Opportunities,Care and Assessment,5123.16
12225904,07/08/2018,22/05/2018,3000395,Nas Services Limited,Day Opportunities,Care and Assessment,2116.6
12225909,07/08/2018,22/05/2018,3000395,Nas Services Limited,Day Opportunities,Care and Assessment,1744.52
12278462,28/09/2018,31/05/2018,3000395,Nas Services Limited,Day Opportunities,Care and Assessment,5367.12
12278480,28/09/2018,19/06/2018,3000395,Nas Services Limited,Day Opportunities,Care and Assessment,5243.8
12278472,28/09/2018,30/06/2018,3000395,Nas Services Limited,Day Opportunities,Care and Assessment,1124.96
12278465,28/09/2018,30/06/2018,3000395,Nas Services Limited,Day Opportunities,Care and Assessment,1744.52
12206539,20/07/2018,30/06/2018,3000395,Nas Services Limited,Day Opportunities,Care and Assessment,3816.6
12278479,28/09/2018,30/06/2018,3000395,Nas Services Limited,Day Opportunities,Care and Assessment,777.04
12206540,20/07/2018,30/06/2018,3000395,Nas Services Limited,Day Opportunities,Care and Assessment,888.56
12278485,28/09/2018,30/06/2018,3000395,Nas Services Limited,Day Opportunities,Care and Assessment,1554.08
12278473,28/09/2018,13/07/2018,3000395,Nas Services Limited,Day Opportunities,Care and Assessment,1744.52
12225915,07/08/2018,17/07/2018,3000395,Nas Services Limited,Day Opportunities,Care and Assessment,5243.8
12278463,28/09/2018,17/07/2018,3000395,Nas Services Limited,Day Opportunities,Care and Assessment,888.56
12278474,28/09/2018,17/07/2018,3000395,Nas Services Limited,Day Opportunities,Care and Assessment,5243.8
12278468,28/09/2018,17/07/2018,3000395,Nas Services Limited,Day Opportunities,Care and Assessment,1124.96
12278486,28/09/2018,17/07/2018,3000395,Nas Services Limited,Day Opportunities,Care and Assessment,1554.08
12265901,17/09/2018,31/08/2018,3000395,Nas Services Limited,Day Opportunities,Care and Assessment,1951.68
3475657,04/09/2018,03/09/2018,3000407,Tv Licensing,Licences (Expenditure),City West Homes 2,2107
12206270,19/07/2018,12/07/2018,3000413,Greenfield Residential Home,Adults Residential Placements,Care and Assessment,2056
12235211,15/08/2018,07/08/2018,3000413,Greenfield Residential Home,Adults Residential Placements,Care and Assessment,2056
12261097,11/09/2018,04/09/2018,3000413,Greenfield Residential Home,Adults Residential Placements,Care and Assessment,2056
3442529,03/07/2018,03/06/2018,3000434,Reach Southern Media Ltd (Use 3001367),Printing (Printing),Development Management,673.2
12206221,19/07/2018,12/07/2018,3000441,Shaw Care Uk Ltd,Adults Continuing Health Care Funded Placement,Care and Assessment,3200
12206221,19/07/2018,12/07/2018,3000441,Shaw Care Uk Ltd,Adults Residential Placements,Care and Assessment,3200
12235019,15/08/2018,07/08/2018,3000441,Shaw Care Uk Ltd,Adults Continuing Health Care Funded Placement,Care and Assessment,3200
12235019,15/08/2018,07/08/2018,3000441,Shaw Care Uk Ltd,Adults Residential Placements,Care and Assessment,3200
12261113,11/09/2018,04/09/2018,3000441,Shaw Care Uk Ltd,Adults Residential Placements,Care and Assessment,3200
12261113,11/09/2018,04/09/2018,3000441,Shaw Care Uk Ltd,Adults Continuing Health Care Funded Placement,Care and Assessment,3200
3460746,08/08/2018,15/06/2018,3000455,Stopford Information Systems Ltd,Application Service Provision (IT Software Maint),WCC Registrars,6600
3474959,03/09/2018,30/08/2018,3000457,St George's Primary School,Grants,Virtual School,1500
3432122,24/07/2018,26/01/2018,3000465,Pinnacle Housing,Contractors,Housing Regeneration,44829.31
3439320,25/07/2018,30/05/2018,3000465,Pinnacle Housing,Contractors,Housing Regeneration,10417
3448795,25/07/2018,20/06/2018,3000465,Pinnacle Housing,Contractors,Housing Regeneration,1200.77
3453287,26/07/2018,26/06/2018,3000465,Pinnacle Housing,Contractors,Housing Regeneration,10417
3454497,27/07/2018,27/06/2018,3000465,Pinnacle Housing,Maintenance (Ground Mtce - Plan),City West Homes 2,980
3454483,27/07/2018,27/06/2018,3000465,Pinnacle Housing,Repairs,City West Homes 2,580
3454486,27/07/2018,27/06/2018,3000465,Pinnacle Housing,Maintenance (Ground Mtce - Plan),City West Homes 2,580
3454476,27/07/2018,27/06/2018,3000465,Pinnacle Housing,Building Construction Materials Reactive: Not Elsewhere Classified (R&M - React),General HRA,525.78
3463539,24/08/2018,25/07/2018,3000465,Pinnacle Housing,Legal Fees (C Code),Housing Regeneration,22216.21
3463540,24/08/2018,25/07/2018,3000465,Pinnacle Housing,Legal Fees (C Code),Housing Regeneration,36996.79
3463529,24/08/2018,25/07/2018,3000465,Pinnacle Housing,Legal Fees (C Code),Housing Regeneration,31070.15
3466797,29/08/2018,30/07/2018,3000465,Pinnacle Housing,Repairs,City West Homes 2,580
3465233,29/08/2018,30/07/2018,3000465,Pinnacle Housing,Maintenance (Ground Mtce - Plan),City West Homes 2,580
3465232,29/08/2018,30/07/2018,3000465,Pinnacle Housing,Security for Pinnacle Properties,City West Homes 2,693.42
3465231,29/08/2018,30/07/2018,3000465,Pinnacle Housing,Building Construction Materials Reactive: Not Elsewhere Classified (R&M - React),General HRA,525.78
3465238,29/08/2018,30/07/2018,3000465,Pinnacle Housing,Maintenance (Ground Mtce - Plan),City West Homes 2,780
3465246,29/08/2018,30/07/2018,3000465,Pinnacle Housing,Maintenance (Ground Mtce - Plan),City West Homes 2,1100
3465247,29/08/2018,30/07/2018,3000465,Pinnacle Housing,Hired and Contracted Services,HRA City West Homes,1100
3470117,07/09/2018,09/08/2018,3000465,Pinnacle Housing,Legal Fees (C Code),Housing Regeneration,18509.69
3471305,14/09/2018,17/08/2018,3000465,Pinnacle Housing,Hired and Contracted Services,HRA City West Homes,3369.6
3476479,27/09/2018,28/08/2018,3000465,Pinnacle Housing,Professional Fees (non-Legal),Housing Regeneration,18509.86
3477480,27/09/2018,28/08/2018,3000465,Pinnacle Housing,Security for Pinnacle Properties,City West Homes 2,693.42
3477479,27/09/2018,28/08/2018,3000465,Pinnacle Housing,Building Construction Materials Reactive: Not Elsewhere Classified (R&M - React),General HRA,525.78
3477478,27/09/2018,28/08/2018,3000465,Pinnacle Housing,Hired and Contracted Services,HRA City West Homes,1140
12206331,19/07/2018,12/07/2018,3000470,Outlook Care,Adults Extra Care,Care and Assessment,2146.88
12206331,19/07/2018,12/07/2018,3000470,Outlook Care,Adults Supported Living,Care and Assessment,1637.68
12205802,19/07/2018,12/07/2018,3000470,Outlook Care,Adults Residential Placements,Community Mental Health Service 2,1372
12205802,19/07/2018,12/07/2018,3000470,Outlook Care,Adults Continuing Health Care Funded Placement,Community Mental Health Service 2,1372
12206096,19/07/2018,12/07/2018,3000470,Outlook Care,Adults Extra Care,Care and Assessment,2146.88
12206096,19/07/2018,12/07/2018,3000470,Outlook Care,Adults Supported Living,Care and Assessment,1637.68
12206125,19/07/2018,12/07/2018,3000470,Outlook Care,Adults Residential Placements,Community Mental Health Service 2,2512
12206125,19/07/2018,12/07/2018,3000470,Outlook Care,Adults Continuing Health Care Funded Placement,Community Mental Health Service 2,2512
12206199,19/07/2018,12/07/2018,3000470,Outlook Care,Adults Supported Living,Care and Assessment,2044.8
12206199,19/07/2018,12/07/2018,3000470,Outlook Care,Adults Extra Care,Care and Assessment,2146.88
12206200,19/07/2018,12/07/2018,3000470,Outlook Care,Adults Extra Care,Care and Assessment,840
12235243,15/08/2018,07/08/2018,3000470,Outlook Care,Adults Supported Living,Care and Assessment,1637.68
12235243,15/08/2018,07/08/2018,3000470,Outlook Care,Adults Extra Care,Care and Assessment,2146.88
12235272,15/08/2018,07/08/2018,3000470,Outlook Care,Adults Residential Placements,Community Mental Health Service 2,1372
12235272,15/08/2018,07/08/2018,3000470,Outlook Care,Adults Continuing Health Care Funded Placement,Community Mental Health Service 2,1372
12235129,15/08/2018,07/08/2018,3000470,Outlook Care,Adults Supported Living,Care and Assessment,1637.68
12235129,15/08/2018,07/08/2018,3000470,Outlook Care,Adults Extra Care,Care and Assessment,2146.88
12235130,15/08/2018,07/08/2018,3000470,Outlook Care,Adults Supported Living,Care and Assessment,1329.36
12234943,15/08/2018,07/08/2018,3000470,Outlook Care,Adults Continuing Health Care Funded Placement,Community Mental Health Service 2,2512
12234943,15/08/2018,07/08/2018,3000470,Outlook Care,Adults Residential Placements,Community Mental Health Service 2,2512
12234998,15/08/2018,07/08/2018,3000470,Outlook Care,Adults Extra Care,Care and Assessment,2146.88
12234998,15/08/2018,07/08/2018,3000470,Outlook Care,Adults Supported Living,Care and Assessment,2044.8
12234999,15/08/2018,07/08/2018,3000470,Outlook Care,Adults Extra Care,Care and Assessment,840
12260582,11/09/2018,04/09/2018,3000470,Outlook Care,Adults Extra Care,Care and Assessment,2146.88
12260582,11/09/2018,04/09/2018,3000470,Outlook Care,Adults Supported Living,Care and Assessment,1637.68
12260640,11/09/2018,04/09/2018,3000470,Outlook Care,Adults Residential Placements,Community Mental Health Service 2,1372
12260640,11/09/2018,04/09/2018,3000470,Outlook Care,Adults Continuing Health Care Funded Placement,Community Mental Health Service 2,1372
12260961,11/09/2018,04/09/2018,3000470,Outlook Care,Adults Supported Living,Care and Assessment,1637.68
12260961,11/09/2018,04/09/2018,3000470,Outlook Care,Adults Extra Care,Care and Assessment,2146.88
12260988,11/09/2018,04/09/2018,3000470,Outlook Care,Adults Residential Placements,Community Mental Health Service 2,2512
12260988,11/09/2018,04/09/2018,3000470,Outlook Care,Adults Continuing Health Care Funded Placement,Community Mental Health Service 2,2512
12261057,11/09/2018,04/09/2018,3000470,Outlook Care,Adults Extra Care,Care and Assessment,2146.88
12261057,11/09/2018,04/09/2018,3000470,Outlook Care,Adults Supported Living,Care and Assessment,2044.8
12261058,11/09/2018,04/09/2018,3000470,Outlook Care,Adults Extra Care,Care and Assessment,840
12260612,11/09/2018,04/09/2018,3000470,Outlook Care,Adults Supported Living,Care and Assessment,1329.36
3453625,06/07/2018,29/06/2018,3000475,Personal detail - redacted,Consultancy (Hired & Contr - Consultancy),School Standards,500
3466799,23/08/2018,24/07/2018,3000488,Pearson (Exams/Registrations/Training),Exam Fees,WAES Business Services,1328.2
3467054,30/08/2018,31/07/2018,3000488,Pearson (Exams/Registrations/Training),Exam Fees,WAES Business Services,674.8
12205642,19/07/2018,17/07/2018,3000494,Compass Fostering East Ltd,Fees,Looked After Children and Leaving Care,3300
12235532,15/08/2018,14/08/2018,3000494,Compass Fostering East Ltd,Fees,Looked After Children and Leaving Care,3410
12265531,17/09/2018,14/09/2018,3000494,Compass Fostering East Ltd,Fees,Looked After Children and Leaving Care,3410
12206335,19/07/2018,12/07/2018,3000503,Autism Anglia,Adults Continuing Health Care Funded Placement,Care and Assessment,11644
12205885,19/07/2018,12/07/2018,3000503,Autism Anglia,Adults Residential Placements,Care and Assessment,5390.24
12235247,15/08/2018,07/08/2018,3000503,Autism Anglia,Adults Continuing Health Care Funded Placement,Care and Assessment,11644
12235325,15/08/2018,07/08/2018,3000503,Autism Anglia,Adults Residential Placements,Care and Assessment,5390.24
12260586,11/09/2018,04/09/2018,3000503,Autism Anglia,Adults Continuing Health Care Funded Placement,Care and Assessment,11644
12260747,11/09/2018,04/09/2018,3000503,Autism Anglia,Adults Residential Placements,Care and Assessment,5390.24
12205935,19/07/2018,12/07/2018,3000508,Acorn Village,Adults Residential Placements,Care and Assessment,5221.08
12235373,15/08/2018,07/08/2018,3000508,Acorn Village,Adults Residential Placements,Care and Assessment,5221.08
12260799,11/09/2018,04/09/2018,3000508,Acorn Village,Adults Residential Placements,Care and Assessment,5221.08
12206136,19/07/2018,12/07/2018,3000519,Grove Care Partnership Ltd,Adults Residential Placements,Care and Assessment,8051.84
12234954,15/08/2018,07/08/2018,3000519,Grove Care Partnership Ltd,Adults Residential Placements,Care and Assessment,8051.84
12260999,11/09/2018,04/09/2018,3000519,Grove Care Partnership Ltd,Adults Residential Placements,Care and Assessment,8051.84
3461658,14/08/2018,11/04/2018,3000523,Equinox,Public Health (Hired & Contr - Healthcare),Substance Misuse/Offender Health Commissioning,690
3461659,13/08/2018,11/04/2018,3000523,Equinox,Public Health (Hired & Contr - Healthcare),Substance Misuse/Offender Health Commissioning,690
3449017,02/07/2018,20/06/2018,3000523,Equinox,Public Health (Hired & Contr - Healthcare),Substance Misuse/Offender Health Commissioning,3680
3449019,02/07/2018,20/06/2018,3000523,Equinox,Public Health (Hired & Contr - Healthcare),Substance Misuse/Offender Health Commissioning,2300
3460144,24/07/2018,16/07/2018,3000523,Equinox,Public Health (Hired & Contr - Healthcare),Substance Misuse/Offender Health Commissioning,2300
3459711,18/07/2018,16/07/2018,3000523,Equinox,Public Health (Hired & Contr - Healthcare),Substance Misuse/Offender Health Commissioning,2070
3459712,18/07/2018,16/07/2018,3000523,Equinox,Public Health (Hired & Contr - Healthcare),Substance Misuse/Offender Health Commissioning,2335.5
3459713,18/07/2018,16/07/2018,3000523,Equinox,Public Health (Hired & Contr - Healthcare),Substance Misuse/Offender Health Commissioning,2300
3471870,04/09/2018,17/08/2018,3000523,Equinox,Public Health (Hired & Contr - Healthcare),Substance Misuse/Offender Health Commissioning,2530
3471860,05/09/2018,17/08/2018,3000523,Equinox,Public Health (Hired & Contr - Healthcare),Substance Misuse/Offender Health Commissioning,2760
3471861,05/09/2018,17/08/2018,3000523,Equinox,Public Health (Hired & Contr - Healthcare),Substance Misuse/Offender Health Commissioning,2300
3471862,05/09/2018,17/08/2018,3000523,Equinox,Public Health (Hired & Contr - Healthcare),Substance Misuse/Offender Health Commissioning,2070
3471863,04/09/2018,17/08/2018,3000523,Equinox,Public Health (Hired & Contr - Healthcare),Substance Misuse/Offender Health Commissioning,920
12205640,19/07/2018,17/07/2018,3000527,Young London Today,Placements,Child Protection,5528.57
12205783,19/07/2018,12/07/2018,3000552,Deepdene Care Ltd,Adults Residential Placements,Care and Assessment,3584.4
12205856,19/07/2018,12/07/2018,3000552,Deepdene Care Ltd,Adults Residential Placements,Care and Assessment,2500
12206107,19/07/2018,12/07/2018,3000552,Deepdene Care Ltd,Adults Continuing Health Care Funded Placement,Community Mental Health Service 2,1590
12206107,19/07/2018,12/07/2018,3000552,Deepdene Care Ltd,Adults Residential Placements,Community Mental Health Service 2,1590
12205809,19/07/2018,12/07/2018,3000552,Deepdene Care Ltd,Adults Residential Placements,Community Mental Health Service 2,3300
12235253,15/08/2018,07/08/2018,3000552,Deepdene Care Ltd,Adults Residential Placements,Care and Assessment,3584.4
12235296,15/08/2018,07/08/2018,3000552,Deepdene Care Ltd,Adults Residential Placements,Care and Assessment,2500
12235141,15/08/2018,07/08/2018,3000552,Deepdene Care Ltd,Adults Continuing Health Care Funded Placement,Community Mental Health Service 2,1590
12235141,15/08/2018,07/08/2018,3000552,Deepdene Care Ltd,Adults Residential Placements,Community Mental Health Service 2,1590
12235073,15/08/2018,07/08/2018,3000552,Deepdene Care Ltd,Adults Residential Placements,Community Mental Health Service 2,3300
12260621,11/09/2018,04/09/2018,3000552,Deepdene Care Ltd,Adults Residential Placements,Care and Assessment,3584.4
12260688,11/09/2018,04/09/2018,3000552,Deepdene Care Ltd,Adults Residential Placements,Care and Assessment,2500
12260971,11/09/2018,04/09/2018,3000552,Deepdene Care Ltd,Adults Continuing Health Care Funded Placement,Community Mental Health Service 2,1590
12260971,11/09/2018,04/09/2018,3000552,Deepdene Care Ltd,Adults Residential Placements,Community Mental Health Service 2,1590
12260646,11/09/2018,04/09/2018,3000552,Deepdene Care Ltd,Adults Residential Placements,Community Mental Health Service 2,3300
12206065,19/07/2018,12/07/2018,3000557,Laurel Residential Homes Ltd,Adults Residential Placements,Community Mental Health Service 2,1800
12206147,19/07/2018,12/07/2018,3000557,Laurel Residential Homes Ltd,Adults Residential Placements,Community Mental Health Service 2,1400
12206147,19/07/2018,12/07/2018,3000557,Laurel Residential Homes Ltd,Adults Continuing Health Care Funded Placement,Community Mental Health Service 2,1400
12206299,19/07/2018,12/07/2018,3000557,Laurel Residential Homes Ltd,Adults Residential Placements,Community Mental Health Service 2,12200
12206222,19/07/2018,12/07/2018,3000561,Tudor House,Adults Nursing Placements,Care and Assessment,3179.4
12235099,15/08/2018,07/08/2018,3000561,Tudor House,Adults Nursing Placements,Care and Assessment,3179.4
12260705,11/09/2018,04/09/2018,3000561,Tudor House,Adults Nursing Placements,Care and Assessment,3454.2
3431065,23/07/2018,14/05/2018,3000573,M3 Housing,Repair & Maintenance (R&M -Plan),HRA City West Homes,4940
3464756,08/08/2018,09/07/2018,3000573,M3 Housing,Hired and Contracted Services,HRA City West Homes,2555
12205842,19/07/2018,12/07/2018,3000577,Susah Uk Ltd,Adults Continuing Health Care Funded Placement,Community Mental Health Service 2,1782
12205842,19/07/2018,12/07/2018,3000577,Susah Uk Ltd,Adults Nursing Placements,Community Mental Health Service 2,1782
12205980,19/07/2018,12/07/2018,3000577,Susah Uk Ltd,Adults Residential Placements,Community Mental Health Service 2,1600
12205980,19/07/2018,12/07/2018,3000577,Susah Uk Ltd,Adults Continuing Health Care Funded Placement,Community Mental Health Service 2,1600
12206137,19/07/2018,12/07/2018,3000577,Susah Uk Ltd,Adults Residential Placements,Community Mental Health Service 2,2050.16
12206137,19/07/2018,12/07/2018,3000577,Susah Uk Ltd,Adults Continuing Health Care Funded Placement,Community Mental Health Service 2,2050.12
12235283,15/08/2018,07/08/2018,3000577,Susah Uk Ltd,Adults Continuing Health Care Funded Placement,Community Mental Health Service 2,1782
12235283,15/08/2018,07/08/2018,3000577,Susah Uk Ltd,Adults Nursing Placements,Community Mental Health Service 2,1782
12235418,15/08/2018,07/08/2018,3000577,Susah Uk Ltd,Adults Continuing Health Care Funded Placement,Community Mental Health Service 2,1600
12235418,15/08/2018,07/08/2018,3000577,Susah Uk Ltd,Adults Residential Placements,Community Mental Health Service 2,1600
12234955,15/08/2018,07/08/2018,3000577,Susah Uk Ltd,Adults Residential Placements,Community Mental Health Service 2,2050.16
12234955,15/08/2018,07/08/2018,3000577,Susah Uk Ltd,Adults Continuing Health Care Funded Placement,Community Mental Health Service 2,2050.12
12260675,11/09/2018,04/09/2018,3000577,Susah Uk Ltd,Adults Nursing Placements,Community Mental Health Service 2,1782
12260675,11/09/2018,04/09/2018,3000577,Susah Uk Ltd,Adults Continuing Health Care Funded Placement,Community Mental Health Service 2,1782
12260843,11/09/2018,04/09/2018,3000577,Susah Uk Ltd,Adults Residential Placements,Community Mental Health Service 2,1600
12260843,11/09/2018,04/09/2018,3000577,Susah Uk Ltd,Adults Continuing Health Care Funded Placement,Community Mental Health Service 2,1600
12261000,11/09/2018,04/09/2018,3000577,Susah Uk Ltd,Adults Continuing Health Care Funded Placement,Community Mental Health Service 2,2050.12
12261000,11/09/2018,04/09/2018,3000577,Susah Uk Ltd,Adults Residential Placements,Community Mental Health Service 2,2050.16
3465606,08/08/2018,01/08/2018,3000582,RWA Security Ltd,Personnel (Hired & Contr - Consultancy),PP&L - Central,828
3465607,08/08/2018,01/08/2018,3000582,RWA Security Ltd,Personnel (Hired & Contr - Consultancy),PP&L - Central,828
3465608,08/08/2018,01/08/2018,3000582,RWA Security Ltd,Personnel (Hired & Contr - Consultancy),PP&L - Central,2208
3465609,08/08/2018,01/08/2018,3000582,RWA Security Ltd,Personnel (Hired & Contr - Consultancy),PP&L - Central,1311
3475172,28/09/2018,30/08/2018,3000582,RWA Security Ltd,Personnel (Hired & Contr - Consultancy),PP&L - Central,2208
3475173,28/09/2018,30/08/2018,3000582,RWA Security Ltd,Personnel (Hired & Contr - Consultancy),PP&L - Central,2162
12206189,19/07/2018,12/07/2018,3000588,Nas House,Adults Residential Placements,Community Mental Health Service 2,2600
12206190,19/07/2018,12/07/2018,3000588,Nas House,Adults Continuing Health Care Funded Placement,Community Mental Health Service 2,1725.52
12206190,19/07/2018,12/07/2018,3000588,Nas House,Adults Residential Placements,Community Mental Health Service 2,1725.52
12205791,19/07/2018,12/07/2018,3000588,Nas House,Adults Continuing Health Care Funded Placement,Community Mental Health Service 2,1300
12205791,19/07/2018,12/07/2018,3000588,Nas House,Adults Residential Placements,Community Mental Health Service 2,1300
12205893,19/07/2018,12/07/2018,3000588,Nas House,Adults Residential Placements,Community Mental Health Service 2,1833.88
12205894,19/07/2018,12/07/2018,3000588,Nas House,Adults Residential Placements,Community Mental Health Service 2,916.96
12205894,19/07/2018,12/07/2018,3000588,Nas House,Adults Continuing Health Care Funded Placement,Community Mental Health Service 2,916.96
12206040,19/07/2018,12/07/2018,3000588,Nas House,Adults Residential Placements,Community Mental Health Service 2,916.96
12206040,19/07/2018,12/07/2018,3000588,Nas House,Adults Continuing Health Care Funded Placement,Community Mental Health Service 2,916.96
12206115,19/07/2018,12/07/2018,3000588,Nas House,Adults Residential Placements,Community Mental Health Service 2,1133.24
12206115,19/07/2018,12/07/2018,3000588,Nas House,Adults Continuing Health Care Funded Placement,Community Mental Health Service 2,1133.24
12206212,19/07/2018,12/07/2018,3000588,Nas House,Adults Residential Placements,Community Mental Health Service 2,916.96
12206212,19/07/2018,12/07/2018,3000588,Nas House,Adults Continuing Health Care Funded Placement,Community Mental Health Service 2,916.96
12206213,19/07/2018,12/07/2018,3000588,Nas House,Adults Continuing Health Care Funded Placement,Community Mental Health Service 2,916.96
12206213,19/07/2018,12/07/2018,3000588,Nas House,Adults Residential Placements,Community Mental Health Service 2,916.96
12205817,19/07/2018,12/07/2018,3000588,Nas House,Adults Residential Placements,Community Mental Health Service 2,1400
12205817,19/07/2018,12/07/2018,3000588,Nas House,Adults Continuing Health Care Funded Placement,Community Mental Health Service 2,1400
12235190,15/08/2018,07/08/2018,3000588,Nas House,Adults Residential Placements,Community Mental Health Service 2,2600
12235191,15/08/2018,07/08/2018,3000588,Nas House,Adults Continuing Health Care Funded Placement,Community Mental Health Service 2,1725.52
12235191,15/08/2018,07/08/2018,3000588,Nas House,Adults Residential Placements,Community Mental Health Service 2,1725.52
12235261,15/08/2018,07/08/2018,3000588,Nas House,Adults Residential Placements,Community Mental Health Service 2,1300
12235261,15/08/2018,07/08/2018,3000588,Nas House,Adults Continuing Health Care Funded Placement,Community Mental Health Service 2,1300
12235333,15/08/2018,07/08/2018,3000588,Nas House,Adults Residential Placements,Community Mental Health Service 2,1833.88
12235334,15/08/2018,07/08/2018,3000588,Nas House,Adults Residential Placements,Community Mental Health Service 2,916.96
12235334,15/08/2018,07/08/2018,3000588,Nas House,Adults Continuing Health Care Funded Placement,Community Mental Health Service 2,916.96
12235477,15/08/2018,07/08/2018,3000588,Nas House,Adults Continuing Health Care Funded Placement,Community Mental Health Service 2,916.96
12235477,15/08/2018,07/08/2018,3000588,Nas House,Adults Residential Placements,Community Mental Health Service 2,916.96
12234933,15/08/2018,07/08/2018,3000588,Nas House,Adults Continuing Health Care Funded Placement,Community Mental Health Service 2,1133.24
12234933,15/08/2018,07/08/2018,3000588,Nas House,Adults Residential Placements,Community Mental Health Service 2,1133.24
12235010,15/08/2018,07/08/2018,3000588,Nas House,Adults Continuing Health Care Funded Placement,Community Mental Health Service 2,916.96
12235010,15/08/2018,07/08/2018,3000588,Nas House,Adults Residential Placements,Community Mental Health Service 2,916.96
12235011,15/08/2018,07/08/2018,3000588,Nas House,Adults Residential Placements,Community Mental Health Service 2,916.96
12235011,15/08/2018,07/08/2018,3000588,Nas House,Adults Continuing Health Care Funded Placement,Community Mental Health Service 2,916.96
12235082,15/08/2018,07/08/2018,3000588,Nas House,Adults Continuing Health Care Funded Placement,Community Mental Health Service 2,1400
12235082,15/08/2018,07/08/2018,3000588,Nas House,Adults Residential Placements,Community Mental Health Service 2,1400
12261076,11/09/2018,04/09/2018,3000588,Nas House,Adults Residential Placements,Community Mental Health Service 2,2600
12261077,11/09/2018,04/09/2018,3000588,Nas House,Adults Residential Placements,Community Mental Health Service 2,1725.52
12261077,11/09/2018,04/09/2018,3000588,Nas House,Adults Continuing Health Care Funded Placement,Community Mental Health Service 2,1725.52
12260629,11/09/2018,04/09/2018,3000588,Nas House,Adults Residential Placements,Community Mental Health Service 2,1300
12260629,11/09/2018,04/09/2018,3000588,Nas House,Adults Continuing Health Care Funded Placement,Community Mental Health Service 2,1300
12260756,11/09/2018,04/09/2018,3000588,Nas House,Adults Residential Placements,Community Mental Health Service 2,1833.88
12260757,11/09/2018,04/09/2018,3000588,Nas House,Adults Residential Placements,Community Mental Health Service 2,916.96
12260757,11/09/2018,04/09/2018,3000588,Nas House,Adults Continuing Health Care Funded Placement,Community Mental Health Service 2,916.96
12260903,11/09/2018,04/09/2018,3000588,Nas House,Adults Residential Placements,Community Mental Health Service 2,916.96
12260903,11/09/2018,04/09/2018,3000588,Nas House,Adults Continuing Health Care Funded Placement,Community Mental Health Service 2,916.96
12260978,11/09/2018,04/09/2018,3000588,Nas House,Adults Residential Placements,Community Mental Health Service 2,1133.24
12260978,11/09/2018,04/09/2018,3000588,Nas House,Adults Continuing Health Care Funded Placement,Community Mental Health Service 2,1133.24
12261069,11/09/2018,04/09/2018,3000588,Nas House,Adults Residential Placements,Community Mental Health Service 2,916.96
12261069,11/09/2018,04/09/2018,3000588,Nas House,Adults Continuing Health Care Funded Placement,Community Mental Health Service 2,916.96
12261070,11/09/2018,04/09/2018,3000588,Nas House,Adults Residential Placements,Community Mental Health Service 2,916.96
12261070,11/09/2018,04/09/2018,3000588,Nas House,Adults Continuing Health Care Funded Placement,Community Mental Health Service 2,916.96
12260656,11/09/2018,04/09/2018,3000588,Nas House,Adults Residential Placements,Community Mental Health Service 2,1400
12260656,11/09/2018,04/09/2018,3000588,Nas House,Adults Continuing Health Care Funded Placement,Community Mental Health Service 2,1400
12205692,19/07/2018,17/07/2018,3000590,Hestia Enterprises Ltd,Placements,Looked After Children and Leaving Care,3642.86
12205601,19/07/2018,17/07/2018,3000590,Hestia Enterprises Ltd,Placements,Looked After Children and Leaving Care,1578.58
12205714,19/07/2018,17/07/2018,3000590,Hestia Enterprises Ltd,Placements,Looked After Children and Leaving Care,2785.71
12205756,19/07/2018,17/07/2018,3000590,Hestia Enterprises Ltd,Placements,Looked After Children and Leaving Care,3642.86
12235586,15/08/2018,14/08/2018,3000590,Hestia Enterprises Ltd,Placements,Looked After Children and Leaving Care,3764.29
12235645,15/08/2018,14/08/2018,3000590,Hestia Enterprises Ltd,Placements,Looked After Children and Leaving Care,2878.57
12235693,15/08/2018,14/08/2018,3000590,Hestia Enterprises Ltd,Placements,Looked After Children and Leaving Care,3764.29
12245732,24/08/2018,23/08/2018,3000590,Hestia Enterprises Ltd,Placements,Looked After Children and Leaving Care,2160
12245733,24/08/2018,23/08/2018,3000590,Hestia Enterprises Ltd,Placements,Looked After Children and Leaving Care,1700
12265585,17/09/2018,14/09/2018,3000590,Hestia Enterprises Ltd,Placements,Looked After Children and Leaving Care,3764.28
12265642,17/09/2018,14/09/2018,3000590,Hestia Enterprises Ltd,Placements,Looked After Children and Leaving Care,2878.58
12265692,17/09/2018,14/09/2018,3000590,Hestia Enterprises Ltd,Placements,Looked After Children and Leaving Care,3764.28
12205910,19/07/2018,12/07/2018,3000592,Thornton Lodge,Adults Residential Placements,Community Mental Health Service 2,1151.4
12205910,19/07/2018,12/07/2018,3000592,Thornton Lodge,Adults Continuing Health Care Funded Placement,Community Mental Health Service 2,1151.4
12206139,19/07/2018,12/07/2018,3000592,Thornton Lodge,Adults Residential Placements,Community Mental Health Service 2,1350
12206139,19/07/2018,12/07/2018,3000592,Thornton Lodge,Adults Continuing Health Care Funded Placement,Community Mental Health Service 2,1350
12206292,19/07/2018,12/07/2018,3000592,Thornton Lodge,Adults Continuing Health Care Funded Placement,Community Mental Health Service 2,1111.52
12206292,19/07/2018,12/07/2018,3000592,Thornton Lodge,Adults Residential Placements,Community Mental Health Service 2,1111.52
12235349,15/08/2018,07/08/2018,3000592,Thornton Lodge,Adults Continuing Health Care Funded Placement,Community Mental Health Service 2,1151.4
12235349,15/08/2018,07/08/2018,3000592,Thornton Lodge,Adults Residential Placements,Community Mental Health Service 2,1151.4
12234957,15/08/2018,07/08/2018,3000592,Thornton Lodge,Adults Residential Placements,Community Mental Health Service 2,1350
12234957,15/08/2018,07/08/2018,3000592,Thornton Lodge,Adults Continuing Health Care Funded Placement,Community Mental Health Service 2,1350
12235032,15/08/2018,07/08/2018,3000592,Thornton Lodge,Adults Residential Placements,Community Mental Health Service 2,1111.52
12235032,15/08/2018,07/08/2018,3000592,Thornton Lodge,Adults Continuing Health Care Funded Placement,Community Mental Health Service 2,1111.52
12260772,11/09/2018,04/09/2018,3000592,Thornton Lodge,Adults Residential Placements,Community Mental Health Service 2,1151.4
12260772,11/09/2018,04/09/2018,3000592,Thornton Lodge,Adults Continuing Health Care Funded Placement,Community Mental Health Service 2,1151.4
12261002,11/09/2018,04/09/2018,3000592,Thornton Lodge,Adults Continuing Health Care Funded Placement,Community Mental Health Service 2,1350
12261002,11/09/2018,04/09/2018,3000592,Thornton Lodge,Adults Residential Placements,Community Mental Health Service 2,1350
12261127,11/09/2018,04/09/2018,3000592,Thornton Lodge,Adults Residential Placements,Community Mental Health Service 2,1111.52
12261127,11/09/2018,04/09/2018,3000592,Thornton Lodge,Adults Continuing Health Care Funded Placement,Community Mental Health Service 2,1111.52
3464322,10/08/2018,10/07/2018,3000593,Sue Simon Dog Grooming,Hired and Contracted Services,Business Services,3311
12206175,19/07/2018,12/07/2018,3000599,Springlake Care Home Ltd,Adults Residential Placements,Care and Assessment,6000
12206176,19/07/2018,12/07/2018,3000599,Springlake Care Home Ltd,Adults Residential Placements,Care and Assessment,5400
12206357,19/07/2018,12/07/2018,3000599,Springlake Care Home Ltd,Adults Residential Placements,Care and Assessment,6800
12235176,15/08/2018,07/08/2018,3000599,Springlake Care Home Ltd,Adults Residential Placements,Care and Assessment,6000
12235177,15/08/2018,07/08/2018,3000599,Springlake Care Home Ltd,Adults Residential Placements,Care and Assessment,5400
12235066,15/08/2018,07/08/2018,3000599,Springlake Care Home Ltd,Adults Residential Placements,Care and Assessment,6800
12261030,11/09/2018,04/09/2018,3000599,Springlake Care Home Ltd,Adults Residential Placements,Care and Assessment,6000
12261031,11/09/2018,04/09/2018,3000599,Springlake Care Home Ltd,Adults Residential Placements,Care and Assessment,5400
12260611,11/09/2018,04/09/2018,3000599,Springlake Care Home Ltd,Adults Residential Placements,Care and Assessment,6800
12205715,19/07/2018,17/07/2018,3000625,Fostercare Uk Ltd,Fees,Looked After Children and Leaving Care,3548.57
12235646,15/08/2018,14/08/2018,3000625,Fostercare Uk Ltd,Fees,Looked After Children and Leaving Care,3666.86
12265636,17/09/2018,14/09/2018,3000625,Fostercare Uk Ltd,Fees,Looked After Children and Leaving Care,3666.86
12205813,19/07/2018,12/07/2018,3000631,Broadstreet House Limited,Adults Residential Placements,Care and Assessment,2992.92
12235078,15/08/2018,07/08/2018,3000631,Broadstreet House Limited,Adults Residential Placements,Care and Assessment,2992.92
12260651,11/09/2018,04/09/2018,3000631,Broadstreet House Limited,Adults Residential Placements,Care and Assessment,2992.92
12205909,19/07/2018,12/07/2018,3000634,Terrance House Care Ltd,Adults Residential Placements,Community Mental Health Service 2,1709.92
12235348,15/08/2018,07/08/2018,3000634,Terrance House Care Ltd,Adults Residential Placements,Community Mental Health Service 2,1709.92
12260771,11/09/2018,04/09/2018,3000634,Terrance House Care Ltd,Adults Residential Placements,Community Mental Health Service 2,1709.92
12205896,19/07/2018,12/07/2018,3000652,Richmond Health Care Ltd,Adults Nursing Placements,Care and Assessment,2745.2
12235336,15/08/2018,07/08/2018,3000652,Richmond Health Care Ltd,Adults Nursing Placements,Care and Assessment,2745.2
12260759,11/09/2018,04/09/2018,3000652,Richmond Health Care Ltd,Adults Nursing Placements,Care and Assessment,2745.2
12191849,06/07/2018,05/07/2018,3000656,Personal detail - redacted,Direct payments - client,LAC and Specialist Services,2256
12221063,03/08/2018,02/08/2018,3000656,Personal detail - redacted,Direct payments - client,LAC and Specialist Services,2256
12250473,31/08/2018,31/08/2018,3000656,Personal detail - redacted,Direct payments - client,LAC and Specialist Services,2256
12278639,28/09/2018,19/09/2018,3000656,Personal detail - redacted,Direct payments - client,LAC and Specialist Services,2256
3460938,15/08/2018,16/07/2018,3000659,Colan Ltd,Protective (Clothing),Non-Highways Contract Projects,855
12205647,19/07/2018,17/07/2018,3000669,Capstone Foster Care (South East)ltd,Fees,Looked After Children and Leaving Care,3036.73
12205648,19/07/2018,17/07/2018,3000669,Capstone Foster Care (South East)ltd,Fees,Looked After Children and Leaving Care,2974.54
12205666,19/07/2018,17/07/2018,3000669,Capstone Foster Care (South East)ltd,Fees,Looked After Children and Leaving Care,3270
12205693,19/07/2018,17/07/2018,3000669,Capstone Foster Care (South East)ltd,Fees,Looked After Children and Leaving Care,3204.6
12205694,19/07/2018,17/07/2018,3000669,Capstone Foster Care (South East)ltd,Fees,Looked After Children and Leaving Care,2912.7
12235538,15/08/2018,14/08/2018,3000669,Capstone Foster Care (South East)ltd,Fees,Looked After Children and Leaving Care,3137.95
12235539,15/08/2018,14/08/2018,3000669,Capstone Foster Care (South East)ltd,Fees,Looked After Children and Leaving Care,3073.69
12235563,15/08/2018,14/08/2018,3000669,Capstone Foster Care (South East)ltd,Fees,Looked After Children and Leaving Care,3379
12235587,15/08/2018,14/08/2018,3000669,Capstone Foster Care (South East)ltd,Fees,Looked After Children and Leaving Care,3311.42
12235588,15/08/2018,14/08/2018,3000669,Capstone Foster Care (South East)ltd,Fees,Looked After Children and Leaving Care,3009.79
12265515,17/09/2018,14/09/2018,3000669,Capstone Foster Care (South East)ltd,Fees,Looked After Children and Leaving Care,3073.7
12265545,17/09/2018,14/09/2018,3000669,Capstone Foster Care (South East)ltd,Fees,Looked After Children and Leaving Care,3137.95
12265556,17/09/2018,14/09/2018,3000669,Capstone Foster Care (South East)ltd,Fees,Looked After Children and Leaving Care,3379
12265596,17/09/2018,14/09/2018,3000669,Capstone Foster Care (South East)ltd,Fees,Looked After Children and Leaving Care,3009.79
12265604,17/09/2018,14/09/2018,3000669,Capstone Foster Care (South East)ltd,Fees,Looked After Children and Leaving Care,3311.42
3480679,20/09/2018,30/04/2018,3000672,F.M Conway Ltd,Construction - enhancements,Highways Infrastructure and Public Realm,93197
3450287,10/07/2018,31/05/2018,3000672,F.M Conway Ltd,Construction - enhancements,Highways Infrastructure and Public Realm,74272.58
3459678,20/07/2018,30/06/2018,3000672,F.M Conway Ltd,Construction - enhancements,Highways Infrastructure and Public Realm,569856.6
3459679,25/07/2018,30/06/2018,3000672,F.M Conway Ltd,Construction - enhancements,Highways Infrastructure and Public Realm,125209.2
3459680,20/07/2018,30/06/2018,3000672,F.M Conway Ltd,Construction - enhancements,Highways Infrastructure and Public Realm,18604
3459681,25/07/2018,30/06/2018,3000672,F.M Conway Ltd,Construction - enhancements,Highways Infrastructure and Public Realm,37559
3474230,13/09/2018,31/07/2018,3000672,F.M Conway Ltd,Construction - enhancements,Highways Infrastructure and Public Realm,300757
3474231,11/09/2018,31/07/2018,3000672,F.M Conway Ltd,Construction - enhancements,Highways Infrastructure and Public Realm,79063
3474232,11/09/2018,31/07/2018,3000672,F.M Conway Ltd,Construction - enhancements,Highways Infrastructure and Public Realm,150807
3474233,21/09/2018,31/08/2018,3000672,F.M Conway Ltd,Construction - enhancements,Highways Infrastructure and Public Realm,204935.85
3474234,21/09/2018,31/08/2018,3000672,F.M Conway Ltd,Construction - enhancements,Highways Infrastructure and Public Realm,67550.51
3474223,21/09/2018,31/08/2018,3000672,F.M Conway Ltd,Construction - enhancements,Highways Infrastructure and Public Realm,253278.4
3469251,16/08/2018,07/03/2018,3000672,F.M Conway Ltd,Highways & Transportation Consultants,Contract A - Highways Maintenance and Public Realm,10833.33
3477473,20/09/2018,23/04/2018,3000672,F.M Conway Ltd,Design and development,Highways Infrastructure and Public Realm,24717
3452652,04/07/2018,30/04/2018,3000672,F.M Conway Ltd,Construction - enhancements,Highways Infrastructure and Public Realm,413489
3477474,20/09/2018,14/04/2018,3000672,F.M Conway Ltd,Construction - enhancements,Highways Infrastructure and Public Realm,19388
3477475,14/09/2018,14/04/2018,3000672,F.M Conway Ltd,Design and development,Highways Infrastructure and Public Realm,39729
3474265,14/09/2018,14/04/2018,3000672,F.M Conway Ltd,Construction - enhancements,Highways Infrastructure and Public Realm,39182
3427666,13/07/2018,02/05/2018,3000672,F.M Conway Ltd,Construction - enhancements,Housing Regeneration,8559.99
3476498,05/09/2018,01/05/2018,3000672,F.M Conway Ltd,Maintenance (Transport R&M),Parking,17694.7
3446146,10/07/2018,31/05/2018,3000672,F.M Conway Ltd,Design and development,Highways Infrastructure and Public Realm,3560.25
3443037,03/07/2018,20/05/2018,3000672,F.M Conway Ltd,Construction - enhancements,Highways Infrastructure and Public Realm,21797
3438448,14/09/2018,24/05/2018,3000672,F.M Conway Ltd,Construction - enhancements,Executive Director - City Management and Communities,11210
3439322,13/07/2018,04/05/2018,3000672,F.M Conway Ltd,Contractors � converted balance - no analysis,Contract A - Highways Maintenance and Public Realm,18246
3438741,13/07/2018,30/05/2018,3000672,F.M Conway Ltd,Construction - enhancements,Housing Regeneration,48247.92
3480672,20/09/2018,31/05/2018,3000672,F.M Conway Ltd,Construction - enhancements,Highways Infrastructure and Public Realm,2157.91
3450255,10/07/2018,31/05/2018,3000672,F.M Conway Ltd,Construction - enhancements,Highways Infrastructure and Public Realm,1596.42
3446155,27/07/2018,28/05/2018,3000672,F.M Conway Ltd,Construction - enhancements,West End' Projects,5965
3451478,13/07/2018,22/06/2018,3000672,F.M Conway Ltd,Construction - enhancements,Highways Infrastructure and Public Realm,931
3451046,13/07/2018,22/06/2018,3000672,F.M Conway Ltd,Construction - enhancements,Highways Infrastructure and Public Realm,57076
3451047,13/07/2018,22/06/2018,3000672,F.M Conway Ltd,Design and development,Highways Infrastructure and Public Realm,8399
3451479,13/07/2018,22/06/2018,3000672,F.M Conway Ltd,Construction - enhancements,Highways Infrastructure and Public Realm,24821
3451048,13/07/2018,22/06/2018,3000672,F.M Conway Ltd,Design and development,Highways Infrastructure and Public Realm,51272
3451049,13/07/2018,22/06/2018,3000672,F.M Conway Ltd,Construction - enhancements,Highways Infrastructure and Public Realm,81630
3466202,13/09/2018,22/06/2018,3000672,F.M Conway Ltd,Construction - enhancements,Highways Infrastructure and Public Realm,5821
3451051,13/07/2018,22/06/2018,3000672,F.M Conway Ltd,Construction - enhancements,Highways Infrastructure and Public Realm,19607
3451682,13/07/2018,22/06/2018,3000672,F.M Conway Ltd,Construction - enhancements,Highways Infrastructure and Public Realm,4295
3451052,13/07/2018,22/06/2018,3000672,F.M Conway Ltd,Construction - enhancements,Highways Infrastructure and Public Realm,111890
3451053,13/07/2018,22/06/2018,3000672,F.M Conway Ltd,Construction - enhancements,Highways Infrastructure and Public Realm,13855
3451468,18/07/2018,22/06/2018,3000672,F.M Conway Ltd,Construction - enhancements,Highways Infrastructure and Public Realm,122112
3451683,13/07/2018,22/06/2018,3000672,F.M Conway Ltd,Construction - enhancements,West End' Projects,7889
3451054,13/07/2018,22/06/2018,3000672,F.M Conway Ltd,Construction - enhancements,Highways Infrastructure and Public Realm,7503
3451055,13/07/2018,22/06/2018,3000672,F.M Conway Ltd,Construction - enhancements,Highways Infrastructure and Public Realm,44608
3451056,13/07/2018,22/06/2018,3000672,F.M Conway Ltd,Design and development,Highways Infrastructure and Public Realm,5278
3451057,13/07/2018,22/06/2018,3000672,F.M Conway Ltd,Design and development,Highways Infrastructure and Public Realm,8980
3451470,13/07/2018,22/06/2018,3000672,F.M Conway Ltd,Design and development,Highways Infrastructure and Public Realm,5106
3451471,13/07/2018,22/06/2018,3000672,F.M Conway Ltd,Design and development,Highways Infrastructure and Public Realm,1306
3451472,13/07/2018,22/06/2018,3000672,F.M Conway Ltd,Construction - enhancements,Highways Infrastructure and Public Realm,8742
3451473,13/07/2018,22/06/2018,3000672,F.M Conway Ltd,Highways - Minor Works,Contract A - Highways Maintenance and Public Realm,1985
3451461,13/07/2018,22/06/2018,3000672,F.M Conway Ltd,Design and development,Highways Infrastructure and Public Realm,855
3451463,13/07/2018,22/06/2018,3000672,F.M Conway Ltd,Design and development,Highways Infrastructure and Public Realm,6503
3451464,13/07/2018,22/06/2018,3000672,F.M Conway Ltd,Design and development,Highways Infrastructure and Public Realm,2730
3451466,13/07/2018,22/06/2018,3000672,F.M Conway Ltd,Design and development,Highways Infrastructure and Public Realm,2078
3451467,13/07/2018,22/06/2018,3000672,F.M Conway Ltd,Highways & Transportation Consultants,Contract A - Highways Maintenance and Public Realm,5864.3
3451454,13/07/2018,22/06/2018,3000672,F.M Conway Ltd,Design and development,Highways Infrastructure and Public Realm,4954
3451455,13/07/2018,22/06/2018,3000672,F.M Conway Ltd,Design and development,Highways Infrastructure and Public Realm,564
3451456,13/07/2018,22/06/2018,3000672,F.M Conway Ltd,Hired and Contracted Services,Contract C - Bridges and Structures,4166
3451457,13/07/2018,22/06/2018,3000672,F.M Conway Ltd,Construction - enhancements,Executive Director - City Management and Communities,7500
3451458,25/07/2018,22/06/2018,3000672,F.M Conway Ltd,Construction - enhancements,Executive Director - City Management and Communities,26583
3451459,25/07/2018,22/06/2018,3000672,F.M Conway Ltd,Construction - enhancements,Executive Director - City Management and Communities,5775
3451447,25/07/2018,22/06/2018,3000672,F.M Conway Ltd,Construction - enhancements,Executive Director - City Management and Communities,3465
3451448,25/07/2018,22/06/2018,3000672,F.M Conway Ltd,Construction - enhancements,Executive Director - City Management and Communities,3465
3451449,25/07/2018,22/06/2018,3000672,F.M Conway Ltd,Construction - enhancements,Executive Director - City Management and Communities,103199
3451450,25/07/2018,22/06/2018,3000672,F.M Conway Ltd,Construction - enhancements,Executive Director - City Management and Communities,634
3451451,13/07/2018,22/06/2018,3000672,F.M Conway Ltd,Design and development,Highways Infrastructure and Public Realm,905
3451452,13/07/2018,22/06/2018,3000672,F.M Conway Ltd,Design and development,Highways Infrastructure and Public Realm,65210
3451441,13/07/2018,22/06/2018,3000672,F.M Conway Ltd,Construction - enhancements,Highways Infrastructure and Public Realm,8116
3451442,13/07/2018,22/06/2018,3000672,F.M Conway Ltd,Construction - enhancements,West End' Projects,81746
3477476,13/09/2018,22/06/2018,3000672,F.M Conway Ltd,Design and development,Highways Infrastructure and Public Realm,12500
3477465,20/09/2018,22/06/2018,3000672,F.M Conway Ltd,Design and development,Highways Infrastructure and Public Realm,10781
3451443,13/07/2018,22/06/2018,3000672,F.M Conway Ltd,Design and development,Highways Infrastructure and Public Realm,26308
3451444,13/07/2018,22/06/2018,3000672,F.M Conway Ltd,Construction - enhancements,Highways Infrastructure and Public Realm,4407
3451445,13/07/2018,22/06/2018,3000672,F.M Conway Ltd,Construction - enhancements,Highways Infrastructure and Public Realm,83959
3451446,16/07/2018,25/06/2018,3000672,F.M Conway Ltd,Construction - enhancements,Highways Infrastructure and Public Realm,76173
3451433,16/07/2018,25/06/2018,3000672,F.M Conway Ltd,Construction - enhancements,Highways Infrastructure and Public Realm,36905
3451437,13/07/2018,22/06/2018,3000672,F.M Conway Ltd,Construction - enhancements,West End' Projects,5937
3451438,13/07/2018,22/06/2018,3000672,F.M Conway Ltd,Construction - enhancements,Highways Infrastructure and Public Realm,13918
3451439,13/07/2018,22/06/2018,3000672,F.M Conway Ltd,Contractors � converted balance - no analysis,Contract A - Highways Maintenance and Public Realm,9976
3463829,30/07/2018,22/06/2018,3000672,F.M Conway Ltd,Contractors � converted balance - no analysis,Contract A - Highways Maintenance and Public Realm,13229
3450812,20/07/2018,30/06/2018,3000672,F.M Conway Ltd,Construction - enhancements,Highways Infrastructure and Public Realm,3802
3450814,20/07/2018,30/06/2018,3000672,F.M Conway Ltd,Construction - enhancements,Highways Infrastructure and Public Realm,5308
3450816,20/07/2018,30/06/2018,3000672,F.M Conway Ltd,Design and development,Highways Infrastructure and Public Realm,10266
3450817,20/07/2018,30/06/2018,3000672,F.M Conway Ltd,Design and development,Highways Infrastructure and Public Realm,13829.3
3459668,20/07/2018,30/06/2018,3000672,F.M Conway Ltd,Design and development,Highways Infrastructure and Public Realm,3511.7
3459669,20/07/2018,30/06/2018,3000672,F.M Conway Ltd,Design and development,Highways Infrastructure and Public Realm,4663.5
3451427,13/07/2018,22/06/2018,3000672,F.M Conway Ltd,Construction - enhancements,West End' Projects,34232
3451428,13/07/2018,22/06/2018,3000672,F.M Conway Ltd,Construction - enhancements,Highways Infrastructure and Public Realm,11339
3451429,13/07/2018,22/06/2018,3000672,F.M Conway Ltd,Construction - enhancements,Highways Infrastructure and Public Realm,13522
3451431,13/07/2018,22/06/2018,3000672,F.M Conway Ltd,Design and development,Highways Infrastructure and Public Realm,15145
3451432,13/07/2018,22/06/2018,3000672,F.M Conway Ltd,Construction - enhancements,Highways Infrastructure and Public Realm,5114
3451419,13/07/2018,22/06/2018,3000672,F.M Conway Ltd,Construction - enhancements,Highways Infrastructure and Public Realm,40881
3477467,14/09/2018,27/06/2018,3000672,F.M Conway Ltd,Construction - enhancements,Highways Infrastructure and Public Realm,1649
3451674,18/07/2018,27/06/2018,3000672,F.M Conway Ltd,Construction - enhancements,Highways Infrastructure and Public Realm,61786
3451675,18/07/2018,27/06/2018,3000672,F.M Conway Ltd,Design and development,Highways Infrastructure and Public Realm,5598
3451664,18/07/2018,27/06/2018,3000672,F.M Conway Ltd,Design and development,Highways Infrastructure and Public Realm,2533
3451665,18/07/2018,27/06/2018,3000672,F.M Conway Ltd,Construction - enhancements,Housing Regeneration,79805.49
3451667,18/07/2018,27/06/2018,3000672,F.M Conway Ltd,Contractors � converted balance - no analysis,Contract C - Bridges and Structures,3537.76
3452187,18/07/2018,27/06/2018,3000672,F.M Conway Ltd,Construction - enhancements,Highways Infrastructure and Public Realm,8295
3452188,18/07/2018,27/06/2018,3000672,F.M Conway Ltd,Construction - enhancements,Highways Infrastructure and Public Realm,2127
3452178,18/07/2018,27/06/2018,3000672,F.M Conway Ltd,Construction - enhancements,Highways Infrastructure and Public Realm,14109
3452179,18/07/2018,27/06/2018,3000672,F.M Conway Ltd,Design and development,Highways Infrastructure and Public Realm,5742
3452180,18/07/2018,27/06/2018,3000672,F.M Conway Ltd,Design and development,Highways Infrastructure and Public Realm,3089
3452183,18/07/2018,27/06/2018,3000672,F.M Conway Ltd,Design and development,Highways Infrastructure and Public Realm,5868
3452184,18/07/2018,27/06/2018,3000672,F.M Conway Ltd,Design and development,Highways Infrastructure and Public Realm,7121
3452185,18/07/2018,27/06/2018,3000672,F.M Conway Ltd,Construction - enhancements,Highways Infrastructure and Public Realm,5887
3452181,18/07/2018,27/06/2018,3000672,F.M Conway Ltd,Construction - enhancements,Highways Infrastructure and Public Realm,1910
3452182,18/07/2018,27/06/2018,3000672,F.M Conway Ltd,Design and development,Highways Infrastructure and Public Realm,16314
3452171,18/07/2018,27/06/2018,3000672,F.M Conway Ltd,Construction - enhancements,Highways Infrastructure and Public Realm,117667
3452172,18/07/2018,27/06/2018,3000672,F.M Conway Ltd,Contractors � converted balance - no analysis,Contract A - Highways Maintenance and Public Realm,7584
3452173,18/07/2018,27/06/2018,3000672,F.M Conway Ltd,Design and development,Housing Regeneration,11561
3452174,18/07/2018,27/06/2018,3000672,F.M Conway Ltd,Design and development,Highways Infrastructure and Public Realm,1300
3452175,18/07/2018,27/06/2018,3000672,F.M Conway Ltd,Construction - enhancements,Highways Infrastructure and Public Realm,1020
3452176,18/07/2018,27/06/2018,3000672,F.M Conway Ltd,Design and development,Highways Infrastructure and Public Realm,3825
3452165,18/07/2018,27/06/2018,3000672,F.M Conway Ltd,Construction - enhancements,Highways Infrastructure and Public Realm,1862
3452166,18/07/2018,27/06/2018,3000672,F.M Conway Ltd,Construction - enhancements,Highways Infrastructure and Public Realm,2639
3452051,18/07/2018,27/06/2018,3000672,F.M Conway Ltd,Planned Maintenance,Contract C - Bridges and Structures,1574.49
3452052,18/07/2018,27/06/2018,3000672,F.M Conway Ltd,Contractors � converted balance - no analysis,Contract C - Bridges and Structures,721.2
3452056,18/07/2018,27/06/2018,3000672,F.M Conway Ltd,Contractors � converted balance - no analysis,Contract C - Bridges and Structures,2884.25
3452237,18/07/2018,27/06/2018,3000672,F.M Conway Ltd,Contractors � converted balance - no analysis,Contract C - Bridges and Structures,856.84
3459666,20/07/2018,30/06/2018,3000672,F.M Conway Ltd,Construction - enhancements,Highways Infrastructure and Public Realm,3054
3459667,20/07/2018,30/06/2018,3000672,F.M Conway Ltd,Construction - enhancements,Highways Infrastructure and Public Realm,6095
3459670,20/07/2018,30/06/2018,3000672,F.M Conway Ltd,Construction - enhancements,Highways Infrastructure and Public Realm,1535
3459671,20/07/2018,30/06/2018,3000672,F.M Conway Ltd,Design and development,Highways Infrastructure and Public Realm,5291
3459672,16/08/2018,30/06/2018,3000672,F.M Conway Ltd,Design and development,Highways Infrastructure and Public Realm,2755
3459673,20/07/2018,30/06/2018,3000672,F.M Conway Ltd,Design and development,Highways Infrastructure and Public Realm,1247
3459674,20/07/2018,30/06/2018,3000672,F.M Conway Ltd,Construction - enhancements,Highways Infrastructure and Public Realm,25093
3459675,10/08/2018,30/06/2018,3000672,F.M Conway Ltd,Construction - enhancements,Highways Infrastructure and Public Realm,92999
3459676,20/07/2018,30/06/2018,3000672,F.M Conway Ltd,Design and development,Highways Infrastructure and Public Realm,2261
3459677,20/07/2018,30/06/2018,3000672,F.M Conway Ltd,Construction - enhancements,Highways Infrastructure and Public Realm,7713
3452233,13/07/2018,22/06/2018,3000672,F.M Conway Ltd,Fees General,Salaries Highways and Public Realm,6177
3452234,13/07/2018,22/06/2018,3000672,F.M Conway Ltd,Contractors � converted balance - no analysis,Contract C - Bridges and Structures,8178.21
3452235,13/07/2018,22/06/2018,3000672,F.M Conway Ltd,Contractors � converted balance - no analysis,Contract C - Bridges and Structures,17511.92
3452236,13/07/2018,22/06/2018,3000672,F.M Conway Ltd,Contractors � converted balance - no analysis,Contract C - Bridges and Structures,32678.27
3452656,13/07/2018,22/06/2018,3000672,F.M Conway Ltd,Construction - enhancements,Highways Infrastructure and Public Realm,46672
3452645,13/07/2018,22/06/2018,3000672,F.M Conway Ltd,Design and development,Highways Infrastructure and Public Realm,3201
3463192,30/07/2018,30/06/2018,3000672,F.M Conway Ltd,Reactive Maintenance,West End' Projects,83122
3480673,20/09/2018,30/06/2018,3000672,F.M Conway Ltd,Construction - enhancements,Highways Infrastructure and Public Realm,7168.7
3470646,14/09/2018,30/06/2018,3000672,F.M Conway Ltd,Reactive Maintenance,City Highways Salaries,17688.43
3469384,11/09/2018,30/06/2018,3000672,F.M Conway Ltd,Reactive Maintenance,Contract A - Highways Maintenance and Public Realm,21009.04
3469385,11/09/2018,30/06/2018,3000672,F.M Conway Ltd,Reactive Maintenance,Contract A - Highways Maintenance and Public Realm,86848.73
3469376,15/08/2018,30/06/2018,3000672,F.M Conway Ltd,Reactive Maintenance,Contract B - Public Lighting,2569.86
3469377,15/08/2018,30/06/2018,3000672,F.M Conway Ltd,Planned Maintenance Painting,Contract B - Public Lighting,10777.57
3469378,11/09/2018,30/06/2018,3000672,F.M Conway Ltd,Contractors � converted balance - no analysis,Contract B - Public Lighting,12257.83
3469379,13/09/2018,30/06/2018,3000672,F.M Conway Ltd,Construction - enhancements,Highways Infrastructure and Public Realm,23735.13
3469380,06/09/2018,30/06/2018,3000672,F.M Conway Ltd,Construction - enhancements,Highways Infrastructure and Public Realm,16282.57
3469381,11/09/2018,30/06/2018,3000672,F.M Conway Ltd,Construction - enhancements,Highways Infrastructure and Public Realm,33361.35
3469382,11/09/2018,30/06/2018,3000672,F.M Conway Ltd,Contractors � converted balance - no analysis,Contract B - Public Lighting,3264.53
3453627,24/07/2018,03/07/2018,3000672,F.M Conway Ltd,Contractors � converted balance - no analysis,Contract C - Bridges and Structures,12409.05
3453628,24/07/2018,03/07/2018,3000672,F.M Conway Ltd,Reactive Maintenance,Contract C - Bridges and Structures,6052.58
3453629,24/07/2018,03/07/2018,3000672,F.M Conway Ltd,Reactive Maintenance,Contract C - Bridges and Structures,20242.7
3453630,24/07/2018,03/07/2018,3000672,F.M Conway Ltd,Reactive Maintenance,Contract C - Bridges and Structures,42295.42
3453631,24/07/2018,03/07/2018,3000672,F.M Conway Ltd,Reactive Maintenance,Contract C - Bridges and Structures,10374.23
3453632,24/07/2018,03/07/2018,3000672,F.M Conway Ltd,Reactive Maintenance,Contract C - Bridges and Structures,18830.6
3453643,24/07/2018,03/07/2018,3000672,F.M Conway Ltd,Reactive Maintenance,Contract C - Bridges and Structures,12434.12
3453644,24/07/2018,03/07/2018,3000672,F.M Conway Ltd,Reactive Maintenance,Contract C - Bridges and Structures,9202.63
3453645,24/07/2018,03/07/2018,3000672,F.M Conway Ltd,Reactive Maintenance,Contract C - Bridges and Structures,14261.98
3455154,11/07/2018,20/06/2018,3000672,F.M Conway Ltd,Construction - enhancements,Highways Infrastructure and Public Realm,358663
3455350,16/07/2018,25/06/2018,3000672,F.M Conway Ltd,Construction - enhancements,Highways Infrastructure and Public Realm,40552
3458094,02/08/2018,12/07/2018,3000672,F.M Conway Ltd,Construction - enhancements,Highways Infrastructure and Public Realm,45315
3460230,07/08/2018,17/07/2018,3000672,F.M Conway Ltd,Construction - enhancements,Highways Infrastructure and Public Realm,8049
3477466,20/09/2018,18/07/2018,3000672,F.M Conway Ltd,Design and development,Highways Infrastructure and Public Realm,2500
3461249,08/08/2018,18/07/2018,3000672,F.M Conway Ltd,Design and development,Highways Infrastructure and Public Realm,100199
3461250,08/08/2018,18/07/2018,3000672,F.M Conway Ltd,Construction - enhancements,Highways Infrastructure and Public Realm,3893
3461251,08/08/2018,18/07/2018,3000672,F.M Conway Ltd,Design and development,Highways Infrastructure and Public Realm,1560
3461239,08/08/2018,18/07/2018,3000672,F.M Conway Ltd,Design and development,Highways Infrastructure and Public Realm,6980
3461240,08/08/2018,18/07/2018,3000672,F.M Conway Ltd,Design and development,Highways Infrastructure and Public Realm,9811
